Workbook

Sheet Accueil
B11: Tremplin pour la transition écologique des PME
B13: Le présent tableur excel est la base pour remplir votre dossier d’aide dans le cadre du guichet « Tremplin pour la transition écologique des PME ».
B15: Le changement d'onglet lance des programmes qui peuvent durer quelques secondes.
B17: Pour le remplir, veuillez suivre les étapes suivantes :
B19: 1. Avant de commencer
A21: ? | B21: Le guichet d'aides "Tremplin pour la transition écologique des PME" permet d’accompagner les premiers pas d’une transition écologique en de bénéficiant rapidement d’aides forfaitaires. Avez-vous fait votre climatomètre? en 15 minutes vous pouvez auto-évaluer votre niveau de maturité vis-à-vis de la transition écologique et de l'économie circulaire, et entamer ainsi votre démarche de transition https://climatometre.bpifrance.fr/#/home Avant de solliciter ces aides, nous vous incitons à bénéficier de conseils et accompagnement personnalisés, par exemple en vous tournant vers votre CCI ou votre CMA ou via le Diag' éco-flux de Bpifrance. Par ailleurs, si vous souhaitez engager des projets plus ambitieux, vous pouvez sans doute bénéficier des autres aides de l'ADEME, présentées sur la plateforme agirpourlatransition.ademe.fr
B23: Important : avant de commencer à remplir ce tableur !
B24: Utilisez Microsoft Excel. Ce tableur ne fonctionne pas sur des logiciels tels que Open Office.
B25: Activez les macros du fichier excel si un message d’alerte apparaît.
B26: Ensuite, toutes les cellules à remplir sont indiquées sur fond bleu :
B28: 2. Renseignez d’abord l’onglet « 1- J’identifie mon entreprise »
B30: Secteur d’activité et localisation
B31: Il vous faudra renseigner :
C32: - votre code APE (ou code NAF), qui détermine votre secteur d’activité (menu déroulant) ;
C33: - déclarer si vous êtes un autoentrepreneur ou que vous avez choisi le régime microentreprise (ce qui en général vous exclut des aides Tremplin) ;
C34: - votre localisation dans les listes déroulantes (le département puis la commune).
B36: Suivant votre situation des questions complémentaires peuvent apparaître, s’il existe des dispositifs spécifiques de l’ADEME pour votre secteur d’activité.
B38: Déclaration des aides d’Etat dans le cadre de la crise du COVID-19 et du régime de minimis
B39: Nous vous demandons de déclarer toutes les aides publiques (de l’Etat, des régions, départements, communes, etc.) que vous avez déjà sollicitées sur la base du régime cadre temporaire français pour le soutien aux entreprises dans le cadre de la crise du COVID-19 (SA 56985) et du régime de minimis. Cette référence doit apparaître dans les dossiers d’aide que vous avez déjà remplis. Renseignez une ligne par aide sollicitée, ainsi que la colonne « Montant obtenu » si vous avez déjà reçu le financement. Cette information nous permet de calculer l’aide maximale à laquelle vous pourriez avoir droit.
B41: 3. Renseignez ensuite l’onglet « 2- Je choisis mes actions »
B43: Seules les actions auxquelles vous avez droit, selon votre secteur d’activité et votre localisation géographique, apparaissent.
B44: Parmi toutes les études et investissements proposés, vous pouvez choisir les actions que vous comptez engager.
B45: Pour plus d’informations sur les actions proposées, vous pouvez passer votre souris sur l’icône « ? » en début de ligne. C'est cette définition détaillée qui sert de base ensuite aux relations contractuelles entre vous et l'ADEME.
B47: Pour chaque ligne que vous choisirez, vous devez :
B48: 1/ Renseigner la quantité | C48: Renseigner la quantité
C49: - Pour les études ou les gros investissements, le choix de l'action sera oui ou non, choix matérialisé dans le tableau par une liste déroulante vous permettant de choisir entre 0 et 1.
C50: - Pour les autres investissements nous vous demandons des renseignements spécifiques suivant le type d’opération (par exemple la surface de votre bâtiment pour les études thermiques, le nombre de vélo-cargos électriques dont vous souhaitez vous équiper, etc.)
B51: 2/ Renseigner le coût total de cette opération, tel que vous l’estimez. Il s’agit d’un coût hors taxes récupérables (HTR), c'est-à-dire le montant d'achat, déduction faite de la TVA qui sera récupérée auprès du trésor public.
B52: Par exemple, une entreprise assujetti à la TVA achète 3 vélo-cargos électriques, le coût total HT de cette acquisition devra ici être renseigné.
B53: Des devis vous seront demandés pour justifier votre estimation de ce coût total, à l'exception des montants les plus faibles.
B55: Sur cette base, un montant prévisionnel de l’aide ADEME s’affiche automatiquement, ainsi que l’information si un devis vous sera demandé au moment du dépôt du dossier.
B56: Vous pourrez ainsi décider de vous engager ou non à réaliser les actions, en fonction de l’aide apportée.
B58: 4. Finalisez votre demande sur l'onglet « 3-Synthèse et finalisation »
B60: L’onglet « Synthèse de votre demande » résume les éléments que vous devrez transmettre à l’ADEME :
B62: Le montant total de l’opération, sur la base des coûts prévisionnel que vous avez déclarés.
B64: Le montant prévisionnel de l’aide ADEME, qui tient compte des actions sélectionnées mais aussi des contraintes juridiques.
B65: En tout état de cause, cette aide ne peut être inférieure à 5 000 € ou supérieure à 200 000 €.
B66: Le plafond des aides d’Etat dans le cadre du régime cadre temporaire français pour le soutien aux entreprises dans le cadre de la crise du COVID-19 est de 1 800 000 €.
B68: Le rappel des actions que vous avez sélectionnées et pour chacune d’elles si un devis devra être transmis à l’ADEME.
B70: Cliquer sur le bouton « Générer le fichier à transmettre à l'ADEME » : il va créer un nouveau fichier excel ;
B71: Enregistrez ce nouveau fichier sous le nom « [votre numéro de siret]_Tremplin transition écologique.xlsx »
B73: Poursuivez ensuite votre demande d’aide en créant un compte sur la plateforme dématérialisée de l’ADEME.
B74: https://agirpourlatransition.ademe.fr/entreprises/dispositif-aide/tremplin-transition-ecologique-pme
B76: Il vous faudra en particulier renseigner sur ce site, outre les éléments d’information sur votre entreprise, le montant total de l’opération et le montant prévisionnel de l’aide ADEME issus du tableur excel. Il faudra également télécharger le présent tableur excel, enregistré sous le nom précisé-ci-dessus, ainsi que les devis requis (en un seul document pdf les regroupant tous) ainsi que votre RIB.
B78: Version du | C78: 2022-01-24

Sheet 1-J'identifie mon entreprise
G2: ="list_"&IF(C24<10,TEXT(C24,"00"),$C$24) -> list_00
A3: SECTEUR D'ACTIVITE ET LOCALISATION | G3: =IF(H11="",0,1)+IF(H24="",0,1)+IF(H40="",0,1)+IF(H109="",0,1)+IF(H18="",0,1)+IF(H48="",0,1)+IF(H49="",0,1)+IF(H50="",0,1)+IF(H51="",0,1)+IF(H52="",0,1)+IF(H53="",0,1)+IF(H54="",0,1)+IF(H55="",0,1)+IF(H64="",0,1)+IF(H70="",0,1)+IF(H71="",0,1)+IF(H72="",0,1)+IF(H73="",0,1)+IF(H74="",0,1)+IF(H75="",0,1)+IF(H76="",0,1)+IF(H77="",0,1) -> 5
B5: Secteur d'activité
B7: =CODE_SECTION_DEMANDEUR ->  | C7: =LIBELLE_SECTION_DEMANDEUR -> 
C8: =LIBELLE_DIVISION_DEMANDEUR ->  | G8: =VLOOKUP(C24&"-"&E24,LIST_GEO!$C:$E,3,FALSE) -> 
C9: =LIBELLE_GROUPE_DEMANDEUR -> 
B11: Code Naf : | G11: =IF(C11="","",IFERROR(LEFT(C11,5),"")) ->  | H11: =IF(C11="","Veuillez renseigner votre code NAF","") -> Veuillez renseigner votre code NAF
G12: =IF(OR(naf_section="",naf_section="SECTION A",naf_section="SECTION B",naf_section="SECTION C",naf_section="SECTION D",naf_section="SECTION E"),0,1) -> 0
C13: Votre entreprise dispose-t-elle de bâtiments industriels * :
A14: * Les bâtiments industriels sont tous les bâtiments qui ne relèvent pas des activités tertiaires (bureaux, commerce, hôtellerie/restauration, éducation, santé…), ou de logement. Il peut s’agir d’ateliers de production ou de test, de stockage, etc.
C16: Quel est votre secteur d'activité spécifique :
G17: Affichage Colletivité
C18: Êtes-vous un auto-entrepreneur : | G18: =IF(AND(code_naf="8411Z",ZONE_ZFE="Oui"),1,0) -> 0 | H18: =IF(D18="","Veuillez indiquer si vous êtes au régime micro-entreprise","") -> Veuillez indiquer si vous êtes au régime micro-entreprise
C20: Êtes-vous une collectivité locale :
G21: =IF(OR(ch_departement=LIST_GEO!$H$21,ch_departement=LIST_GEO!$H$22),1,0) -> 0
B22: Code postal | G22: =IF(OR($C$24=LIST_GEO!$H$105,$C$24=LIST_GEO!$H$108,$C$24=LIST_GEO!$H$98,$C$24=LIST_GEO!$H$99,$C$24=LIST_GEO!$H$100,$C$24=LIST_GEO!H101,$C$24=LIST_GEO!H102,$C$24=LIST_GEO!H103,$C$24=LIST_GEO!H104,$C$24=LIST_GEO!H106,$C$24=LIST_GEO!H107),1,0) -> 0
B24: Département : | D24: Ville : | G24: Zone rural : | H24: =IF(C24="","Veuillez sélectionner le département du site d'implantation de la structure utilisatrice",IF(E24="","Veuillez sélectionner la ville du site d'implantation de la structure utilisatrice",IF(ISERROR(CORRESPONDANCE_VILLE_DEP),"Incompatibilité entre le numéro de département et la ville",""))) -> Veuillez sélectionner le département du site d'implantation de la structure utilisatrice
G25: =IF(C24>=98,"Oui",IF(ISERROR(VLOOKUP(TEXT(C24,"00")&"-"&E24,LIST_GEO!C:F,4,FALSE)),"Non",IF(VLOOKUP(TEXT(C24,"00")&"-"&E24,LIST_GEO!C:F,4,FALSE)="Non","Non","Oui"))) -> Non
B26: Partenariat Fonds Tourisme durable | G26: =IF(AND(OR(CODE_DIVISION_DEMANDEUR=DIVISION_HEBERGEMENT,CODE_NAF_DEMANDEUR=NAF_RESTO_1,CODE_NAF_DEMANDEUR=NAF_RESTO_2,code_naf="8413Z",code_naf="8411Z",code_naf="9499Z",naf_section="SECTION A"),zone_rural="Oui"),1,0) -> 0
E28: Avez-vous une activité d’hébergement touristique liée au tourisme social : | G28: Secteur tourisme durable
G29: =IF(OR(CODE_DIVISION_DEMANDEUR=DIVISION_HEBERGEMENT,code_naf="8413Z",code_naf="8411Z",CODE_NAF_DEMANDEUR=NAF_RESTO_1,CODE_NAF_DEMANDEUR=NAF_RESTO_2),"Oui","Non") -> Non
E30: =IF(code_naf="9499Z","Avez-vous une activité d’hébergement touristique liée au tourisme social :","Avez-vous une activité de restauration ou à d’hébergement touristique liée à l’agritourisme qui représente au minimum 30% de votre chiffre d’affaire :") -> Avez-vous une activité de restauration ou à d’hébergement touristique liée à l’agritourisme qui représente au minimum 30% de votre chiffre d’affaire : | G30: =IF(AND(OR(naf_section="SECTION A",code_naf="6820B"),zone_rural="Oui"),1,0) -> 0
G31: Partenaire :
E32: Si vous avez un code partenaire fonds tourisme durable, veuillez l'indiquer ici : | G32: =IF(F32="","Non",IF(OR(ch_code_partenaire=List!$AC$2,ch_code_partenaire=List!$AC$3,ch_code_partenaire=List!$AC$4,ch_code_partenaire=List!AC5),"Oui",IF(ISERROR(VLOOKUP(LEFT(VLOOKUP(ch_departement,LIST_GEO!H:I,2,FALSE),2)&"-"&F32,List!AB:AB,1,FALSE)),"Non","Oui"))) -> Non | H32: =IF(ch_code_partenaire="","",IF(ISERROR(VLOOKUP(ch_code_partenaire,code_partenaires,1,FALSE)),"Code partenaire inexistant","")) -> 
F33: Si vous n'êtes pas accompagné par un partenaire, nous vous engageons fortement à contacter l'ADEME pour bénéficier des financements spécifiques fonds tourisme durable | G33: =IF(AND(code_naf="9499Z",zone_rural="Oui"),1,0) -> 0
G34: =IF(AND(OR(CODE_DIVISION_DEMANDEUR=DIVISION_HEBERGEMENT,CODE_NAF_DEMANDEUR=NAF_RESTO_1,CODE_NAF_DEMANDEUR=NAF_RESTO_2),partenaire="Oui"),1,0) -> 0
C35: ="Avez-vous également une activité "&IF(C8="Hébergement","de restauration","d'hébergement")&" :" -> Avez-vous également une activité d'hébergement : | G35: =IF(partenaire<>"Oui",0,IF(AND(OR(AND(CODE_DIVISION_DEMANDEUR=DIVISION_HEBERGEMENT,D35="Oui"),CODE_NAF_DEMANDEUR=NAF_RESTO_1,CODE_NAF_DEMANDEUR=NAF_RESTO_2,AND(code_naf="9499Z",OR(ch_ftd_social="Restauration",ch_ftd_social="Restauration + Hébergement")),AND(OR(naf_section="SECTION A",code_naf="6820B"),OR(ch_fdt_agri="Restauration",ch_fdt_agri="Restauration + Hébergement")),code_naf="8413Z",code_naf="8411Z"),zone_rural="Oui"),1,0)) -> 0
G36: =IF(zone_rural<>"Oui",0,IF(OR(AND(fdt_agri=1,ch_fdt_agri<>"",ch_fdt_agri<>"Non"),AND(ftd_social=1,ch_ftd_social<>"",ch_ftd_social<>"Non"),CODE_DIVISION_DEMANDEUR=DIVISION_HEBERGEMENT,code_naf="8413Z",code_naf="8411Z",CODE_NAF_DEMANDEUR=NAF_RESTO_1,CODE_NAF_DEMANDEUR=NAF_RESTO_2),1,0)) -> 0
G37: =IF(partenaire<>"Oui",0,IF(AND(OR(CODE_DIVISION_DEMANDEUR=DIVISION_HEBERGEMENT,AND(OR(CODE_NAF_DEMANDEUR=NAF_RESTO_1,CODE_NAF_DEMANDEUR=NAF_RESTO_2),D35="Oui"),AND(code_naf="9499Z",OR(ch_ftd_social="Hébergement",ch_ftd_social="Restauration + Hébergement")),AND(OR(naf_section="SECTION A",code_naf="6820B"),OR(ch_fdt_agri="Hébergement",ch_fdt_agri="Restauration + Hébergement")),code_naf="8413Z",code_naf="8411Z"),zone_rural="Oui"),1,0)) -> 0
A38: DECLARATION DES AIDES D'ETAT DANS LE CADRE DE LA CRISE DU COVID-19
A39: 1
B40: Je soussigné, | D40: représentant légal ou dûment habilité de | H40: =IF(C40="","Veuillez indiquer le nom du représentant légal de la structure",IF(E40="","Veuillez indiquer le nom de la structure","")) -> Veuillez indiquer le nom du représentant légal de la structure
B41: entreprise unique au sens de la définition figurant à l'article 2.2 du règlement (UE) n°1407/2013 de la Commission du 18 décembre 2013 relatif à l'application des articles 107 et 108 sur le fonctionnement de l'Union européenne aux aides de minimis (1), certifie :
B42: n'avoir reçu ou demandé aucune aide d'Etat relevant du régime SA.56985 modifié (voir encadré) à la date de la présente déclaration,
B43: avoir reçu ou demandé une aide d'Etat relevant du régime SA.56985 modifié (voir encadré) à la date de la présente déclaration,
B45: Consignes pour le remplissage : Lister dans le tableau l'ensemble des aides reçues ou demandées par l’entreprise, au sens de la notion européenne d’entreprise unique, au titre du régime SA. 56985 modifié jusqu'au 31 décembre 2021.
B47: Date d'octroi ou de demande | C47: Organisme financeur | D47: Forme de l'aide (subvention, apports de fonds propres, avantages fiscaux et sociaux, prêts, avances remboursables, garanties, etc.) | E47: Montant sollicité | F47: Montant obtenu
G48: =IF(OR(F48=0,F48=""),IF(OR(E48=0,E48=""),0,E48),F48) -> 0 | H48: =IF(aide_covid=2,IF(OR(B48<>"",C48<>"",D48<>"",E48+F48>0),IF(B48="","Veuillez indiquer la date d'octroi ou de demande",IF(C48="","Veuillez indiquer l'organisme financeur",IF(D48="","Veuillez indiquer la forme de l'aide",IF(E48+F48>0,"","Veuillez indiquer le montant sollicité ou obtenu")))),""),"") -> 
G49: =IF(OR(F49=0,F49=""),IF(OR(E49=0,E49=""),0,E49),F49) -> 0
G50: 0
G51: 0
G52: 0
G53: 0
G54: 0
G55: 0
D56: TOTAL | E56: =SUM(E48:E55) -> 0 | F56: =SUM(F48:F55) -> 0 | G56: =SUM(G48:G55) -> 0
B58: Le régime cadre temporaire français notifié pour le soutien aux entreprises dans le cadre de la crise du COVID-19 SA. 56985 (modifié par SA. 57299, puis SA.58137 et SA.62102) permet notamment l'octroi d'aides jusqu'au 31 décembre 2021 sous diverses formes (subventions directes, apports de fonds propres, avantages fiscaux et sociaux sélectifs, prêts et avances remboursables) pour un montant nominal jusqu'à 1 800 000 € par entreprise unique ne relevant pas du secteur agricole primaire ou du secteur de la pêche et de l'aquaculture afin de leur permettre de faire face à des besoins de liquidités urgents et préserver la continuité de l'activité économique en leur permettant d'accéder à des financements. Les aides ne doivent pas excéder 270 000 € par entreprise unique du secteur de la pêche et de l'aquaculture ou 225 000 € par entreprise unique du secteur de la production primaire de produits agricoles.
A60: DECLARATION DES AIDES DE MINIMIS
B62: Je soussigné, | C62: =C40 -> 0 | D62: représentant légal ou dûment habilité de | E62: =E40 -> 0
B63: entreprise unique au sens de la définition figurant à l'article 2.2 du règlement (UE) n°1407/2013 de la Commission du 18 décembre 2013 relatif à l'application des articles 107 et 108 sur le fonctionnement de l'Union européenne aux aides de minimis (1), certifie :
B64: n'avoir reçu aucune aide de minimis durant les trois derniers exercices fiscaux, dont celui en cours à la date de la présente déclaration. | G64: TRUE | H64: =IF(AND(G64=FALSE,G65=FALSE),"Veuillez indiquer si vous avez reçu une aide de minimis",IF(AND(G64=TRUE,G65=TRUE),"Veuillez sélectionner qu'une seule option","")) -> 
B65: avoir reçu ou demandé durant les trois derniers exercices fiscaux, dont celui en cours à la date de la présente attestation, | G65: FALSE
B66: les aide de minimis suivantes :
B67: Consignes pour le remplissage : Lister dans le tableau l'ensemble des aides dites « de minimis », tous domaines confondus ayant fait l’objet d’un versement à l’entreprise, au sens de la notion européenne d'entreprise unique, au cours des 3 derniers exercices fiscaux dont l'exercice en cours ou les aides demandées pouvant faire l’objet d’un versement sous 3 ans.
B69: Date d'octroi ou de demande | C69: Organisme | D69: Base juridique de minimis | E69: Montant sollicité | F69: Montant obtenu
G70: =IF(D70="Non",0,IF(OR(F70=0,F70=""),IF(OR(E70=0,E70=""),0,E70),F70)) -> 0 | H70: =IF(aff_minimis=TRUE,IF(OR(B70<>"",C70<>"",D70<>"",E70+F70>0),IF(B70="","Veuillez indiquer la date d'octroi ou de demande",IF(C70="","Veuillez indiquer l'organisme financeur",IF(D70="","Veuillez indiquer la base juridique (cf. ci-dessous)",IF(E70+F70>0,"","Veuillez indiquer le montant sollicité ou obtenu")))),""),"") -> 
G71: =IF(D71="Non",0,IF(OR(F71=0,F71=""),IF(OR(E71=0,E71=""),0,E71),F71)) -> 0
G72: 0
G73: 0
G74: 0
G75: 0
G76: 0
G77: 0
D78: TOTAL | E78: =SUM(E70:E77) -> 0 | F78: =SUM(F70:F77) -> 0 | G78: =SUM(G70:G77) -> 0
B80: Le terme de minimis désigne une aide publique à une entreprise versée sur la base d'un règlement de minimis en dehors de tout régime d'aide notifié à la Commission européenne ou en dehors de tout régime-cadre exempté. Les aides de minimis sont qualifiées et leur base juridique est indiquée comme telles dans la décision d’attribution de l’aide. Les entreprises peuvent obtenir au maximum 200 000 € sur trois ans sur la base de minimis. L’ADEME doit obtenir de l'entreprise unique concernée, avant l'octroi de l'aide, une déclaration relative à toutes les aides de minimis qu'elle a reçues ou demandées au cours des 3 derniers exercices fiscaux dont l'exercice fiscal en cours. Au sens de la réglementation européenne, toutes les entités contrôlées en droit ou en fait par la même entité doivent être considérées comme constituant une entreprise unique.
B82: (1) Consulter la référence : http://data.europa.eu/eli/reg/2013/1407/oj
A89: DECLARATION SUR LA SANTÉ FINANCIÈRE | G89: =IF(A93=TRUE,0,IF(A97="VRAI",0,IF(A101=TRUE,0,1))) -> 0
B91: Je soussigné, | C91: =C40 -> 0 | D91: représentant légal ou dûment habilité de | E91: =E40 -> 0
B92: certifie que ma structure :
A93: TRUE | B93: n'est pas une entreprise en difficulté au sens de la réglementation communautaire (voir encadré)
B95: Pour une structure répondant à la définition d'entreprise en difficulté, précisez :
A97: =IF(A93=TRUE,"VRAI",IF(B97="est une entreprise devenue en difficulté au sens de la réglementation communautaire avant le 31/12/2019","FAUX","VRAI")) -> VRAI | B97: est une entreprise devenue en difficulté au sens de la réglementation communautaire avant le 31/12/2019 | F97: Liste déroulante
B99: Si micro ou petite entreprise, précisez :
A101: FALSE | B101: ne fait pas l'objet d'une procédure collective d'insolvabilité en vertu du droit national (sauvegarde, redressement ou liquidation judiciaires) ET n'a pas bénéficié d'une aide au sauvetage ou d'une aide à la restructuration
B103: La notion d'entreprise en difficulté est définie à l'article 2, point 18, du règlement (UE) n°651/2014 de la Commission du 17 juin 2014 déclarant certaines catégories d'aides compatibles avec le marché intérieur en application des articles 107 et 108 du traité (JO L 187 du 26/06/2014). «entreprise en difficulté»: une entreprise remplissant au moins une des conditions suivantes: a) s'il s'agit d'une société à responsabilité limitée (autre qu'une PME en existence depuis moins de trois ans ou, aux fins de l'admissibilité au bénéfice des aides au financement des risques, une PME exerçant ses activités depuis moins de sept ans après sa première vente commerciale et qui peut bénéficier d'investissements en faveur du financement des risques au terme du contrôle préalable effectué par l'intermédiaire financier sélectionné), lorsque plus de la moitié de son capital social souscrit a disparu en raison des pertes accumulées. Tel est le cas lorsque la déduction des pertes accumulées des réserves (et de tous les autres éléments généralement considérés comme relevant des fonds propres de la société) conduit à un montant cumulé négatif qui excède la moitié du capital social souscrit. Aux fins de la présente disposition, on entend par «société à responsabilité limitée» notamment les types d'entreprises mentionnés à l'annexe I de la directive 2013/34/UE du Parlement européen et du Conseil (37) et le «capital social» comprend, le cas échéant, les primes d'émission, b) s'il s'agit d'une société dont certains associés au moins ont une responsabilité illimitée pour les dettes de la société (autre qu'une PME en existence depuis moins de trois ans ou, aux fins de l'admissibilité au bénéfice des aides au financement des risques, une PME exerçant ses activités depuis moins de sept ans après sa première vente commerciale et qui peut bénéficier d'investissements en faveur du financement des risques au terme du contrôle préalable effectué par l'intermédiaire financier sélectionné), lorsque plus de la moitié des fonds propres, tels qu'ils sont inscrits dans les comptes de la société, a disparu en raison des pertes accumulées. Aux fins de la présente disposition, on entend par «société dont certains associés au moins ont une responsabilité illimitée pour les dettes de la société» en particulier les types de sociétés mentionnés à l'annexe II de la directive 2013/34/UE, c) lorsque l'entreprise fait l'objet d'une procédure collective d'insolvabilité ou remplit, selon le droit national qui lui est applicable, les conditions de soumission à une procédure collective d'insolvabilité à la demande de ses créanciers, d) lorsque l'entreprise a bénéficié d'une aide au sauvetage et n'a pas encore remboursé le prêt ou mis fin à la garantie, ou a bénéficié d'une aide à la restructuration et est toujours soumise à un plan de restructuration, e) dans le cas d'une entreprise autre qu'une PME, lorsque depuis les deux exercices précédents: 1) le ratio emprunts/capitaux propres de l'entreprise est supérieur à 7,5; et 2) le ratio de couverture des intérêts de l'entreprise, calculé sur la base de l'EBITDA, est inférieur à 1,0;
A105: Certification
A106: 1
D107: Sur la base de ces déclarations, le montant maximal de l'aide apporté par l'ADEME pourrait être de : | E107: =MAX(0,MIN(199999,IF(G89=1,0,IF(CODE_DIVISION_DEMANDEUR=REGIME_COVID_AGRI,REGIME_COVID_AGRI_MT,IF(CODE_DIVISION_DEMANDEUR=REGIME_COVID_PECHE,REGIME_COVID_PECHE_MT,200000))),IF(CODE_DIVISION_DEMANDEUR=REGIME_COVID_AGRI,REGIME_COVID_AGRI_MT,IF(CODE_DIVISION_DEMANDEUR=REGIME_COVID_PECHE,REGIME_COVID_PECHE_MT,1800000))-IF(aide_covid=2,G56,0))) -> 199999
B109: Fait à : | C109: =ch_ville -> 0 | D109: Le : | H109: =IF(C109="","Veuillez indiquer le lieu de réalisation de cette déclaration",IF(E109>=44197,"","Veuillez indiquer la date à laquelle vous faite la déclaration")) -> Veuillez indiquer la date à laquelle vous faite la déclaration

Sheet 2-Je choisis mes actions
B1: Les cellules à compléter sont sur fond bleu
B2: LES ACTIONS QUE JE SOUHAITE METTRE EN PLACE | H2: Mt forfait | I2: aff | J2: Forfait retenu | K2: Sous-programme
B4: Mes actions spécifiques à mon activité de restauration | I4: =IF(OR('1-J''identifie mon entreprise'!$G$89=1,naf_exclu=1),0,IF(CONSTANTES!$B$5=1,resto,0)) -> 0
B5: Nom de l'action | C5: Quantité | D5: Type d'unité | E5: Coût prévisionnel total HT | F5: Montant prévisionnel de l'aide ADEME | G5: Devis à joindre à la demande d'aide ? | I5: =IF(OR('1-J''identifie mon entreprise'!$G$89=1,naf_exclu=1),0,IF(CONSTANTES!$B$5=1,resto,0)) -> 0
A6: ? | B6: Modèle d'affaires Restauration durable | D6: Oui/Non | F6: =ROUND(IF(E6="",0,MIN(C6*H6*I6,tx_max*E6)),0) -> 0 | G6: =IF(J6=0,"","Oui") ->  | H6: =2000*(1+(bonus_om*bonus_om_tx)+(bonus_corse*bonus_corse_tx)) -> 2000 | I6: =IF(OR('1-J''identifie mon entreprise'!$G$89=1,naf_exclu=1),0,IF(CONSTANTES!$B$5=1,resto,0)) -> 0 | J6: =ROUND(IF(E6="",0,MIN(C6*H6*I6,tx_max*E6)),0) -> 0 | K6: L.ET
A7: ? | B7: Formation à la cuisine durable et aux éco-gestes en restauration | D7: Oui/Non | F7: =ROUND(IF(E7="",0,MIN(C7*H7*I7,tx_max*E7)),0) -> 0 | G7: =IF(J7=0,"",IF(J7>=2000,"Oui","Non")) ->  | H7: =2000*(1+(bonus_om*bonus_om_tx)+(bonus_corse*bonus_corse_tx)) -> 2000 | I7: =IF(OR('1-J''identifie mon entreprise'!$G$89=1,naf_exclu=1),0,IF(CONSTANTES!$B$5=1,resto,0)) -> 0 | J7: 0 | K7: L.ET
A8: ? | B8: Communication - Supports/actions de communication valorisant la restauration durable | D8: Oui/Non | F8: 0 | G8: =IF(J8=0,"",IF(J8>=2000,"Oui","Non")) ->  | H8: =2000*(1+(bonus_om*bonus_om_tx)+(bonus_corse*bonus_corse_tx)) -> 2000 | I8: =IF(OR('1-J''identifie mon entreprise'!$G$89=1,naf_exclu=1),0,IF(CONSTANTES!$B$5=1,resto,0)) -> 0 | J8: 0 | K8: L.ET
A9: ? | B9: Evolution des approvisionnements et des menus | D9: Oui/Non | F9: 0 | H9: =2500*(1+(bonus_om*bonus_om_tx)+(bonus_corse*bonus_corse_tx)) -> 2500 | I9: =IF(OR('1-J''identifie mon entreprise'!$G$89=1,naf_exclu=1),0,IF(CONSTANTES!$B$5=1,resto,0)) -> 0 | J9: 0 | K9: L.ET
A10: ? | B10: Lutte contre le gaspillage alimentaire | D10: Oui/Non | F10: 0 | H10: =2500*(1+(bonus_om*bonus_om_tx)+(bonus_corse*bonus_corse_tx)) -> 2500 | I10: =IF(OR('1-J''identifie mon entreprise'!$G$89=1,naf_exclu=1),0,IF(CONSTANTES!$B$5=1,resto,0)) -> 0 | J10: 0 | K10: L.ET
A11: ? | B11: Prévention des déchets non alimentaires en restauration | D11: Oui/Non | F11: 0 | H11: =2500*(1+(bonus_om*bonus_om_tx)+(bonus_corse*bonus_corse_tx)) -> 2500 | I11: =IF(OR('1-J''identifie mon entreprise'!$G$89=1,naf_exclu=1),0,IF(CONSTANTES!$B$5=1,resto,0)) -> 0 | J11: 0 | K11: L.ET
A12: ? | B12: Energie - Economie d’énergie en cuisine (cuisson, froid) | D12: Oui/Non | F12: 0 | H12: =5000*(1+(bonus_om*bonus_om_tx)+(bonus_corse*bonus_corse_tx)) -> 5000 | I12: =IF(OR('1-J''identifie mon entreprise'!$G$89=1,naf_exclu=1),0,IF(CONSTANTES!$B$5=1,resto,0)) -> 0 | J12: 0 | K12: L.ET
A13: ? | B13: Energie - Confort d'été et d’hiver liés à l’activité de restauration | D13: Oui/Non | F13: 0 | H13: =3000*(1+(bonus_om*bonus_om_tx)+(bonus_corse*bonus_corse_tx)) -> 3000 | I13: =IF(OR('1-J''identifie mon entreprise'!$G$89=1,naf_exclu=1),0,IF(CONSTANTES!$B$5=1,resto,0)) -> 0 | J13: 0 | K13: L.ET
A14: ? | B14: Eau - Dispositifs d'économie d'eau en cuisine | D14: Oui/Non | F14: 0 | H14: =2000*(1+(bonus_om*bonus_om_tx)+(bonus_corse*bonus_corse_tx)) -> 2000 | I14: =IF(OR('1-J''identifie mon entreprise'!$G$89=1,naf_exclu=1),0,IF(CONSTANTES!$B$5=1,resto,0)) -> 0 | J14: 0 | K14: L.ET
A15: ? | B15: Eau - Dispositifs d'économie d'eau dans les sanitaires des restaurants / de l’activité de restauration | D15: Oui/Non | F15: 0 | H15: =500*(1+(bonus_om*bonus_om_tx)+(bonus_corse*bonus_corse_tx)) -> 500 | I15: =IF(OR('1-J''identifie mon entreprise'!$G$89=1,naf_exclu=1),0,IF(CONSTANTES!$B$5=1,resto,0)) -> 0 | J15: 0 | K15: L.ET
A16: ? | B16: Eau - dispositifs d’économie d’eau pour les espaces extérieurs et potagers liés à l'activité de restauration | D16: Oui/Non | F16: 0 | H16: =400*(1+(bonus_om*bonus_om_tx)+(bonus_corse*bonus_corse_tx)) -> 400 | I16: =IF(OR('1-J''identifie mon entreprise'!$G$89=1,naf_exclu=1),0,IF(CONSTANTES!$B$5=1,resto,0)) -> 0 | J16: 0 | K16: L.ET
B17: r12 | F17: =ROUND(IF(E17="",0,MIN(C17*H17*I17,tx_max*E17)),0) -> 0 | I17: 0 | K17: L.ET
B18: r13 | F18: =ROUND(IF(E18="",0,MIN(C18*H18*I18,tx_max*E18)),0) -> 0 | I18: 0 | K18: L.ET
B19: r14 | F19: 0 | I19: 0 | K19: L.ET
B20: r15 | F20: =ROUND(IF(E20="",0,MIN(C20*H20*I20,tx_max*E20)),0) -> 0 | I20: 0 | K20: L.ET
B21: r16 | F21: 0 | I21: 0 | K21: L.ET
B22: r17 | F22: =ROUND(IF(E22="",0,MIN(C22*H22*I22,tx_max*E22)),0) -> 0 | I22: 0 | K22: L.ET
B23: r18 | F23: =ROUND(IF(E23="",0,MIN(C23*H23*I23,tx_max*E23)),0) -> 0 | I23: 0 | K23: L.ET
B24: r19 | F24: 0 | I24: 0 | K24: L.ET
B25: r20 | F25: 0 | I25: 0 | K25: L.ET
I26: =IF(OR('1-J''identifie mon entreprise'!$G$89=1,naf_exclu=1),0,IF(CONSTANTES!$B$5=1,resto,0)) -> 0
B27: Mes actions spécifiques liées à mon activité d'hébergement touristique | I27: =IF(OR('1-J''identifie mon entreprise'!$G$89=1,naf_exclu=1),0,IF(CONSTANTES!$B$5=1,heberg,0)) -> 0
B28: Nom de l'action | C28: Quantité | D28: Type d'unité | E28: Coût prévisionnel total HT | F28: Montant prévisionnel de l'aide ADEME | G28: Devis à joindre à la demande d'aide ? | I28: =IF(OR('1-J''identifie mon entreprise'!$G$89=1,naf_exclu=1),0,IF(CONSTANTES!$B$5=1,heberg,0)) -> 0
A29: ? | B29: Modèle d'affaires Tourisme durable Hébergement touristique | D29: Oui/Non | F29: =ROUND(IF(E29="",0,MIN(C29*H29*I29,tx_max*E29)),0) -> 0 | G29: =IF(J29=0,"","Oui") ->  | H29: =2000*(1+(bonus_om*bonus_om_tx)+(bonus_corse*bonus_corse_tx)) -> 2000 | I29: =IF(OR('1-J''identifie mon entreprise'!$G$89=1,naf_exclu=1),0,IF(CONSTANTES!$B$5=1,heberg,0)) -> 0 | J29: =F29 -> 0 | K29: L.ET
A30: ? | B30: Formation aux éco-gestes pour un hébergement touristique durable | D30: Oui/Non | F30: =ROUND(IF(E30="",0,MIN(C30*H30*I30,tx_max*E30)),0) -> 0 | G30: =IF(J30=0,"","Oui") ->  | H30: =2000*(1+(bonus_om*bonus_om_tx)+(bonus_corse*bonus_corse_tx)) -> 2000 | I30: =IF(OR('1-J''identifie mon entreprise'!$G$89=1,naf_exclu=1),0,IF(CONSTANTES!$B$5=1,heberg,0)) -> 0 | J30: =F30 -> 0 | K30: L.ET
A31: ? | B31: Communication - Supports de communication valorisant l’hébergement touristique durable | D31: Oui/Non | F31: 0 | H31: =2000*(1+(bonus_om*bonus_om_tx)+(bonus_corse*bonus_corse_tx)) -> 2000 | I31: =IF(OR('1-J''identifie mon entreprise'!$G$89=1,naf_exclu=1),0,IF(CONSTANTES!$B$5=1,heberg,0)) -> 0 | J31: 0 | K31: L.ET
A32: ? | B32: Energie - Accompagnement pour le financement de la rénovation globale | D32: Oui/Non | F32: =ROUND(IF(E32="",0,MIN(C32*H32*I32,tx_max*E32)),0) -> 0 | G32: =IF(J32=0,"",IF(J32>=2000,"Oui","Non")) ->  | H32: =3000*(1+(bonus_om*bonus_om_tx)+(bonus_corse*bonus_corse_tx)) -> 3000 | I32: =IF(OR('1-J''identifie mon entreprise'!$G$89=1,naf_exclu=1),0,IF(CONSTANTES!$B$5=1,heberg,0)) -> 0 | J32: 0 | K32: L.ET
A33: ? | B33: Energie - Maîtrise des besoins de chauffage des chambres | D33: Nombre de chambres équipées | F33: 0 | H33: =60*(1+(bonus_om*bonus_om_tx)+(bonus_corse*bonus_corse_tx)) -> 60 | I33: =IF(OR('1-J''identifie mon entreprise'!$G$89=1,naf_exclu=1),0,IF(CONSTANTES!$B$5=1,heberg,0)) -> 0 | J33: 0 | K33: L.ET
A34: ? | B34: Energie - Sèche-linge professionnel de grande efficacité énergétique et lave-linge | D34: € par kg de linge (capacité) | F34: 0 | H34: =800*(1+(bonus_om*bonus_om_tx)+(bonus_corse*bonus_corse_tx)) -> 800 | I34: =IF(OR('1-J''identifie mon entreprise'!$G$89=1,naf_exclu=1),0,IF(CONSTANTES!$B$5=1,heberg,0)) -> 0 | J34: 0 | K34: L.ET
A35: ? | B35: Energie - Bâche de nuit pour piscine | D35: Oui/Non | F35: 0 | H35: =5000*(1+(bonus_om*bonus_om_tx)+(bonus_corse*bonus_corse_tx)) -> 5000 | I35: =IF(OR('1-J''identifie mon entreprise'!$G$89=1,naf_exclu=1),0,IF(CONSTANTES!$B$5=1,heberg,0)) -> 0 | J35: 0 | K35: L.ET
A36: ? | B36: Energie & Confort d'été - actions sur les ouvertures (fenêtres) | D36: Nombre de fenêtres équipées | F36: 0 | G36: =IF(J36=0,"","Oui") ->  | H36: =200*(1+(bonus_om*bonus_om_tx)+(bonus_corse*bonus_corse_tx)) -> 200 | I36: =IF(OR('1-J''identifie mon entreprise'!$G$89=1,naf_exclu=1),0,IF(CONSTANTES!$B$5=1,heberg,0)) -> 0 | J36: 0 | K36: L.ET
A37: ? | B37: Energie & Confort d'été - végétalisation | D37: Oui/Non | F37: =ROUND(IF(E37="",0,MIN(C37*H37*I37,tx_max*E37)),0) -> 0 | G37: =IF(J37=0,"",IF(J37>=2000,"Oui","Non")) ->  | H37: =2400*(1+(bonus_om*bonus_om_tx)+(bonus_corse*bonus_corse_tx)) -> 2400 | I37: =IF(OR('1-J''identifie mon entreprise'!$G$89=1,naf_exclu=1),0,IF(CONSTANTES!$B$5=1,heberg,0)) -> 0 | J37: 0 | K37: L.ET
A38: ? | B38: Eau - Dispositifs d'économie d'eau pour les chambres et sanitaires liés à l’activité d’hébergement | D38: Nombre de chambres ou de sanitaires équipées | F38: =ROUND(IF(E38="",0,MIN(C38*H38*I38,tx_max*E38)),0) -> 0 | G38: =IF(J38=0,"",IF(J38>=2000,"Oui","Non")) ->  | H38: =160*(1+(bonus_om*bonus_om_tx)+(bonus_corse*bonus_corse_tx)) -> 160 | I38: =IF(OR('1-J''identifie mon entreprise'!$G$89=1,naf_exclu=1),0,IF(CONSTANTES!$B$5=1,heberg,0)) -> 0 | J38: 0 | K38: L.ET
A39: ? | B39: Eau - Toilettes sèches pour les chambres et sanitaires liés à l’activité d’hébergement | D39: Nombre de toilettes sèches | F39: =ROUND(IF(E39="",0,MIN(C39*H39*I39,tx_max*E39)),0) -> 0 | G39: =IF(J39=0,"",IF(J39>=2000,"Oui","Non")) ->  | H39: =200*(1+(bonus_om*bonus_om_tx)+(bonus_corse*bonus_corse_tx)) -> 200 | I39: =IF(OR('1-J''identifie mon entreprise'!$G$89=1,naf_exclu=1),0,IF(CONSTANTES!$B$5=1,heberg,0)) -> 0 | J39: 0 | K39: L.ET
A40: ? | B40: Mobilité - Abri vélo équipé de production photovoltaïque pour la recharge | D40: Capacité d'accueil de l'abris en nombre de vélos | F40: 0 | G40: =IF(J40=0,"",IF(J40>=2000,"Oui","Non")) ->  | H40: =800*(1+(bonus_om*bonus_om_tx)+(bonus_corse*bonus_corse_tx)) -> 800 | I40: =IF(OR('1-J''identifie mon entreprise'!$G$89=1,naf_exclu=1),0,IF(CONSTANTES!$B$5=1,heberg,0)) -> 0 | J40: 0 | K40: L.ET
A41: ? | B41: Prévention des déchets non alimentaires dans les hébergements | D41: Oui/Non | F41: 0 | H41: =2500*(1+(bonus_om*bonus_om_tx)+(bonus_corse*bonus_corse_tx)) -> 2500 | I41: =IF(OR('1-J''identifie mon entreprise'!$G$89=1,naf_exclu=1),0,IF(CONSTANTES!$B$5=1,heberg,0)) -> 0 | J41: 0 | K41: L.ET
B42: h6 | F42: =ROUND(IF(E42="",0,MIN(C42*H42*I42,tx_max*E42)),0) -> 0 | I42: 0 | K42: L.ET
B43: h7 | F43: 0 | I43: 0 | K43: L.ET
B44: h8 | F44: 0 | I44: 0 | K44: L.ET
B45: h5 | F45: 0 | I45: 0 | K45: L.ET
I46: =IF(OR('1-J''identifie mon entreprise'!$G$89=1,naf_exclu=1),0,IF(CONSTANTES!$B$5=1,heberg,0)) -> 0
B47: Mes actions pour la lutte contre le changement climatique | I47: =IF(OR(naf_section="Section A",'1-J''identifie mon entreprise'!$G$89=1,naf_exclu=1,AND(OR(code_naf="8413Z",code_naf="8411Z"),$I$4=0,$I$27=0)),0,IF(micro_entreprise="Oui",IF(OR($I$5=1,$I$28=1),1,0),1)) -> 1
B48: Nom de l'action | C48: Quantité | D48: Type d'unité | E48: Coût prévisionnel total HT | F48: Montant prévisionnel de l'aide ADEME | G48: Devis à joindre à la demande d'aide ? | H48: Mt forfait | I48: =I47 -> 1
A49: ? | B49: Bilan d’émission de gaz à effet de serre (bilan GES scope 1, 2 et 3) et plan d'actions | C49: L’ADEME et Bpifrance ont lancé le "Diag Décarbon’Action" en collaboration avec l’Association Bilan Carbone afin d’accompagner la transition énergétique et écologique des entreprises françaises. Pour réaliser votre bilan d’émission de gaz à effet de serre, rendez-vous sur https://diagdecarbonaction.bpifrance.fr/. Le "Diag Décarbon’Action" inclut une subvention de l’ADEME. | H49: =5000*(1+(bonus_om*bonus_om_tx)+(bonus_corse*bonus_corse_tx)) -> 5000 | I49: =IF(OR(AND(naf_section="Section A",code_naf<>"0161Z",code_naf<>"0162Z",code_naf<>"0240Z"),'1-J''identifie mon entreprise'!$G$89=1,naf_exclu=1,AND(OR(code_naf="8413Z",code_naf="8411Z"),$I$4=0,$I$27=0)),0,IF(micro_entreprise="Oui",IF(OR($I$5=1,$I$28=1),1,0),1)) -> 1 | J49: =ROUND(IF(E49="",0,MIN(C49*H49*I49,tx_max*E49)),0) -> 0 | K49: L.EY
A50: ? | B50: Vous organiser pour réduire les émissions de gaz à effet de serre : élaborer une stratégie (démarche ACT® pas à pas) | D50: Oui/Non | F50: =MIN(SUM(J50:J51),50000*(1+(bonus_om*bonus_om_tx)+(bonus_corse*bonus_corse_tx))) -> 0 | G50: =IF(J50=0,"","Oui") ->  | H50: =25000*(1+(bonus_om*bonus_om_tx)+(bonus_corse*bonus_corse_tx)) -> 25000 | I50: =IF(OR(AND(naf_section="Section A",code_naf<>"0161Z",code_naf<>"0162Z",code_naf<>"0240Z"),'1-J''identifie mon entreprise'!$G$89=1,naf_exclu=1,AND(OR(code_naf="8413Z",code_naf="8411Z"),$I$4=0,$I$27=0)),0,IF(micro_entreprise="Oui",IF(OR($I$5=1,$I$28=1),1,0),1)) -> 1 | J50: =ROUND(IF(E50="",0,MIN(C50*H50*I50,tx_max*E50)),0) -> 0 | K50: L.EY
A51: ? | B51: Evaluer votre stratégie de réduction des émissions de gaz à effet de serre (Evaluation ACT®) | D51: Oui/Non | G51: =IF(J51=0,"","Oui") ->  | H51: =4000*(1+(bonus_om*bonus_om_tx)+(bonus_corse*bonus_corse_tx)) -> 4000 | I51: =IF(OR(AND(naf_section="Section A",code_naf<>"0161Z",code_naf<>"0162Z",code_naf<>"0240Z"),'1-J''identifie mon entreprise'!$G$89=1,naf_exclu=1,AND(OR(code_naf="8413Z",code_naf="8411Z"),$I$4=0,$I$27=0)),0,IF(micro_entreprise="Oui",IF(OR($I$5=1,$I$28=1),1,0),1)) -> 1 | J51: =ROUND(IF(E51="",0,MIN(C51*H51*I51,tx_max*E51)),0) -> 0 | K51: L.EY
I52: =I48 -> 1
B53: Mes actions de rénovation globale des bâtiments et de qualité de l'air | I53: =I54 -> 0
B54: Nom de l'action | C54: Quantité | D54: Type d'unité | E54: Coût prévisionnel total HT | F54: Montant prévisionnel de l'aide ADEME | G54: Devis à joindre à la demande d'aide ? | I54: =IF(SUM(I55:I61)=0,0,IF(OR('1-J''identifie mon entreprise'!$G$89=1,naf_exclu=1),0,IF(micro_entreprise="Oui",IF(OR($I$5=1,$I$28=1),1,0),1))) -> 0
A55: ? | B55: Accompagnement à la baisse des consommations d’énergie des bâtiments imposée par le dispositif Eco Energie Tertiaire : audit énergétique | D55: Surface du bâtiment en m² | F55: =MIN(SUM(J55:J57),50000*(1+(bonus_om*bonus_om_tx)+(bonus_corse*bonus_corse_tx))) -> 0 | G55: =IF(J55=0,"","Oui") ->  | H55: =IF(C55="",0,IF(C55<500,1100,IF(C55<1000,1000+0.5*C55,1.5*C55)))*(1+(bonus_om*bonus_om_tx)+(bonus_corse*bonus_corse_tx)) -> 0 | I55: =IF(K55="L.EY",0,IF(OR('1-J''identifie mon entreprise'!$G$89=1,naf_exclu=1),0,IF(micro_entreprise="Oui",IF(OR($I$5=1,$I$28=1),1,0),1))) -> 0 | J55: =ROUND(IF(E55="",0,MIN(H55*I55,tx_max*E55)),0) -> 0 | K55: =IF(OR($I$5=1,$I$28=1),"L.ET","L.EY") -> L.EY
A56: ? | B56: Maîtrise d'œuvre (MOE) pour rénovation globale d’un ou plusieurs bâtiments pour viser un objectif de 50% d’économie d’énergie | D56: Oui/Non | H56: =5000*(1+(bonus_om*bonus_om_tx)+(bonus_corse*bonus_corse_tx)) -> 5000 | I56: =IF(K56="L.EY",0,IF(OR('1-J''identifie mon entreprise'!$G$89=1,naf_exclu=1),0,IF(micro_entreprise="Oui",IF(OR($I$5=1,$I$28=1),1,0),1))) -> 0 | J56: =ROUND(IF(E56="",0,MIN(C56*H56*I56,tx_max*E56)),0) -> 0 | K56: =IF(OR($I$5=1,$I$28=1),"L.ET","L.EY") -> L.EY
A57: ? | B57: Diagnostic sur la qualité de l'air (intérieur et extérieur) de l’entreprise | D57: Oui/Non | H57: =2000*(1+(bonus_om*bonus_om_tx)+(bonus_corse*bonus_corse_tx)) -> 2000 | I57: =IF(K57="L.EY",0,IF(OR('1-J''identifie mon entreprise'!$G$89=1,naf_exclu=1),0,IF(micro_entreprise="Oui",IF(OR($I$5=1,$I$28=1),1,0),1))) -> 0 | J57: =ROUND(IF(E57="",0,MIN(C57*H57*I57,tx_max*E57)),0) -> 0 | K57: =IF(OR($I$5=1,$I$28=1),"L.ET","L.EY") -> L.EY
A58: ? | B58: Solaire photovoltaïque en autoconsommation pour les PME de Corse et d’Outre-Mer | D58: Puissance installée en kW crête | F58: =J58*I58 -> 0 | H58: =500*(1+(bonus_om*bonus_om_tx)+(bonus_corse*bonus_corse_tx)) -> 500 | I58: =IF(AND(OR(I5=1,I28=1),OR(bonus_corse=1,bonus_om=1)),1,0) -> 0 | J58: =MIN(tx_max*E58,IF(C58<30,C58*(2000-80/3*C58),C58*(1200-20/17*(C58-30)))*(1+(bonus_om*bonus_om_tx)+(bonus_corse*bonus_corse_tx))) -> 0 | K58: L.ET
A59: ? | B59: Solaire photovoltaïque autonome pour les activités économiques non raccordées au réseau électrique des PME de Corse et d’Outre-Mer | D59: Puissance installée en kW crête | F59: =J59*I59 -> 0 | H59: =4000*(1+(bonus_om*bonus_om_tx)+(bonus_corse*bonus_corse_tx)) -> 4000 | I59: =I58 -> 0 | J59: =ROUND(IF(E59="",0,MIN(C59*H59*I59,tx_max*E59)),0) -> 0 | K59: L.ET
A60: ? | B60: Chauffe-eau solaire individuels | D60: Surface de panneaux en m² | F60: =ROUND(IF(E60="",0,MIN(C60*H60*I60,tx_max*E60)),0) -> 0 | H60: 400 | I60: =IF(AND(OR(I7=1,I30=1),bonus_om=1),1,0) -> 0 | K60: L.ET
A61: ? | B61: Brasseurs d’air | D61: Nombre de brasseur | F61: =ROUND(IF(E61="",0,MIN(C61*H61*I61,tx_max*E61)),0) -> 0 | H61: 250 | I61: =IF(AND(OR(I8=1,I31=1),OR(bonus_corse=1,bonus_om=1)),1,0) -> 0 | K61: L.ET
I62: =I53 -> 0
B63: Mes actions liées à l'éclairage | I63: =I64 -> 0
B64: Nom de l'action | C64: Quantité | D64: Type d'unité | E64: Coût prévisionnel total HT | F64: Montant prévisionnel de l'aide ADEME | G64: Devis à joindre à la demande d'aide ? | I64: =IF(SUM(I65:I69)=0,0,IF(OR('1-J''identifie mon entreprise'!$G$89=1,naf_exclu=1),0,IF(micro_entreprise="Oui",IF(OR($I$5=1,$I$28=1),1,0),1))) -> 0
A65: ? | B65: Améliorer l'efficacité de l'éclairage des locaux avec des luminaire à modules LED pré-équipés de détecteurs | D65: Nombre de luminaires | F65: =MIN(SUM(J65:J69),50000*(1+(bonus_om*bonus_om_tx)+(bonus_corse*bonus_corse_tx))) -> 0 | G65: =IF(J65=0,"",IF(J65>=2000,"Oui","Non")) ->  | H65: =30*(1+(bonus_om*bonus_om_tx)+(bonus_corse*bonus_corse_tx)) -> 30 | I65: =IF(K65="L.EY",0,IF(OR('1-J''identifie mon entreprise'!$G$89=1,naf_exclu=1),0,IF(micro_entreprise="Oui",IF(OR($I$5=1,$I$28=1),1,0),1))) -> 0 | J65: =ROUND(IF(E65="",0,MIN(C65*H65*I65,tx_max*E65)),0) -> 0 | K65: =IF(OR($I$5=1,$I$28=1),"L.ET","L.EY") -> L.EY
A66: ? | B66: Augmenter l’éclairage naturel grâce à des lanterneaux d'éclairage zénithal | D66: Nombre de lanterneaux | G66: =IF(J66=0,"",IF(J66>=2000,"Oui","Non")) ->  | H66: =60*(1+(bonus_om*bonus_om_tx)+(bonus_corse*bonus_corse_tx)) -> 60 | I66: =IF(K66="L.EY",0,IF(OR('1-J''identifie mon entreprise'!$G$89=1,naf_exclu=1),0,IF(micro_entreprise="Oui",IF(OR($I$5=1,$I$28=1),1,0),1))) -> 0 | J66: =ROUND(IF(E66="",0,MIN(C66*H66*I66,tx_max*E66)),0) -> 0 | K66: L.EY
A67: ? | B67: Augmenter l’éclairage naturel grâce à des conduits de lumière naturelle | D67: Nombre de conduits | G67: =IF(J67=0,"",IF(J67>=2000,"Oui","Non")) ->  | H67: =60*(1+(bonus_om*bonus_om_tx)+(bonus_corse*bonus_corse_tx)) -> 60 | I67: =IF(K67="L.EY",0,IF(OR('1-J''identifie mon entreprise'!$G$89=1,naf_exclu=1),0,IF(micro_entreprise="Oui",IF(OR($I$5=1,$I$28=1),1,0),1))) -> 0 | J67: =ROUND(IF(E67="",0,MIN(C67*H67*I67,tx_max*E67)),0) -> 0 | K67: L.EY
A68: ? | B68: Améliorer l'efficacité de l'éclairage extérieur avec des luminaires LED | D68: Nombre de luminaires | G68: =IF(J68=0,"",IF(J68>=2000,"Oui","Non")) ->  | H68: =30*(1+(bonus_om*bonus_om_tx)+(bonus_corse*bonus_corse_tx)) -> 30 | I68: =IF(K68="L.EY",0,IF(OR('1-J''identifie mon entreprise'!$G$89=1,naf_exclu=1),0,IF(micro_entreprise="Oui",IF(OR($I$5=1,$I$28=1),1,0),1))) -> 0 | J68: =ROUND(IF(E68="",0,MIN(C68*H68*I68,tx_max*E68)),0) -> 0 | K68: L.EY
A69: ? | B69: Etude de dimensionnement de l'éclairage | D69: Oui/Non | G69: =IF(J69=0,"",IF(J69>=2000,"Oui","Non")) ->  | H69: =IF(SUM(E65:E68)<25000,0,15%) -> 0 | I69: 0 | J69: =ROUND(IF(E69="",0,MIN(H69*(J65*I65+J66*I66+J67*I67+J68*I68)*I69,E69*C69*tx_max)),0) -> 0 | K69: L.EY
I70: =I64 -> 0
B71: Mes actions liées à l'efficacité énergétique des équipements de froid commercial | I71: =I72 -> 0
B72: Nom de l'action | C72: Quantité | D72: Type d'unité | E72: Coût prévisionnel total HT | F72: Montant prévisionnel de l'aide ADEME | G72: Devis à joindre à la demande d'aide ? | I72: =IF(SUM(I73:I77)=0,0,IF(OR('1-J''identifie mon entreprise'!$G$89=1,naf_exclu=1),0,IF(micro_entreprise="Oui",IF(OR($I$5=1,$I$28=1),1,0),1))) -> 0
A73: ? | B73: Isolation des meubles de vente réfrigérés et/ou des chambres froides | D73: Nombre de meubles réfrigérés et de chambres isolées | F73: =MIN(SUM(J73:J77),50000*(1+(bonus_om*bonus_om_tx)+(bonus_corse*bonus_corse_tx))) -> 0 | G73: =IF(J73=0,"",IF(J73>=2000,"Oui","Non")) ->  | H73: =350*(1+(bonus_om*bonus_om_tx)+(bonus_corse*bonus_corse_tx)) -> 350 | I73: =IF(K73="L.EY",0,IF(OR('1-J''identifie mon entreprise'!$G$89=1,naf_exclu=1),0,IF(micro_entreprise="Oui",IF(OR($I$5=1,$I$28=1),1,0),1))) -> 0 | J73: =ROUND(IF(E73="",0,MIN(C73*H73*I73,tx_max*E73)),0) -> 0 | K73: =IF(OR($I$5=1,$I$28=1),"L.ET","L.EY") -> L.EY
A74: ? | B74: Remplacement de fluides dans les équipements frigorifiques commerciaux pour utiliser des fluides frigorigènes ayant moins d’impact sur le changement climatique | D74: Nombre d'équipements frigorifiques retrofités | G74: =IF(J74=0,"",IF(J74>=2000,"Oui","Non")) ->  | H74: =350*(1+(bonus_om*bonus_om_tx)+(bonus_corse*bonus_corse_tx)) -> 350 | I74: =IF(K74="L.EY",0,IF(OR('1-J''identifie mon entreprise'!$G$89=1,naf_exclu=1),0,IF(micro_entreprise="Oui",IF(OR($I$5=1,$I$28=1),1,0),1))) -> 0 | J74: =ROUND(IF(E74="",0,MIN(C74*H74*I74,tx_max*E74)),0) -> 0 | K74: =IF(OR($I$5=1,$I$28=1),"L.ET","L.EY") -> L.EY
A75: ? | B75: Remplacement de meubles frigorifiques anciens avec groupe froid intégré par des équipements équivalents neufs avec des fluides frigorigènes moins impactant sur le changement climatique | D75: Nombre de meubles remplacés | G75: =IF(J75=0,"",IF(J75>=2000,"Oui","Non")) ->  | H75: =700*(1+(bonus_om*bonus_om_tx)+(bonus_corse*bonus_corse_tx)) -> 700 | I75: =IF(K75="L.EY",0,IF(OR('1-J''identifie mon entreprise'!$G$89=1,naf_exclu=1),0,IF(micro_entreprise="Oui",IF(OR($I$5=1,$I$28=1),1,0),1))) -> 0 | J75: =ROUND(IF(E75="",0,MIN(C75*H75*I75,tx_max*E75)),0) -> 0 | K75: =IF(OR($I$5=1,$I$28=1),"L.ET","L.EY") -> L.EY
A76: ? | B76: Remplacement d’équipements frigorifiques commerciaux anciens par des équipements neufs à groupe froid déporté avec des fluides frigorigènes moins impactant sur le changement climatique | D76: Nombre d'équipements remplacés | G76: =IF(J76=0,"",IF(J76>=2000,"Oui","Non")) ->  | H76: =3500*(1+(bonus_om*bonus_om_tx)+(bonus_corse*bonus_corse_tx)) -> 3500 | I76: =IF(K76="L.EY",0,IF(OR('1-J''identifie mon entreprise'!$G$89=1,naf_exclu=1),0,IF(micro_entreprise="Oui",IF(OR($I$5=1,$I$28=1),1,0),1))) -> 0 | J76: =ROUND(IF(E76="",0,MIN(C76*H76*I76,tx_max*E76)),0) -> 0 | K76: =IF(OR($I$5=1,$I$28=1),"L.ET","L.EY") -> L.EY
A77: ? | B77: Installation de froid commercial centralisée au CO2 avec récupération de chaleur | D77: Oui/Non | G77: =IF(J77=0,"",IF(J77>=2000,"Oui","Non")) ->  | H77: =15000*(1+(bonus_om*bonus_om_tx)+(bonus_corse*bonus_corse_tx)) -> 15000 | I77: =IF(K77="L.EY",0,IF(OR('1-J''identifie mon entreprise'!$G$89=1,naf_exclu=1),0,IF(micro_entreprise="Oui",IF(OR($I$5=1,$I$28=1),1,0),1))) -> 0 | J77: =ROUND(IF(E77="",0,MIN(C77*H77*I77,tx_max*E77)),0) -> 0 | K77: L.EY
I78: =I72 -> 0
B79: Mes actions liées à l'isolation et la ventilation de mon bâtiment industriel existant | I79: =I80 -> 0
B80: Nom de l'action | C80: Quantité | D80: Type d'unité | E80: Coût prévisionnel total HT | F80: Montant prévisionnel de l'aide ADEME | G80: Devis à joindre à la demande d'aide ? | I80: =IF(SUM(I81:I87)=0,0,IF(LOURDES=1,1,IF(OR('1-J''identifie mon entreprise'!$G$89=1,'1-J''identifie mon entreprise'!$C$8="Culture et production animale, chasse et services annexes",naf_exclu=1),0,IF(OR(naf_section="Section B",naf_section="Section C",naf_section="Section D",naf_section="Section E",'1-J''identifie mon entreprise'!$D$13="Oui"),IF(micro_entreprise="Oui",0,1),0)))) -> 0
A81: ? | B81: Isolation de combles perdus | D81: Surface isolée en m² | F81: =MIN(SUM(J81:J87),50000*(1+(bonus_om*bonus_om_tx)+(bonus_corse*bonus_corse_tx))) -> 0 | G81: =IF(J81=0,"",IF(J81>=2000,"Oui","Non")) ->  | H81: =IF(LOURDES=1,10,10) -> 10 | I81: =IF(K81="L.EY",0,IF(LOURDES=1,1,IF(OR('1-J''identifie mon entreprise'!$G$89=1,'1-J''identifie mon entreprise'!$C$8="Culture et production animale, chasse et services annexes",naf_exclu=1),0,IF(OR(naf_section="Section B",naf_section="Section C",naf_section="Section D",naf_section="Section E",'1-J''identifie mon entreprise'!$D$13="Oui"),IF(micro_entreprise="Oui",0,1),0)))) -> 0 | J81: =ROUND(IF(E81="",0,MIN(C81*H81*I81,tx_max*E81)),0) -> 0 | K81: =IF(LOURDES=1,"L.ET","L.EY") -> L.EY
A82: ? | B82: Isolation des rampants de toiture et plafonds de combles | D82: Surface isolée en m² | H82: =IF(LOURDES=1,15,10) -> 10 | I82: =IF(K82="L.EY",0,IF(LOURDES=1,1,IF(OR('1-J''identifie mon entreprise'!$G$89=1,'1-J''identifie mon entreprise'!$C$8="Culture et production animale, chasse et services annexes",naf_exclu=1),0,IF(OR(naf_section="Section B",naf_section="Section C",naf_section="Section D",naf_section="Section E",'1-J''identifie mon entreprise'!$D$13="Oui"),IF(micro_entreprise="Oui",0,1),0)))) -> 0 | J82: 0 | K82: L.EY
A83: ? | B83: Isolation des murs par l'intérieur | D83: Surface isolée en m² | H83: =IF(LOURDES=1,15,10) -> 10 | I83: =IF(K83="L.EY",0,IF(LOURDES=1,1,IF(OR('1-J''identifie mon entreprise'!$G$89=1,'1-J''identifie mon entreprise'!$C$8="Culture et production animale, chasse et services annexes",naf_exclu=1),0,IF(OR(naf_section="Section B",naf_section="Section C",naf_section="Section D",naf_section="Section E",'1-J''identifie mon entreprise'!$D$13="Oui"),IF(micro_entreprise="Oui",0,1),0)))) -> 0 | J83: 0 | K83: L.EY
A84: ? | B84: Isolation des murs par l'extérieur | D84: Surface isolée en m² | H84: =IF(LOURDES=1,40,30) -> 30 | I84: =IF(K84="L.EY",0,IF(LOURDES=1,1,IF(OR('1-J''identifie mon entreprise'!$G$89=1,'1-J''identifie mon entreprise'!$C$8="Culture et production animale, chasse et services annexes",naf_exclu=1),0,IF(OR(naf_section="Section B",naf_section="Section C",naf_section="Section D",naf_section="Section E",'1-J''identifie mon entreprise'!$D$13="Oui"),IF(micro_entreprise="Oui",0,1),0)))) -> 0 | J84: 0 | K84: L.EY
A85: ? | B85: Isolation des toitures-terrasses | D85: Surface isolée en m² | H85: =IF(LOURDES=1,40,30) -> 30 | I85: =IF(K85="L.EY",0,IF(LOURDES=1,1,IF(OR('1-J''identifie mon entreprise'!$G$89=1,'1-J''identifie mon entreprise'!$C$8="Culture et production animale, chasse et services annexes",naf_exclu=1),0,IF(OR(naf_section="Section B",naf_section="Section C",naf_section="Section D",naf_section="Section E",'1-J''identifie mon entreprise'!$D$13="Oui"),IF(micro_entreprise="Oui",0,1),0)))) -> 0 | J85: 0 | K85: L.EY
A86: ? | B86: Ventilation mécanique double flux | D86: Nombre de VMC | H86: =2000*(1+(bonus_om*bonus_om_tx)+(bonus_corse*bonus_corse_tx)) -> 2000 | I86: =IF(K86="L.EY",0,IF(LOURDES=1,1,IF(OR('1-J''identifie mon entreprise'!$G$89=1,'1-J''identifie mon entreprise'!$C$8="Culture et production animale, chasse et services annexes",naf_exclu=1),0,IF(OR(naf_section="Section B",naf_section="Section C",naf_section="Section D",naf_section="Section E",'1-J''identifie mon entreprise'!$D$13="Oui"),IF(micro_entreprise="Oui",0,1),0)))) -> 0 | J86: 0 | K86: L.EY
A87: ? | B87: Mise en place d’un système de gestion technique du bâtiment (GTB) de classe B ou A | D87: Surface du bâtiment en m² | H87: =10*(1+(bonus_om*bonus_om_tx)+(bonus_corse*bonus_corse_tx)) -> 10 | I87: =IF(K87="L.EY",0,IF(LOURDES=1,1,IF(OR('1-J''identifie mon entreprise'!$G$89=1,'1-J''identifie mon entreprise'!$C$8="Culture et production animale, chasse et services annexes",naf_exclu=1),0,IF(OR(naf_section="Section B",naf_section="Section C",naf_section="Section D",naf_section="Section E",'1-J''identifie mon entreprise'!$D$13="Oui"),IF(micro_entreprise="Oui",0,1),0)))) -> 0 | J87: 0 | K87: L.EY
I88: =I80 -> 0
B89: Mes actions liées à la production de chaleur et de froid pour mon bâtiment industriel ou agricole existant | I89: =IFERROR(IF(LOURDES=1,1,IF(OR('1-J''identifie mon entreprise'!$G$89=1,naf_exclu=1,naf_section="Section O"),0,IF(OR(naf_section="Section A",naf_section="Section B",naf_section="Section C",naf_section="Section D",naf_section="Section E",'1-J''identifie mon entreprise'!$D$13="Oui"),IF(OR(VLOOKUP('1-J''identifie mon entreprise'!$C$24,LIST_GEO!$H:$I,2,FALSE)="GE - Grand Est",VLOOKUP('1-J''identifie mon entreprise'!$C$24,LIST_GEO!$H:$I,2,FALSE)="PL - Pays de la Loire"),0,IF(micro_entreprise="Oui",0,1)),0))),0) -> 0
B90: Nom de l'action | C90: Quantité | D90: Type d'unité | E90: Coût prévisionnel total HT | F90: Montant prévisionnel de l'aide ADEME | G90: Devis à joindre à la demande d'aide ? | I90: =IFERROR(IF(LOURDES=1,1,IF(OR('1-J''identifie mon entreprise'!$G$89=1,naf_exclu=1,naf_section="Section O"),0,IF(OR(naf_section="Section A",naf_section="Section B",naf_section="Section C",naf_section="Section D",naf_section="Section E",'1-J''identifie mon entreprise'!$D$13="Oui"),IF(OR(VLOOKUP('1-J''identifie mon entreprise'!$C$24,LIST_GEO!$H:$I,2,FALSE)="GE - Grand Est",VLOOKUP('1-J''identifie mon entreprise'!$C$24,LIST_GEO!$H:$I,2,FALSE)="PL - Pays de la Loire"),0,IF(micro_entreprise="Oui",0,1)),0))),0) -> 0
A91: ? | B91: Géothermie sur champ de sondes et géostructures énergétiques | D91: Production énergétique prévisionnelle en MWh/an | F91: =ROUND(IF(E91="",0,MIN(C91*H91*I91,tx_max*E91)),0) -> 0 | G91: =IF(J91=0,"",IF(J91>=2000,"Oui","Non")) ->  | H91: =40*20 -> 800 | I91: =IFERROR(IF(LOURDES=1,1,IF(OR('1-J''identifie mon entreprise'!$G$89=1,naf_exclu=1,naf_section="Section O"),0,IF(OR(naf_section="Section A",naf_section="Section B",naf_section="Section C",naf_section="Section D",naf_section="Section E",'1-J''identifie mon entreprise'!$D$13="Oui"),IF(OR(VLOOKUP('1-J''identifie mon entreprise'!$C$24,LIST_GEO!$H:$I,2,FALSE)="GE - Grand Est",VLOOKUP('1-J''identifie mon entreprise'!$C$24,LIST_GEO!$H:$I,2,FALSE)="PL - Pays de la Loire"),0,IF(micro_entreprise="Oui",0,1)),0))),0) -> 0 | J91: =ROUND(IF(E91="",0,MIN(C91*H91*I91,tx_max*E91)),0) -> 0 | K91: =IF(LOURDES=1,"L.ET",IF(CONSTANTES!$B$4=1,"I.FF","L.EY")) -> I.FF | L91: 25
A92: ? | B92: Géothermie sur eau de nappe, sur eau de mer et sur eaux usées | D92: Production énergétique prévisionnelle en MWh/an | F92: =ROUND(IF(E92="",0,MIN(C92*H92*I92,tx_max*E92)),0) -> 0 | H92: =20*20 -> 400 | I92: =IFERROR(IF(LOURDES=1,1,IF(OR('1-J''identifie mon entreprise'!$G$89=1,naf_exclu=1,naf_section="Section O"),0,IF(OR(naf_section="Section A",naf_section="Section B",naf_section="Section C",naf_section="Section D",naf_section="Section E",'1-J''identifie mon entreprise'!$D$13="Oui"),IF(OR(VLOOKUP('1-J''identifie mon entreprise'!$C$24,LIST_GEO!$H:$I,2,FALSE)="GE - Grand Est",VLOOKUP('1-J''identifie mon entreprise'!$C$24,LIST_GEO!$H:$I,2,FALSE)="PL - Pays de la Loire"),0,IF(micro_entreprise="Oui",0,1)),0))),0) -> 0 | J92: 0 | K92: =IF(LOURDES=1,"L.ET",IF(CONSTANTES!$B$4=1,"I.FF","L.EY")) -> I.FF | L92: 25
A93: ? | B93: Géocooling | D93: Production énergétique prévisionnelle en MWh/an | F93: 0 | H93: 100 | I93: =IFERROR(IF(LOURDES=1,1,IF(OR('1-J''identifie mon entreprise'!$G$89=1,naf_exclu=1,naf_section="Section O"),0,IF(OR(naf_section="Section A",naf_section="Section B",naf_section="Section C",naf_section="Section D",naf_section="Section E",'1-J''identifie mon entreprise'!$D$13="Oui"),IF(OR(VLOOKUP('1-J''identifie mon entreprise'!$C$24,LIST_GEO!$H:$I,2,FALSE)="GE - Grand Est",VLOOKUP('1-J''identifie mon entreprise'!$C$24,LIST_GEO!$H:$I,2,FALSE)="PL - Pays de la Loire"),0,IF(micro_entreprise="Oui",0,1)),0))),0) -> 0 | J93: 0 | K93: =IF(LOURDES=1,"L.ET",IF(CONSTANTES!$B$4=1,"I.FF","L.EY")) -> I.FF | L93: 25
A94: ? | B94: Pompe à chaleur (PAC) solarothermique | D94: Production énergétique prévisionnelle en MWh/an | F94: 0 | H94: =IFERROR(20*IF(OR(bonus_om=1,VLOOKUP('1-J''identifie mon entreprise'!$C$24,LIST_GEO!$H:$J,3,FALSE)="Med",ISERROR(VLOOKUP('1-J''identifie mon entreprise'!$C$24,LIST_GEO!$H:$J,3,FALSE))),6,IF(VLOOKUP('1-J''identifie mon entreprise'!$C$24,LIST_GEO!$H:$J,3,FALSE)="Sud",8,IF(VLOOKUP('1-J''identifie mon entreprise'!$C$24,LIST_GEO!$H:$J,3,FALSE)="Nord",12,6))),0) -> 0 | I94: =IFERROR(IF(LOURDES=1,1,IF(OR('1-J''identifie mon entreprise'!$G$89=1,naf_exclu=1,naf_section="Section O"),0,IF(OR(naf_section="Section A",naf_section="Section B",naf_section="Section C",naf_section="Section D",naf_section="Section E",'1-J''identifie mon entreprise'!$D$13="Oui"),IF(OR(VLOOKUP('1-J''identifie mon entreprise'!$C$24,LIST_GEO!$H:$I,2,FALSE)="GE - Grand Est",VLOOKUP('1-J''identifie mon entreprise'!$C$24,LIST_GEO!$H:$I,2,FALSE)="PL - Pays de la Loire"),0,IF(micro_entreprise="Oui",0,1)),0))),0) -> 0 | J94: 0 | K94: =IF(LOURDES=1,"L.ET",IF(CONSTANTES!$B$4=1,"I.FF","L.EY")) -> I.FF | L94: 13
A95: ? | B95: Solaire thermique | D95: Production énergétique prévisionnelle en MWh solaire utile /an | F95: 0 | H95: =IFERROR(20*IF(OR(bonus_om=1,VLOOKUP('1-J''identifie mon entreprise'!$C$24,LIST_GEO!$H:$J,3,FALSE)="Sud"),45,IF(VLOOKUP('1-J''identifie mon entreprise'!$C$24,LIST_GEO!$H:$J,3,FALSE)="Nord",50,40)),0) -> 0 | I95: =IFERROR(IF(LOURDES=1,1,IF(OR('1-J''identifie mon entreprise'!$G$89=1,naf_exclu=1,naf_section="Section O"),0,IF(OR(naf_section="Section A",naf_section="Section B",naf_section="Section C",naf_section="Section D",naf_section="Section E",'1-J''identifie mon entreprise'!$D$13="Oui"),IF(OR(VLOOKUP('1-J''identifie mon entreprise'!$C$24,LIST_GEO!$H:$I,2,FALSE)="GE - Grand Est",VLOOKUP('1-J''identifie mon entreprise'!$C$24,LIST_GEO!$H:$I,2,FALSE)="PL - Pays de la Loire"),0,IF(micro_entreprise="Oui",0,1)),0))),0) -> 0 | J95: 0 | K95: =IF(LOURDES=1,"L.ET",IF(CONSTANTES!$B$4=1,"I.FF","L.EY")) -> I.FF | L95: 13
A96: ? | B96: Création ou extension d’un réseau de chaleur ou de froid | D96: Longueur de tranché en mètres linéaires | F96: 0 | H96: 340 | I96: =IFERROR(IF(LOURDES=1,1,IF(OR('1-J''identifie mon entreprise'!$G$89=1,naf_exclu=1,naf_section="Section O"),0,IF(OR(naf_section="Section A",naf_section="Section B",naf_section="Section C",naf_section="Section D",naf_section="Section E",'1-J''identifie mon entreprise'!$D$13="Oui"),IF(OR(VLOOKUP('1-J''identifie mon entreprise'!$C$24,LIST_GEO!$H:$I,2,FALSE)="GE - Grand Est",VLOOKUP('1-J''identifie mon entreprise'!$C$24,LIST_GEO!$H:$I,2,FALSE)="PL - Pays de la Loire"),0,IF(micro_entreprise="Oui",0,1)),0))),0) -> 0 | J96: 0 | K96: =IF(LOURDES=1,"L.ET",IF(CONSTANTES!$B$4=1,"I.FF","L.EY")) -> I.FF
A97: ? | B97: Chaudière biomasse inférieure à 1 200 MWh par an | D97: Production énergétique prévisionnelle en MWh/an | F97: 0 | H97: =IFERROR(J97/C97,0) -> 0 | I97: =IFERROR(IF(LOURDES=1,1,IF(OR('1-J''identifie mon entreprise'!$G$89=1,naf_exclu=1,naf_section="Section O"),0,IF(OR(naf_section="Section A",naf_section="Section B",naf_section="Section C",naf_section="Section D",naf_section="Section E",'1-J''identifie mon entreprise'!$D$13="Oui"),IF(OR(VLOOKUP('1-J''identifie mon entreprise'!$C$24,LIST_GEO!$H:$I,2,FALSE)="GE - Grand Est",VLOOKUP('1-J''identifie mon entreprise'!$C$24,LIST_GEO!$H:$I,2,FALSE)="PL - Pays de la Loire"),0,IF(micro_entreprise="Oui",0,1)),0))),0) -> 0 | J97: =ROUND(IF(E97="",0,MIN(IF(C97<=600,C97*9*20,600*9*20+(C97-600)*4*20),tx_max*E97)),0) -> 0 | K97: =IF(LOURDES=1,"L.ET",IF(CONSTANTES!$B$4=1,"I.FF","L.EY")) -> I.FF | L97: 600
I98: =IFERROR(IF(LOURDES=1,1,IF(OR('1-J''identifie mon entreprise'!$G$89=1,naf_exclu=1,naf_section="Section O"),0,IF(OR(naf_section="Section A",naf_section="Section B",naf_section="Section C",naf_section="Section D",naf_section="Section E",'1-J''identifie mon entreprise'!$D$13="Oui"),IF(OR(VLOOKUP('1-J''identifie mon entreprise'!$C$24,LIST_GEO!$H:$I,2,FALSE)="GE - Grand Est",VLOOKUP('1-J''identifie mon entreprise'!$C$24,LIST_GEO!$H:$I,2,FALSE)="PL - Pays de la Loire"),0,IF(micro_entreprise="Oui",0,1)),0))),0) -> 0
B99: Mes actions liées à la mobilité | I99: =I100 -> 0
B100: Nom de l'action | C100: Quantité | D100: Type d'unité | E100: Coût prévisionnel total HT | F100: Montant prévisionnel de l'aide ADEME | G100: Devis à joindre à la demande d'aide ? | I100: =IF(SUM(I101:I117)=0,0,IF(OR('1-J''identifie mon entreprise'!$G$89=1,naf_exclu=1),0,IF(micro_entreprise="Oui",IF(OR($I$5=1,$I$28=1),1,0),1))) -> 0
A101: ? | B101: Remplacement d'un véhicule thermique par un véhicule léger neuf électrique ou transformation /rétrofit électrique | D101: Nombre de véhicules remplacés | F101: =ROUND(IF(E101="",0,MIN(C101*H101*I101,tx_max*E101)),0) -> 0 | G101: =IF(J101=0,"",IF(J101>=2000,"Oui","Non")) ->  | H101: =4000*(1+(bonus_om*bonus_om_tx)+(bonus_corse*bonus_corse_tx)) -> 4000 | I101: =IF(ZONE_ZFE="Non",0,IF(AND(code_naf="8411Z",collectivite_locale<>"Oui"),0,IF(OR('1-J''identifie mon entreprise'!$G$89=1,naf_exclu=1),0,IF(micro_entreprise="Oui",IF(OR($I$5=1,$I$28=1),1,0),1)))) -> 0 | J101: =ROUND(IF(E101="",0,MIN(C101*H101*I101,tx_max*E101)),0) -> 0 | K101: I.AM
A102: ? | B102: Remplacement d'un véhicule thermique par un véhicule léger neuf GNV ou transformation/rétrofit GNV | D102: Nombre de véhicules remplacés | F102: =ROUND(IF(E102="",0,MIN(C102*H102*I102,tx_max*E102)),0) -> 0 | G102: =IF(J102=0,"",IF(J102>=1000,"Oui","Non")) ->  | H102: =1000*(1+(bonus_om*bonus_om_tx)+(bonus_corse*bonus_corse_tx)) -> 1000 | I102: =IF(ZONE_ZFE="Non",0,IF(AND(code_naf="8411Z",collectivite_locale<>"Oui"),0,IF(OR('1-J''identifie mon entreprise'!$G$89=1,naf_exclu=1),0,IF(micro_entreprise="Oui",IF(OR($I$5=1,$I$28=1),1,0),1)))) -> 0 | J102: 0 | K102: I.AM
A103: ? | B103: Remplacement d'un véhicule thermique par une fourgonnette neuve électrique | D103: Nombre de véhicules remplacés | F103: 0 | G103: =IF(J103=0,"",IF(J103>=2000,"Oui","Non")) ->  | H103: =5000*(1+(bonus_om*bonus_om_tx)+(bonus_corse*bonus_corse_tx)) -> 5000 | I103: =IF(ZONE_ZFE="Non",0,IF(AND(code_naf="8411Z",collectivite_locale<>"Oui"),0,IF(OR('1-J''identifie mon entreprise'!$G$89=1,naf_exclu=1),0,IF(micro_entreprise="Oui",IF(OR($I$5=1,$I$28=1),1,0),1)))) -> 0 | J103: 0 | K103: I.AM
A104: ? | B104: Remplacement d'un véhicule thermique par une fourgonnette neuve GNV | D104: Nombre de véhicules remplacés | F104: 0 | G104: =IF(J104=0,"",IF(J104>=2000,"Oui","Non")) ->  | H104: =1000*(1+(bonus_om*bonus_om_tx)+(bonus_corse*bonus_corse_tx)) -> 1000 | I104: =IF(ZONE_ZFE="Non",0,IF(AND(code_naf="8411Z",collectivite_locale<>"Oui"),0,IF(OR('1-J''identifie mon entreprise'!$G$89=1,naf_exclu=1),0,IF(micro_entreprise="Oui",IF(OR($I$5=1,$I$28=1),1,0),1)))) -> 0 | J104: 0 | K104: I.AM
A105: ? | B105: Remplacement d'un véhicule thermique par un fourgon neuf électrique | D105: Nombre de véhicules remplacés | F105: 0 | G105: =IF(J105=0,"",IF(J105>=2000,"Oui","Non")) ->  | H105: =9000*(1+(bonus_om*bonus_om_tx)+(bonus_corse*bonus_corse_tx)) -> 9000 | I105: =IF(ZONE_ZFE="Non",0,IF(AND(code_naf="8411Z",collectivite_locale<>"Oui"),0,IF(OR('1-J''identifie mon entreprise'!$G$89=1,naf_exclu=1),0,IF(micro_entreprise="Oui",IF(OR($I$5=1,$I$28=1),1,0),1)))) -> 0 | J105: 0 | K105: I.AM
A106: ? | B106: Remplacement d'un véhicule thermique par un fourgon neuf GNV | D106: Nombre de véhicules remplacés | F106: 0 | G106: =IF(J106=0,"",IF(J106>=2000,"Oui","Non")) ->  | H106: =4000*(1+(bonus_om*bonus_om_tx)+(bonus_corse*bonus_corse_tx)) -> 4000 | I106: =IF(ZONE_ZFE="Non",0,IF(AND(code_naf="8411Z",collectivite_locale<>"Oui"),0,IF(OR('1-J''identifie mon entreprise'!$G$89=1,naf_exclu=1),0,IF(micro_entreprise="Oui",IF(OR($I$5=1,$I$28=1),1,0),1)))) -> 0 | J106: 0 | K106: I.AM
A107: ? | B107: Remplacement d'un véhicule thermique par un camion neuf électrique dont le PTAC est inf à 7,5 T | D107: Nombre de véhicules remplacés | F107: 0 | G107: =IF(J107=0,"",IF(J107>=2000,"Oui","Non")) ->  | H107: =15000*(1+(bonus_om*bonus_om_tx)+(bonus_corse*bonus_corse_tx)) -> 15000 | I107: =IF(ZONE_ZFE="Non",0,IF(AND(code_naf="8411Z",collectivite_locale<>"Oui"),0,IF(OR('1-J''identifie mon entreprise'!$G$89=1,naf_exclu=1),0,IF(micro_entreprise="Oui",IF(OR($I$5=1,$I$28=1),1,0),1)))) -> 0 | J107: =ROUND(IF(E107="",0,MIN(C107*H107*I107,tx_max*E107)),0) -> 0 | K107: I.AM
A108: ? | B108: Remplacement d'un véhicule thermique par un camion neuf GNV dont le PTAC est inf à 7,5 T | D108: Nombre de véhicules remplacés | F108: 0 | G108: =IF(J108=0,"",IF(J108>=2000,"Oui","Non")) ->  | H108: =4000*(1+(bonus_om*bonus_om_tx)+(bonus_corse*bonus_corse_tx)) -> 4000 | I108: =IF(ZONE_ZFE="Non",0,IF(AND(code_naf="8411Z",collectivite_locale<>"Oui"),0,IF(OR('1-J''identifie mon entreprise'!$G$89=1,naf_exclu=1),0,IF(micro_entreprise="Oui",IF(OR($I$5=1,$I$28=1),1,0),1)))) -> 0 | J108: =ROUND(IF(E108="",0,MIN(C108*H108*I108,tx_max*E108)),0) -> 0 | K108: I.AM
A109: ? | B109: Remplacement d'un camion thermique ou BOM thermique par un camion neuf électrique ( PTAC inf à 19T) ou une BOM électrique | D109: Nombre de véhicules remplacés | F109: 0 | H109: =25000*(1+(bonus_om*bonus_om_tx)+(bonus_corse*bonus_corse_tx)) -> 25000 | I109: =IF(ZONE_ZFE="Non",0,IF(AND(code_naf="8411Z",collectivite_locale<>"Oui"),0,IF(OR('1-J''identifie mon entreprise'!$G$89=1,naf_exclu=1),0,IF(micro_entreprise="Oui",IF(OR($I$5=1,$I$28=1),1,0),1)))) -> 0 | J109: 0 | K109: I.AM
A110: ? | B110: Remplacement d'un véhicule thermique par un camion neuf GNV dont le PTAC est inf ou égal à 19T | D110: Nombre de véhicules remplacés | F110: 0 | H110: =8000*(1+(bonus_om*bonus_om_tx)+(bonus_corse*bonus_corse_tx)) -> 8000 | I110: =IF(ZONE_ZFE="Non",0,IF(AND(code_naf="8411Z",collectivite_locale<>"Oui"),0,IF(OR('1-J''identifie mon entreprise'!$G$89=1,naf_exclu=1),0,IF(micro_entreprise="Oui",IF(OR($I$5=1,$I$28=1),1,0),1)))) -> 0 | J110: 0 | K110: I.AM
A111: ? | B111: Transformation d'une fourgonnette, d'un fourgon ou d'un camion à motorisation thermique en motorisation électrique (retrofit) | D111: Nombre de véhicules concernés | F111: 0 | H111: =10000*(1+(bonus_om*bonus_om_tx)+(bonus_corse*bonus_corse_tx)) -> 10000 | I111: =IF(ZONE_ZFE="Non",0,IF(AND(code_naf="8411Z",collectivite_locale<>"Oui"),0,IF(OR('1-J''identifie mon entreprise'!$G$89=1,naf_exclu=1),0,IF(micro_entreprise="Oui",IF(OR($I$5=1,$I$28=1),1,0),1)))) -> 0 | J111: 0 | K111: I.AM
A112: ? | B112: Transformation d'une fourgonnette, d'un fourgon ou d'un camion à motorisation thermique en motorisation GNV (retrofit) | D112: Nombre de véhicules concernés | F112: 0 | H112: =10000*(1+(bonus_om*bonus_om_tx)+(bonus_corse*bonus_corse_tx)) -> 10000 | I112: =IF(ZONE_ZFE="Non",0,IF(AND(code_naf="8411Z",collectivite_locale<>"Oui"),0,IF(OR('1-J''identifie mon entreprise'!$G$89=1,naf_exclu=1),0,IF(micro_entreprise="Oui",IF(OR($I$5=1,$I$28=1),1,0),1)))) -> 0 | J112: 0 | K112: I.AM
A113: ? | B113: Véhicule utilitaire léger frigorifique : achat d’un groupe frigorifique électrique | D113: Nombre de véhicules concernés | F113: 0 | H113: =5000*(1+(bonus_om*bonus_om_tx)+(bonus_corse*bonus_corse_tx)) -> 5000 | I113: =IF(ZONE_ZFE="Non",0,IF(AND(code_naf="8411Z",collectivite_locale<>"Oui"),0,IF(OR('1-J''identifie mon entreprise'!$G$89=1,naf_exclu=1),0,IF(micro_entreprise="Oui",IF(OR($I$5=1,$I$28=1),1,0),1)))) -> 0 | J113: 0 | K113: =IF(OR($I$5=1,$I$28=1),"L.ET","I.AM") -> I.AM
A114: ? | B114: Vélo de service à assistance électrique, pliant ou adapté PMR | D114: Nombre de vélos électrique | F114: 0 | H114: =1000*(1+(bonus_om*bonus_om_tx)+(bonus_corse*bonus_corse_tx)) -> 1000 | I114: =IF(ZONE_ZFE="Non",0,IF(AND(code_naf="8411Z",collectivite_locale<>"Oui"),0,IF(OR('1-J''identifie mon entreprise'!$G$89=1,naf_exclu=1),0,IF(micro_entreprise="Oui",IF(OR($I$5=1,$I$28=1),1,0),1)))) -> 0 | J114: 0 | K114: I.AM
A115: ? | B115: Vélo cargo pour un usage professionnel | D115: Nombre de vélos cargos | F115: 0 | H115: =1500*(1+(bonus_om*bonus_om_tx)+(bonus_corse*bonus_corse_tx)) -> 1500 | I115: =IF(ZONE_ZFE="Non",0,IF(AND(code_naf="8411Z",collectivite_locale<>"Oui"),0,IF(OR('1-J''identifie mon entreprise'!$G$89=1,naf_exclu=1),0,IF(micro_entreprise="Oui",IF(OR($I$5=1,$I$28=1),1,0),1)))) -> 0 | J115: 0 | K115: =IF(OR($I$5=1,$I$28=1),"L.ET","I.AM") -> I.AM
A116: ? | B116: Abris à vélo avec toit | D116: Capacité d'accueil de l'abris en nombre de vélos | F116: 0 | H116: =250*(1+(bonus_om*bonus_om_tx)+(bonus_corse*bonus_corse_tx)) -> 250 | I116: =IF(ZONE_ZFE="Non",0,IF(AND(code_naf="8411Z",collectivite_locale<>"Oui"),0,IF(OR('1-J''identifie mon entreprise'!$G$89=1,naf_exclu=1),0,IF(micro_entreprise="Oui",IF(OR($I$5=1,$I$28=1),1,0),1)))) -> 0 | J116: 0 | K116: =IF(OR($I$5=1,$I$28=1),"L.ET","I.AM") -> I.AM
A117: ? | B117: Diagnostic de flottes de véhicules | D117: Oui/Non | F117: 0 | H117: =20000*(1+(bonus_om*bonus_om_tx)+(bonus_corse*bonus_corse_tx)) -> 20000 | I117: =IF(ZONE_ZFE="Non",0,IF(AND(code_naf="8411Z",collectivite_locale<>"Oui"),0,IF(OR('1-J''identifie mon entreprise'!$G$89=1,naf_exclu=1),0,IF(micro_entreprise="Oui",IF(OR($I$5=1,$I$28=1),1,0),1)))) -> 0 | J117: =ROUND(IF(E117="",0,MIN(H117*(J116*I116+J115*I115+J114*I114+J113*I113+J112*I112+J111*I111+J110*I110+J109*I109+J108*I108+J107*I107+J106*I106+J105*I105+J104*I104+J103*I103)*I117*C117,tx_max*E117)),0) -> 0 | K117: I.AM
I118: =I100 -> 0
B119: Mes actions liées à l'économie circulaire et la gestion des déchets | I119: =IF(OR('1-J''identifie mon entreprise'!$G$89=1,naf_exclu=1,AND(OR(code_naf="8413Z",code_naf="8411Z"),$I$4=0,$I$27=0)),0,IF(micro_entreprise="Oui",IF(OR($I$5=1,$I$28=1),1,0),1)) -> 1
B120: Nom de l'action | C120: Quantité | D120: Type d'unité | E120: Coût prévisionnel total HT | F120: Montant prévisionnel de l'aide ADEME | G120: Devis à joindre à la demande d'aide ? | I120: =IF(OR('1-J''identifie mon entreprise'!$G$89=1,naf_exclu=1,AND(OR(code_naf="8413Z",code_naf="8411Z"),$I$4=0,$I$27=0)),0,IF(micro_entreprise="Oui",IF(OR($I$5=1,$I$28=1),1,0),1)) -> 1
A121: ? | B121: Etat des lieux et proposition pour trier les déchets de bois, papier/carton, métaux, verre et plastiques ainsi que les fractions minérales et le plâtre | D121: Oui/Non | F121: =MIN(SUM(J121:J137),50000*(1+(bonus_om*bonus_om_tx)+(bonus_corse*bonus_corse_tx))) -> 0 | G121: =IF(J121=0,"","Oui") ->  | H121: =3000*(1+(bonus_om*bonus_om_tx)+(bonus_corse*bonus_corse_tx)) -> 3000 | I121: =IF(OR('1-J''identifie mon entreprise'!$G$89=1,naf_exclu=1,AND(OR(code_naf="8413Z",code_naf="8411Z"),$I$4=0,$I$27=0)),0,IF(micro_entreprise="Oui",IF(OR($I$5=1,$I$28=1),1,0),1)) -> 1 | J121: =ROUND(IF(E121="",0,MIN(C121*H121*I121,tx_max*E121)),0) -> 0 | K121: I.DP
A122: ? | B122: Analyse de process pour la prévention des déchets (méthode Comptabilité des flux de matière) | D122: Oui/Non | G122: =IF(J122=0,"","Oui") ->  | H122: =5000*(1+(bonus_om*bonus_om_tx)+(bonus_corse*bonus_corse_tx)) -> 5000 | I122: =IF(OR('1-J''identifie mon entreprise'!$G$89=1,naf_exclu=1,AND(OR(code_naf="8413Z",code_naf="8411Z"),$I$4=0,$I$27=0)),0,IF(micro_entreprise="Oui",IF(OR($I$5=1,$I$28=1),1,0),1)) -> 1 | J122: 0 | K122: I.DP
A123: ? | B123: Diagnostic pour réduire les emballages ou remplacer des emballages plastiques par d’autres | D123: Oui/Non | G123: =IF(J123=0,"","Oui") ->  | H123: =5000*(1+(bonus_om*bonus_om_tx)+(bonus_corse*bonus_corse_tx)) -> 5000 | I123: =IF(OR('1-J''identifie mon entreprise'!$G$89=1,naf_exclu=1,AND(OR(code_naf="8413Z",code_naf="8411Z"),$I$4=0,$I$27=0)),0,IF(micro_entreprise="Oui",IF(OR($I$5=1,$I$28=1),1,0),1)) -> 1 | J123: 0 | K123: L.DI
A124: ? | B124: Soutien aux réparateurs : logiciels, progiciels et outils de réparation | D124: Oui/Non | G124: =IF(J124=0,"","Oui") ->  | H124: =2500*(1+(bonus_om*bonus_om_tx)+(bonus_corse*bonus_corse_tx)) -> 2500 | I124: =IFERROR(IF(OR('1-J''identifie mon entreprise'!C8="Réparation d'ordinateurs et de biens personnels et domestiques",code_naf="9499Z"),IF(AND(code_naf="9529Z",'1-J''identifie mon entreprise'!$D$16=List!$AD$6),0,IF(OR(micro_entreprise="Oui",'1-J''identifie mon entreprise'!G89=1,naf_exclu=1),0,1)),0),0) -> 0 | J124: 0 | K124: I.DP
A125: ? | B125: Bilan des matières entrantes dans et sortantes de l’entreprise (méthode Bilan matière) | D125: Oui/Non | G125: =IF(J125=0,"","Oui") ->  | H125: =7000*(1+(bonus_om*bonus_om_tx)+(bonus_corse*bonus_corse_tx)) -> 7000 | I125: =IF(OR('1-J''identifie mon entreprise'!$G$89=1,naf_exclu=1,AND(OR(code_naf="8413Z",code_naf="8411Z"),$I$4=0,$I$27=0)),0,IF(micro_entreprise="Oui",IF(OR($I$5=1,$I$28=1),1,0),1)) -> 1 | J125: 0 | K125: I.DP
A126: ? | B126: Récupération des eaux de pluie | D126: Nombre de cuves enterrées de 10 m3 | G126: =IF(J126=0,"",IF(J126>=2000,"Oui","Non")) ->  | H126: =2500*(1+(bonus_om*bonus_om_tx)+(bonus_corse*bonus_corse_tx)) -> 2500 | I126: =IF(OR('1-J''identifie mon entreprise'!$G$89=1,naf_exclu=1,AND(OR(code_naf="8413Z",code_naf="8411Z"),$I$4=0,$I$27=0)),0,IF(micro_entreprise="Oui",IF(OR($I$5=1,$I$28=1),1,0),1)) -> 1 | J126: 0 | K126: I.DP
A127: ? | B127: Compacteurs mécaniques (cartons, plastiques, textiles et toutes autres matières valorisables…) et/ou broyeurs de végétaux | D127: Nombre de compacteurs | H127: =4000*(1+(bonus_om*bonus_om_tx)+(bonus_corse*bonus_corse_tx)) -> 4000 | I127: =IF(OR('1-J''identifie mon entreprise'!$G$89=1,naf_exclu=1,AND(OR(code_naf="8413Z",code_naf="8411Z"),$I$4=0,$I$27=0)),0,IF(micro_entreprise="Oui",IF(OR($I$5=1,$I$28=1),1,0),1)) -> 1 | J127: 0 | K127: I.DP
A128: ? | B128: Concasseur mobile (déchets inertes du BTP) | D128: Nombre de concasseurs | H128: =15000*(1+(bonus_om*bonus_om_tx)+(bonus_corse*bonus_corse_tx)) -> 15000 | I128: 0 | J128: 0 | K128: I.DP
A129: ? | B129: Préparation des biodéchets : mise en place du tri, pré-collecte, formation du personnel, signalétique | D129: Oui/Non | H129: =6000*(1+(bonus_om*bonus_om_tx)+(bonus_corse*bonus_corse_tx)) -> 6000 | I129: =IF(OR('1-J''identifie mon entreprise'!$G$89=1,naf_exclu=1,AND(OR(code_naf="8413Z",code_naf="8411Z"),$I$4=0,$I$27=0)),0,IF(micro_entreprise="Oui",IF(OR($I$5=1,$I$28=1),1,0),1)) -> 1 | J129: 0 | K129: I.DP
A130: ? | B130: Composteur en bac pour biodéchets | D130: Nombre de composteurs | H130: =100*(1+(bonus_om*bonus_om_tx)+(bonus_corse*bonus_corse_tx)) -> 100 | I130: =IF(OR('1-J''identifie mon entreprise'!$G$89=1,naf_exclu=1,AND(OR(code_naf="8413Z",code_naf="8411Z"),$I$4=0,$I$27=0)),0,IF(micro_entreprise="Oui",IF(OR($I$5=1,$I$28=1),1,0),1)) -> 1 | J130: 0 | K130: I.DP
A131: ? | B131: Pavillon de compostage pour biodéchets | D131: Nombre de composteurs | H131: =2000*(1+(bonus_om*bonus_om_tx)+(bonus_corse*bonus_corse_tx)) -> 2000 | I131: =IF(OR('1-J''identifie mon entreprise'!$G$89=1,naf_exclu=1,AND(OR(code_naf="8413Z",code_naf="8411Z"),$I$4=0,$I$27=0)),0,IF(micro_entreprise="Oui",IF(OR($I$5=1,$I$28=1),1,0),1)) -> 1 | J131: 0 | K131: I.DP
A132: ? | B132: Benne de stockage compartimentée pour le tri des déchets du bâtiment | D132: Nombre de bennes | H132: =2000*(1+(bonus_om*bonus_om_tx)+(bonus_corse*bonus_corse_tx)) -> 2000 | I132: 0 | J132: 0 | K132: I.DP
A133: ? | B133: Contenants de type caisse-palettes ou futs (par lot de 7) pour les déchets du bâtiment | D133: Nombre de lot de 7 caisse-palettes | H133: =1500*(1+(bonus_om*bonus_om_tx)+(bonus_corse*bonus_corse_tx)) -> 1500 | I133: 0 | J133: 0 | K133: I.DP
A134: ? | B134: Contenants de type bacs à roulettes (par lot de 7) pour les déchets du bâtiment | D134: Nombre de lots de 7 bacs | H134: =500*(1+(bonus_om*bonus_om_tx)+(bonus_corse*bonus_corse_tx)) -> 500 | I134: 0 | J134: 0 | K134: I.DP
A135: ? | B135: Contenants souples de type big-bags réutilisables (lot de 7) et portants pour maintien big-bags ouverts pour les déchets du bâtiment | D135: Nombre de lots de 7 big-bags | H135: =800*(1+(bonus_om*bonus_om_tx)+(bonus_corse*bonus_corse_tx)) -> 800 | I135: 0 | J135: 0 | K135: I.DP
A136: ? | B136: Broyeurs de déchets plastiques pour réutilisation dans le process | D136: Nombre de broyeurs | H136: 20000 | I136: 0 | J136: 0 | K136: L.DI
A137: ? | B137: Etude de dimensionnement économie circulaire | D137: Oui/Non | H137: =IF(SUM(E126:E135)<25000,0,15%) -> 0 | I137: 0 | J137: =ROUND(IF(E137="",0,MIN(C137*H137*I137*SUM(J126:J135),tx_max*E137)),0) -> 0 | K137: I.DP
A138: ? | B138: Broyeurs de déchets plastiques pour réutilisation dans le process | D138: Nombre de broyeurs | F138: =ROUND(IF(E138="",0,MIN(C138*H138*I138,tx_max*E138)),0) -> 0 | G138: =IF(J138=0,"",IF(J138>=2000,"Oui","Non")) ->  | H138: 20000 | I138: =IF(OR('1-J''identifie mon entreprise'!$G$89=1,naf_exclu=1,AFFICHAGE_ORPLAST=0),0,IF(micro_entreprise="Oui",IF(OR($I$5=1,$I$28=1),1,0),1)) -> 0 | J138: =ROUND(IF(E138="",0,MIN(C138*H138*I138,tx_max*E138)),0) -> 0 | K138: L.DI
A139: ? | B139: Acquisition d’emballage ou de contenants réemployables en substitution du plastique à usage unique | D139: Oui/Non | F139: =ROUND(IF(E139="",0,MIN(C139*H139*I139,tx_max*E139)),0) -> 0 | G139: =IF(J139=0,"",IF(J139>=2000,"Oui","Non")) ->  | H139: =5000*(1+(bonus_om*bonus_om_tx)+(bonus_corse*bonus_corse_tx)) -> 5000 | I139: =IF(OR('1-J''identifie mon entreprise'!$G$89=1,naf_exclu=1,AFFICHAGE_EMBALLAGE=0),0,IF(micro_entreprise="Oui",IF(OR($I$5=1,$I$28=1),1,0),1)) -> 0 | J139: =ROUND(IF(E139="",0,MIN(C139*H139*I139,tx_max*E139)),0) -> 0 | K139: L.DI
I140: =IF(OR('1-J''identifie mon entreprise'!$G$89=1,naf_exclu=1,AND(OR(code_naf="8413Z",code_naf="8411Z"),$I$4=0,$I$27=0)),0,IF(micro_entreprise="Oui",IF(OR($I$5=1,$I$28=1),1,0),1)) -> 1
B141: Mes actions liées à l'écoconception et aux labélisations | I141: =IF(OR('1-J''identifie mon entreprise'!$G$89=1,naf_exclu=1,AND(OR(code_naf="8413Z",code_naf="8411Z"),$I$4=0,$I$27=0)),0,IF(micro_entreprise="Oui",IF(OR($I$5=1,$I$28=1),1,0),1)) -> 1
B142: Nom de l'action | C142: Quantité | D142: Type d'unité | E142: Coût prévisionnel total HT | F142: Montant prévisionnel de l'aide ADEME | G142: Devis à joindre à la demande d'aide ? | I142: =IF(OR('1-J''identifie mon entreprise'!$G$89=1,naf_exclu=1,AND(OR(code_naf="8413Z",code_naf="8411Z"),$I$4=0,$I$27=0)),0,IF(micro_entreprise="Oui",IF(OR($I$5=1,$I$28=1),1,0),1)) -> 1
A143: ? | B143: Premiers pas éco-conception | D143: Oui/Non | F143: =MIN(SUM(J143:J148),50000*(1+(bonus_om*bonus_om_tx)+(bonus_corse*bonus_corse_tx))) -> 0 | G143: =IF(J143=0,"","Oui") ->  | H143: =5000*(1+(bonus_om*bonus_om_tx)+(bonus_corse*bonus_corse_tx)) -> 5000 | I143: =IF(OR('1-J''identifie mon entreprise'!$G$89=1,naf_exclu=1,AND(OR(code_naf="8413Z",code_naf="8411Z"),$I$4=0,$I$27=0)),0,IF(micro_entreprise="Oui",IF(OR($I$5=1,$I$28=1),1,0),1)) -> 1 | J143: =ROUND(IF(E143="",0,MIN(C143*H143*I143,tx_max*E143)),0) -> 0 | K143: L.EE
A144: ? | B144: Mise en œuvre d'un affichage environnemental pour les produits de l'entreprise | D144: Oui/Non | G144: =IF(J144=0,"","Oui") ->  | H144: =8000*(1+(bonus_om*bonus_om_tx)+(bonus_corse*bonus_corse_tx)) -> 8000 | I144: =IF(OR('1-J''identifie mon entreprise'!$G$89=1,naf_exclu=1,AND(OR(code_naf="8413Z",code_naf="8411Z"),$I$4=0,$I$27=0)),0,IF(micro_entreprise="Oui",IF(OR($I$5=1,$I$28=1),1,0),1)) -> 1 | J144: 0 | K144: L.EE
A145: ? | B145: Dispositif de vérification externe de l'affichage environnemental | D145: Nombre d'échantillons | G145: =IF(J145=0,"",IF(J145>=2000,"Oui","Non")) ->  | H145: =3000*(1+(bonus_om*bonus_om_tx)+(bonus_corse*bonus_corse_tx)) -> 3000 | I145: =IF(OR('1-J''identifie mon entreprise'!$G$89=1,naf_exclu=1,AND(OR(code_naf="8413Z",code_naf="8411Z"),$I$4=0,$I$27=0)),0,IF(micro_entreprise="Oui",IF(OR($I$5=1,$I$28=1),1,0),1)) -> 1 | J145: 0 | K145: L.EE
A146: ? | B146: Mise en œuvre de l’Ecolabel Européen sur les produits ou les services de l'entreprise | D146: Oui/Non | G146: =IF(J146=0,"","Oui") ->  | H146: =12000*(1+(bonus_om*bonus_om_tx)+(bonus_corse*bonus_corse_tx)) -> 12000 | I146: =IF(OR('1-J''identifie mon entreprise'!$G$89=1,naf_exclu=1,AND(OR(code_naf="8413Z",code_naf="8411Z"),$I$4=0,$I$27=0)),0,IF(micro_entreprise="Oui",IF(OR($I$5=1,$I$28=1),1,0),1)) -> 1 | J146: 0 | K146: L.EE
A147: ? | B147: Certification écolabel européen de produits ou service | D147: Nombre de produits et services concernés | G147: =IF(J147=0,"",IF(J147>=2000,"Oui","Non")) ->  | H147: =2000*(1+(bonus_om*bonus_om_tx)+(bonus_corse*bonus_corse_tx)) -> 2000 | I147: =IF(OR('1-J''identifie mon entreprise'!$G$89=1,naf_exclu=1,AND(OR(code_naf="8413Z",code_naf="8411Z"),$I$4=0,$I$27=0)),0,IF(micro_entreprise="Oui",IF(OR($I$5=1,$I$28=1),1,0),1)) -> 1 | J147: 0 | K147: L.EE
A148: ? | B148: Accompagnement à la labellisation "Numérique responsable" | D148: Oui/Non | G148: =IF(J148=0,"","Oui") ->  | H148: =3000*(1+(bonus_om*bonus_om_tx)+(bonus_corse*bonus_corse_tx)) -> 3000 | I148: =IF(OR(naf_section="Section A",'1-J''identifie mon entreprise'!$G$89=1,naf_exclu=1,AND(OR(code_naf="8413Z",code_naf="8411Z"),$I$4=0,$I$27=0)),0,IF(micro_entreprise="Oui",IF(OR($I$5=1,$I$28=1),1,0),1)) -> 1 | J148: 0 | K148: L.EE
I149: =IF(OR('1-J''identifie mon entreprise'!$G$89=1,naf_exclu=1,AND(OR(code_naf="8413Z",code_naf="8411Z"),$I$4=0,$I$27=0)),0,IF(micro_entreprise="Oui",IF(OR($I$5=1,$I$28=1),1,0),1)) -> 1
B150: PLAN DE FINANCEMENT DE MES ACTIONS | I150: 0
I151: 0
B152: Type | C152: Mode de financement | F152: Montant (HTR) | I152: 0
B153: Aides publiques | C153: Aide ADEME maximum avant analyse | F153: =F176 -> 0 | I153: 0
C154: Région | I154: 0
C155: Etat | I155: 0
C156: FEDER | I156: 0
C157: A préciser | I157: 0
C158: A préciser | I158: 0
C159: A préciser | I159: 0
C160: Sous-total des aides publiques | F160: =SUM(F153:G159) -> 0 | I160: 0
B161: Aides privées | C161: Certificats d'économie d'énergie | I161: 0
C162: A préciser | I162: 0
C163: A préciser | I163: 0
C164: Sous-total des aides privées | F164: =SUM(F161:G163) -> 0 | I164: 0
B165: Auto-financement | C165: Fonds propres | F165: =F170-F160-F164-F166-F167-F168 -> 0 | I165: 0
C166: Emprunt | I166: 0
C167: Crédit-Bail | I167: 0
C168: A préciser | I168: 0
C169: Sous-total de l'auto-financement | F169: =SUM(F165:G168) -> 0 | I169: 0
B170: TOTAL DE L'OPERATION | F170: =F174 -> 0 | I170: 0
I171: 0
B172: SYNTHESE | I172: =I174 -> 1
I173: =I174 -> 1
E174: Le coût total estimé de mon opération est de : | F174: =SUMPRODUCT(E29:E45,I29:I45)+SUMPRODUCT(E6:E25,I6:I25)+SUMPRODUCT(E125:E139,I125:I139)+SUMPRODUCT(E143:E148,I143:I148)+SUMPRODUCT(E121:E124,I121:I124)+SUMPRODUCT(E101:E117,I101:I117)+SUMPRODUCT(E91:E97,I91:I97)+SUMPRODUCT(E81:E87,I81:I87)+SUMPRODUCT(E73:E77,I73:I77)+SUMPRODUCT(E65:E69,I65:I69)+SUMPRODUCT(E55:E61,I55:I61)+SUMPRODUCT(E49:E51,I49:I51) -> 0 | I174: =IF(OR(SUM($I$4:$I$149)=0,'1-J''identifie mon entreprise'!$G$89=1,naf_exclu=1),0,IF(micro_entreprise="Oui",IF(OR($I$5=1,$I$28=1),1,0),1)) -> 1
E175: Le montant total de l'aide demandée à l'ADEME : | F175: =F6*I5+SUMPRODUCT(I29:I41,F29:F41)+I48*F50+I54*(F55+F58+F59)+F60*I60+F61*I61+I64*F65+I72*F73+I80*F81+SUMPRODUCT(F91:F97,I91:I97)+SUMPRODUCT(F101:F117,I101:I117)+I120*(F121+F138+F139)+SUMPRODUCT(I143:I148,F143:F148) -> 0 | I175: =IF(OR(SUM($I$4:$I$149)=0,'1-J''identifie mon entreprise'!$G$89=1,naf_exclu=1),0,IF(micro_entreprise="Oui",IF(OR($I$5=1,$I$28=1),1,0),1)) -> 1
E176: Le montant maximum prévisionnel de l'aide ADEME (avant analyse) est de : | F176: =ROUNDDOWN(IF(F175<IF(AND(I124=1,C124>0),2500,5000),0,MIN('1-J''identifie mon entreprise'!E107,F175)),0) -> 0 | I176: =IF(OR(SUM($I$4:$I$149)=0,'1-J''identifie mon entreprise'!$G$89=1,naf_exclu=1),0,IF(micro_entreprise="Oui",IF(OR($I$5=1,$I$28=1),1,0),1)) -> 1 | L176: =IFERROR(MIN(100%,F176/F175),0) -> 0
I177: =IF(I176=1,0,1) -> 0
B178: Les micro-entreprises ne sont pas éligibles à ce programme. | I178: =IF(OR(naf_section="Section A",naf_exclu=1),0,IF(micro_entreprise="Oui",IF(OR($I$5=1,$I$28=1),0,1),0)) -> 0
B179: Votre secteur d'activité n'est en principe pas éligibles à ce programme. | I179: =IF(OR(SUM($I$4:$I$149)=0,naf_exclu=1),1,0) -> 0
B180: Aucune aide ne peut être accordée aux entreprises en difficulté avant le 31/12/2019. | I180: =IF('1-J''identifie mon entreprise'!G89=1,1,0) -> 0
B181: Si vous avez une activité supplémentaire d’hébergement/restauration, vous pouvez contactez la direction régionale de l'ADEME. | I181: 0
B182: https://www.ademe.fr/lademe/presentation-lademe/liste-implantations-lademe | I182: 0

Sheet 3-Synthese et finalisation
B11: Tremplin pour la transition écologique des PME
B13: SYNTHESE
B16: Coût total estimé du projet : | L16: ='2-Je choisis mes actions'!F174 -> 0 | O16: 1
C17: ='2-Je choisis mes actions'!B6 -> Modèle d'affaires Restauration durable | L17: ='2-Je choisis mes actions'!E6 -> 0 | M17: =IF(P17="Oui","Devis à joindre","Pas besoin de devis") -> Pas besoin de devis | O17: =IF('2-Je choisis mes actions'!I6=0,0,IF(L17>0,1,0)) -> 0 | P17: ='2-Je choisis mes actions'!G6 -> 
C18: Un consultant peut vous accompagner dans l’établissement d’un nouveau modèle d’affaires. Suite à une expertise de vos dépenses courantes, une analyse des consommations de l'établissement et à une étude de marché, le prestataire évaluera les investissements et revenus attendus d'une activité de restauration avec un caractère durable affirmé, en particulier sur les volets : - Carte de restauration plus durable ; - Circuits courts de proximité et valorisation des produits locaux ; - Lutte contre le gaspillage alimentaire - Maîtrise des consommations (énergie, eau) et contrats d'énergie verte ; - Mobilités douces des clients ; - Valorisation du patrimoine naturel (ex.: refuge LPO). Le prestataire remettra le rapport final à l’établissement, qui le tiendra à disposition de l'ADEME. | O18: =O17 -> 0
C19: ='2-Je choisis mes actions'!B7 -> Formation à la cuisine durable et aux éco-gestes en restauration | L19: ='2-Je choisis mes actions'!E7 -> 0 | M19: Pas besoin de devis | O19: =IF('2-Je choisis mes actions'!I7=0,0,IF(L19>0,1,0)) -> 0 | P19: ='2-Je choisis mes actions'!G7 -> 
C20: Cette action vise à encourager la formation du personnel temporaire et permanent aux enjeux et techniques de l’alimentation durable et aux éco-gestes en restauration. Vous pouvez bénéficier d’une aide pour financer une formation courte pour un ou plusieurs salariés de l’entreprise sur les cuisines végétales ou alternatives, la lutte contre le gaspillage alimentaire, les éco-gestes en restauration, les enjeux environnementaux de l’alimentation, l’alimentation durable etc. La formation doit être dispensée par un organisme de formation habilité. Le bénéficiaire conservera les attestations de formation qu’il tiendra à disposition de l’ADEME. | O20: =O19 -> 0
C21: ='2-Je choisis mes actions'!B8 -> Communication - Supports/actions de communication valorisant la restauration durable | L21: ='2-Je choisis mes actions'!E8 -> 0 | M21: Pas besoin de devis | O21: =IF('2-Je choisis mes actions'!I8=0,0,IF(L21>0,1,0)) -> 0 | P21: ='2-Je choisis mes actions'!G8 -> 
C22: Cette ligne consiste à soutenir les actions de communication pérennes qui mettent en valeur la démarche durable du restaurant, les producteurs et fournisseurs locaux, ainsi que les écogestes dans le restaurant pour les salarié.e.s et pour les client.e.s : achat de supports de communication matériels ou numérique pérennes et/ou actions immatérielles à vocation pérenne. En activant cette ligne, le bénéficiaire s'engage à mettre en avant auprès des clients et des salariés l’alimentation durable, la lutte contre le gaspillage, les approvisionnements de proximité et circuits courts, les éco-gestes ou les engagements environnementaux. Vous pouvez bénéficier d’une aide pour : - Des achats de supports de communication matériels ou numériques pérennes : o L’achat de panneaux/supports en matériaux durables pour les menus du jour ; le renouvellement des cartes pour l’évolution de celle-ci en lien avec les engagements pris et la mise en valeur des approvisionnements locaux / sous labels, à l’exclusion des supports à usage unique. Les panneaux d’affichage électroniques ou écrans ne sont pas éligibles. o L’achat de tableaux/panneaux/supports d’affichage en matériaux biosourcés, naturels ou recyclables, ou supports imprimés à l’exclusion des supports à usage unique pour l’information des client.e.s sur la démarche de transition écologique du restaurant concernant : les actions mises en place sur le restaurant ; les caractéristiques des approvisionnements, notamment alimentaires (local, bio, autres labels…), la valorisation de producteurs partenaires ; le travail réalisé sur les menus et sur la lutte contre le gaspillage ; les éco-gestes au quotidien ; les démarches environnementales du restaurant. Les panneaux d’affichage électroniques ou écrans ne sont pas éligibles. - Les achats de prestations immatérielles : o La création ou l’adaptation de supports de communication imprimés ou numériques (prestation intellectuelle), y compris visuels, photos, stratégie de communication o L’adaptation du site internet ou des supports de communication numérique (réseaux sociaux, plates formes engagées sur la restauration durable) ; dans ce cas le bénéficiaire s'engagera à mettre en place un site éco-conçu selon les recommandations de l'Institut du numérique responsable. | O22: =O21 -> 0
C23: ='2-Je choisis mes actions'!B9 -> Evolution des approvisionnements et des menus | L23: ='2-Je choisis mes actions'!E9 -> 0 | M23: Pas besoin de devis | O23: =IF('2-Je choisis mes actions'!I9=0,0,IF(L23>0,1,0)) -> 0 | P23: ='2-Je choisis mes actions'!G9 -> 
C24: Cette action vise à faire évoluer les approvisionnements et les menus, en favorisant ; - la relocalisation du circuit d’approvisionnement - l’augmentation et la mise en œuvre du végétal, les produits de qualité et/ou durables, - l’ancrage dans le territoire, - le fait-maison via l’usage de produits bruts - la conservation des produits frais. Vous pouvez bénéficier d’une aide pour tout matériel de cuisine ou équipement contribuant à l’objectif, par exemple : - équipements permettant de travailler des produits bruts, végétaux tels que éplucheuses, essoreuses, robots, aménagement spécifique pour une légumerie etc… - équipements nécessaires à la relocalisation des approvisionnements, par exemple emballages navettes avec producteurs locaux - Les équipements permettant de faire de la conservation non énergivore à partir de produits locaux/de saison, sont également éligiblespar exemple : conserves, fermentation, garde-manger etc… - extension, conversion, création d’un potager et/ou verger selon les principes de l’agriculture biologique (pas de certification demandée). Le restaurateur ne pourra pas afficher « produits AB « s’il n’est pas certifié. | O24: =O23 -> 0
C25: ='2-Je choisis mes actions'!B10 -> Lutte contre le gaspillage alimentaire | L25: ='2-Je choisis mes actions'!E10 -> 0 | M25: Pas besoin de devis | O25: =IF('2-Je choisis mes actions'!I10=0,0,IF(L25>0,1,0)) -> 0 | P25: ='2-Je choisis mes actions'!G10 -> 
C26: Cette action vise à suivre et réduire le gaspillage alimentaire en cuisine et en salle. Vous pouvez bénéficier d’une aide pour tout matériel ou équipement contribuant à l’objectif, par exemple : - matériel pour limiter les pertes alimentaires grâce à une meilleure conservation : cellule de refroidissement / surgélation neuve (pour un remplacement ou un retrofit, voir « Mes actions liées à l'efficacité énergétique des équipements de froid commercial »), tables/tours réfrigérées si mise en place en vue de la lutte contre le gaspillage, - matériel pour limiter contre le gaspillage en cuisine : thermomètre ou autre système de vérification de la température des aliments, étiqueteuses, déshydrateurs alimentaires - matériel pour limiter le gaspillage en salle : vaisselle durable adaptable à l'appétit des convives (petites assiettes et grandes assiettes), contenants durables pour permettre les dons (à l'exclusion des contenants en plastique), contenant pour les « doggy bags » réutilisables ou recyclables, balance pour tarification différenciée au poids, - matériel pour suivre le gaspillage alimentaire : matériel de pesée des déchets y compris balances connectées, , licence de logiciel de suivi des pesées du gaspillage alimentaire, table de tri… | O26: =O25 -> 0
C27: ='2-Je choisis mes actions'!B11 -> Prévention des déchets non alimentaires en restauration | L27: ='2-Je choisis mes actions'!E11 -> 0 | M27: Pas besoin de devis | O27: =IF('2-Je choisis mes actions'!I11=0,0,IF(L27>0,1,0)) -> 0 | P27: ='2-Je choisis mes actions'!G11 -> 
C28: Cette action vise à réduire les déchets non alimentaires, au sein du restaurant / pour l’activité de traiteur : - réduction des déchets d’emballages - suppression des produits jetables ou en dose individuelle - équipements permettant la réduction voire la suppression de la consommation de produits non alimentaires, notamment ceux nécessaires au nettoyage, entretien, lavage Vous pouvez bénéficier d’une aide pour tout matériel ou équipement (hors consommables) contribuant à l’objectif : par exemple, matériel navette fournisseurs, contenants pour stockage de produits vrac, contenants durables pour substitution des emballages individuels (café, thé, sucre, sauces...) ; achat vaisselle/couverts/serviettes/nappes/dessous de table pour substituer du jetable ; achat de lavettes et équipements de protection (charlottes, gants, masques, ..) réutilisables en substitution de jetable, équipements permettant de supprimer l’utilisation de produits dangereux ... Le tri et la gestion des biodéchets sont éligibles sur les lignes Tremplin / Economie circulaire. L'acquisition d’emballage ou de contenants réemployables en substitution d'emballages ou contenants en plastique à usage unique (par ex : achat de contenants consignés pour vente à emporter) sont éligibles sur les lignes Tremplin / Economie circulaire. | O28: =O27 -> 0
C29: ='2-Je choisis mes actions'!B12 -> Energie - Economie d’énergie en cuisine (cuisson, froid) | L29: ='2-Je choisis mes actions'!E12 -> 0 | M29: Pas besoin de devis | O29: =IF('2-Je choisis mes actions'!I12=0,0,IF(L29>0,1,0)) -> 0 | P29: ='2-Je choisis mes actions'!G12 -> 
C30: Cette action vise à réaliser des économies d'énergie en cuisine sur les postes de cuisson, lavage et séchage du linge). A noter que le lavage de la vaisselle est concerné par la ligne Eau-Economie d’eau en cuisine). Vous pouvez bénéficier d’une aide pour tout matériel ou équipement contribuant à : - réduire la consommation d’énergie liée à la cuisson. Par exemple : achat de matériel de cuisson ou de froid plus économe en énergie) permettant des économies (thermostats/thermomètres), équipements permettant de réduire la consommation des appareils de cuisson existants (ex : détecteur de marmite…), équipement de cuisson basse énergie, couvercles, équipements pour une cuisson basse consommation… -réduire la consommation d’énergie liée au lavage et au séchage du linge nécessaire à la restauration tels que nappes, serviettes, textiles de cuisine… Pour les sèche-linge ≥ 8 kg - Seuls sont éligibles les sèche-linge professionnels de forte capacité : poids de linge ≥ 8 kg, - Energie de séchage soit inférieure à 0,25 kWh/kg linge. - Pour exemple, TopTen référence ce type d’équipements jusqu’à 23kg (alors que Topten France ne référence les équipements que jusqu’à 9kg) : https://www.topten.ch/business/products/bus_tumble_driers Pour les lave-linge ≥ 7 kg - Les lave-linge commerciaux ou professionnels de choisir ceux avec une consommation < 7 L par kg de linge lavé - Les lave-linge ménagers doivent appartenir à la classe énergétique A et avoir un indice de réparabilité >7.0 Pour les lave-linge et sèche-linge combinés ≥ 7kg - Les lave-linge sèche linge combinés ménagers doivent appartenir à la classe énergétique A A noter : les appareils de cuisson ne sont pas éligibles et l’isolation des meubles réfrigérés et chambres froides et le remplacement d’équipements (armoires frigorifiques, fluides par des matériels avec des fluides émettant moins de gaz à effet de serre), sont visés par d’autres lignes de la rubrique « Mes actions liées à l’efficacité énergétique des équipements de froid commercial ». | O30: =O29 -> 0
C31: ='2-Je choisis mes actions'!B13 -> Energie - Confort d'été et d’hiver liés à l’activité de restauration | L31: ='2-Je choisis mes actions'!E13 -> 0 | M31: =IF(P31="Oui","Devis à joindre","Pas besoin de devis") -> Pas besoin de devis | O31: =IF('2-Je choisis mes actions'!I13=0,0,IF(L31>0,1,0)) -> 0 | P31: ='2-Je choisis mes actions'!G13 -> 
C32: 1/ Concernant le confort d’hiver, les actions visent à améliorer le confort thermique à l’intérieur du restaurant et pour la consommation alimentaire en extérieur. CONFORT EXTERIEUR : cette aide exclut tout dispositif de chauffage consommant de l’énergie. Vous pouvez bénéficier d’une aide pour : achat de couvertures, aménagements brise vent etc…. POUR LE CONFORT INTERIEUR : Pour maintenir la consommation d'énergie à un niveau raisonnable, il est nécessaire de réguler les températures en fonction des besoins réels et de l'occupation ou non des différentes zones du restaurant. Il est notamment très important de posséder un dispositif de régulation thermique. Vous pouvez bénéficier d’une aide pour financer des robinets thermostatiques de radiateur, un dispositif de détection d'ouverture de fenêtre permettant d’interrompre le chauffage (et la climatisation si elle est présente), un programmateur horaire, ou un système de gestion par zone des consignes des radiateurs. En activant cette ligne, le bénéficiaire s'engage sur des consignes de température selon leur occupation : 20°C à 22°C si restaurant occupé ; 16°C à 18°C si restaurant inoccupé pendant une courte période ; maintien à 12°C-14°C si inoccupé pendant une longue période. 2/ Concernant le confort d’été : Cette action vise à la fois à maîtriser les consommations d’énergie liées à la climatisation (en été), et à améliorer le confort thermique sur ces saisons, dans le cadre de l’activité de restauration (bâtiment et extérieurs dédiés à l’activité de restauration). Les actions ont pour objectif de limiter voire supprimer l’usage de la climatisation par : - Amélioration de l’ombrage et la préservation du frais à l'extérieur en été ; - Réduction des apports de chaleur à l’intérieur en agissant sur la protection des ouvertures et l’apport de frais par la végétalisation et la désimperméabilisation Sont éligibles : - protection des ouvrants : pose de volets, stores pare-soleil intérieurs ou extérieurs, films solaires sur les ouvrants… - Création de rafraîchissement par ombrage et évapotranspiration des plantations pour espaces extérieurs de restauration et ombrage des vitrages et murs = uniquement par végétalisation : plantation, pergolas en bois naturel avec ombrage végétal - Végétalisation (plantations adaptées aux futures conditions climatiques et cohérentes avec la biodiversité locale : choisir des plantes peu gourmandes en eau et privilégier le paillage) : étude climatique et paysagère, préparation et plantation des murs végétaux - Travaux de désimperméabilisation - Plantations adaptées aux conditions climatiques Non éligibles : rideaux, voilages, ombrières, changement de menuiseries en double vitrage | O32: =O31 -> 0
C33: ='2-Je choisis mes actions'!B14 -> Eau - Dispositifs d'économie d'eau en cuisine | L33: ='2-Je choisis mes actions'!E14 -> 0 | M33: =IF(P33="Oui","Devis à joindre","Pas besoin de devis") -> Pas besoin de devis | O33: =IF('2-Je choisis mes actions'!I14=0,0,IF(L33>0,1,0)) -> 0 | P33: ='2-Je choisis mes actions'!G14 -> 
C34: Cette action vise à réaliser des économies d'eau en cuisine pour le lavage et la préparation des repas. Cette action concerne les points d'eau des cuisines . Vous pouvez bénéficier d’une aide pour : - Robinetterie : Les économiseurs d'eau, les mitigeurs d’eau… - Les équipements pour récupérer ou réutiliser l’eau - Les équipements de lavage économes en eau et les lave-vaisselle selon critères eau + énergie mentioonnés ci-dessous - Equipements de suivi des consommations d’eau Pour les lave-vaisselle, l’obligation de respecter les critères suivants : - respecter les seuils de consommation d’eau - soit eau de rinçage finale de la machine principale max 3.0 litres/panier (selon Ecolabel Nordic swan) - soit consommation d’eau conforme au critère C44 de l’écolabel européen sur les hébergements : - 10 litres/cycle pour un lave-vaisselle ménagers 15 couverts ; - 10 litres/cycle pour un lave-vaisselle ménagers 14 couverts ; - 10 litres/cycle pour un lave-vaisselle ménagers 13 couverts ; - 9 litres/cycle pour un lave-vaisselle ménagers 12 couverts ; - 9 litres/cycle pour un lave-vaisselle ménagers 9 couverts ; - 7 litres/cycle pour un lave-vaisselle ménagers 6 couverts ; - 9,5 litres/cycle pour un lave-vaisselle ménagers 4 couverts ; - ET appartenir au minimum à la classe énergétique A++ selon le système d'étiquetage énergétique de l'UE conformément à l'annexe VI du règlement délégué (UE) nº 1059/2010 de la Commission ou la classe A ou B depuis le 01/01/2021 | O34: =O33 -> 0
C35: ='2-Je choisis mes actions'!B15 -> Eau - Dispositifs d'économie d'eau dans les sanitaires des restaurants / de l’activité de restauration | L35: ='2-Je choisis mes actions'!E15 -> 0 | M35: =IF(P35="Oui","Devis à joindre","Pas besoin de devis") -> Pas besoin de devis | O35: =IF('2-Je choisis mes actions'!I15=0,0,IF(L35>0,1,0)) -> 0 | P35: ='2-Je choisis mes actions'!G15 -> 
C36: Cette action vise à réaliser des économies d'eau dans les sanitaires des restaurants / de l’activité de restauration (sanitaires du personnel et/ou des convives). Vous pouvez bénéficier d’une aide pour : - Equipements des lavabos : Les économiseurs d'eau, les robinets mitigeurs pour les lavabos : - Equipements pour les WC : Les chasses d’eau à double commande et/ou plaquette de réservoir pour les toilettes. - Urinoirs avec écoulement déclenché en fonction de la présence, urinoirs sans eau - Equipements de suivi des consommations d’eau - Les toilettes sèches, qui ne requièrent aucune utilisation d'eau. Plusieurs systèmes existent (à compost, à séparation etc.) pouvant convenir aux différentes contraintes d'usage ou de bâtiment. Avant installation, le bénéficiaire se renseignera auprès des compétences locales pour connaître la règlementation inhérente aux départements en matière de toilettes sèches. L’auto-installation des équipements économiseurs d’eau est autorisée. Le bénéficiaire s’engage à mettre en place simultanément une information de ses clients aux éco-gestes et aux économies d’eau. | O36: =O35 -> 0
C37: ='2-Je choisis mes actions'!B16 -> Eau - dispositifs d’économie d’eau pour les espaces extérieurs et potagers liés à l'activité de restauration | L37: ='2-Je choisis mes actions'!E16 -> 0 | M37: =IF(P37="Oui","Devis à joindre","Pas besoin de devis") -> Pas besoin de devis | O37: =IF('2-Je choisis mes actions'!I16=0,0,IF(L37>0,1,0)) -> 0 | P37: ='2-Je choisis mes actions'!G16 -> 
C38: Cette action vise à réaliser des économies d'eau sur les espaces verts directement liés à l’activité de restauration : espaces extérieurs de restauration (jardin, terrasse) et potager lié à l’activité de restauration (herbes aromatiques, production de fruits/légumes utilisés en cuisine). Vous pouvez bénéficier d’une aide pour les dispositifs économes d’arrosage (goutte à goutte etc.). En bénéficiant de cette aide, le bénéficiaire s’engage à cultiver/entretenir en priorité des espèces peu gourmandes en eau, adaptées au climat local, privilégier le paillage, et à privilégier les sources d’eau non issues du réseau d’eau potable (par exemple récupération des eaux de pluie). En bénéficiant de cette aide, le bénéficiaire s’engage à cultiver/entretenir en priorité des espèces économes en eau et adaptées au climat local, et à privilégier les sources d’eau non issues du réseau d’eau potable (par exemple récupération des eaux de pluie). | O38: =O37 -> 0
C39: ='2-Je choisis mes actions'!B17 -> r12 | L39: ='2-Je choisis mes actions'!E17 -> 0 | M39: =IF(P39="Oui","Devis à joindre","Pas besoin de devis") -> Pas besoin de devis | O39: =IF('2-Je choisis mes actions'!I17=0,0,IF(L39>0,1,0)) -> 0 | P39: ='2-Je choisis mes actions'!G17 -> 0
C40: ='2-Je choisis mes actions'!B18 -> r13 | L40: ='2-Je choisis mes actions'!E18 -> 0 | M40: =IF(P40="Oui","Devis à joindre","Pas besoin de devis") -> Pas besoin de devis | O40: =IF('2-Je choisis mes actions'!I18=0,0,IF(L40>0,1,0)) -> 0 | P40: ='2-Je choisis mes actions'!G18 -> 0
C41: ='2-Je choisis mes actions'!B19 -> r14 | L41: ='2-Je choisis mes actions'!E19 -> 0 | M41: Pas besoin de devis | O41: =IF('2-Je choisis mes actions'!I19=0,0,IF(L41>0,1,0)) -> 0 | P41: ='2-Je choisis mes actions'!G19 -> 0
C42: ='2-Je choisis mes actions'!B20 -> r15 | L42: ='2-Je choisis mes actions'!E20 -> 0 | M42: Pas besoin de devis | O42: =IF('2-Je choisis mes actions'!I20=0,0,IF(L42>0,1,0)) -> 0 | P42: ='2-Je choisis mes actions'!G20 -> 0
C43: ='2-Je choisis mes actions'!B21 -> r16 | L43: ='2-Je choisis mes actions'!E21 -> 0 | M43: Pas besoin de devis | O43: =IF('2-Je choisis mes actions'!I21=0,0,IF(L43>0,1,0)) -> 0 | P43: ='2-Je choisis mes actions'!G21 -> 0
C44: ='2-Je choisis mes actions'!B22 -> r17 | L44: ='2-Je choisis mes actions'!E22 -> 0 | M44: =IF(P44="Oui","Devis à joindre","Pas besoin de devis") -> Pas besoin de devis | O44: =IF('2-Je choisis mes actions'!I22=0,0,IF(L44>0,1,0)) -> 0 | P44: ='2-Je choisis mes actions'!G22 -> 0
C45: ='2-Je choisis mes actions'!B23 -> r18 | L45: ='2-Je choisis mes actions'!E23 -> 0 | M45: =IF(P45="Oui","Devis à joindre","Pas besoin de devis") -> Pas besoin de devis | O45: =IF('2-Je choisis mes actions'!I23=0,0,IF(L45>0,1,0)) -> 0 | P45: ='2-Je choisis mes actions'!G23 -> 0
C46: ='2-Je choisis mes actions'!B24 -> r19 | L46: ='2-Je choisis mes actions'!E24 -> 0 | M46: =IF(P46="Oui","Devis à joindre","Pas besoin de devis") -> Pas besoin de devis | O46: =IF('2-Je choisis mes actions'!I24=0,0,IF(L46>0,1,0)) -> 0 | P46: ='2-Je choisis mes actions'!G24 -> 0
C47: ='2-Je choisis mes actions'!B25 -> r20 | L47: ='2-Je choisis mes actions'!E25 -> 0 | M47: =IF(P47="Oui","Devis à joindre","Pas besoin de devis") -> Pas besoin de devis | O47: =IF('2-Je choisis mes actions'!I25=0,0,IF(L47>0,1,0)) -> 0 | P47: ='2-Je choisis mes actions'!G25 -> 0
C48: ='2-Je choisis mes actions'!B29 -> Modèle d'affaires Tourisme durable Hébergement touristique | L48: ='2-Je choisis mes actions'!E29 -> 0 | M48: Pas besoin de devis | O48: =IF('2-Je choisis mes actions'!I29=0,0,IF(L48>0,1,0)) -> 0 | P48: ='2-Je choisis mes actions'!G29 -> 
C49: Un consultant peut vous accompagner dans l’établissement d’un modèle d’affaires. Suite à une expertise de vos dépenses courantes, une analyse des consommations de l'établissement et à une étude de marché et de positionnement, le prestataire évaluera les investissements et revenus attendus d'une activité touristique avec un caractère durable affirmé, en particulier sur les volets : - Maîtrise des consommations et contrats d'énergie verte ; - Circuits courts et valorisation des produits locaux ; - Mobilités douces des clients ; - Valorisation du patrimoine naturel (ex.: refuge LPO) ; - Attractivité de nouveaux clients avec la proposition de nouveaux services dits durables (hébergements alternatifs, activités touristiques). La formation doit être dispensée par un organisme de formation habilité. Le bénéficiaire conservera les attestations de formation qu’il tiendra à disposition de l’ADEME. | O49: =O48 -> 0
C50: ='2-Je choisis mes actions'!B30 -> Formation aux éco-gestes pour un hébergement touristique durable | L50: ='2-Je choisis mes actions'!E30 -> 0 | M50: Pas besoin de devis | O50: =IF('2-Je choisis mes actions'!I30=0,0,IF(L50>0,1,0)) -> 0 | P50: ='2-Je choisis mes actions'!G30 -> 
C51: Cette action a pour objectif de fournir une formation sur les enjeux environnementaux d’un hébergement touristique ou une formation courte sur les éco-gestes que les salariés peuvent mettre en place en lien avec l’activité d’hébergement pour le nettoyage, la qualité de l'air intérieur, la sensibilisation des clients etc. La formation doit être dispensée par un organisme de formation habilité. Le bénéficiaire conservera les attestations de formation qu’il tiendra à disposition de l’ADEME. | O51: =O50 -> 0
C52: ='2-Je choisis mes actions'!B31 -> Communication - Supports de communication valorisant l’hébergement touristique durable | L52: ='2-Je choisis mes actions'!E31 -> 0 | M52: Pas besoin de devis | O52: =IF('2-Je choisis mes actions'!I31=0,0,IF(L52>0,1,0)) -> 0 | P52: ='2-Je choisis mes actions'!G31 -> 
C53: Cette ligne consiste à soutenir les actions de communication pérennes qui mettent en valeur la démarche durable du restaurant, les fournisseurs locaux, ainsi que les écogestes dans l’hébergement pour les salarié.e.s et pour les client.e.s : achat de supports de communication matériels ou numérique pérennes et/ou actions immatérielles à vocation pérenne. En activant cette ligne, le bénéficiaire s'engage à mettre en avant auprès des clients et des salariés : les éco-gestes ou les engagements environnementaux (économie d’eau ou d’énergie etc…). Vous pouvez bénéficier d’une aide pour : - Des achats de supports de communication matériels pérennes : o L’achat de tableaux/panneaux/supports d’affichage en matériaux biosourcés, naturels ou recyclables, ou supports imprimés à l’exclusion des supports à usage unique pour l’information des client.e.s sur la démarche de transition écologique de l’hébergement concernant : les éco-gestes au quotidien, les démarches environnementales de l’hébergement, les certifications ou labélisations obtenus, la valorisation des mobilités alternatives ou douces au départ de l’établissement. Les panneaux d’affichage électroniques ou écrans ne sont pas éligibles. - Les achats de prestations immatérielles : o La création ou l’adaptation de supports de communication imprimés ou numériques (prestation intellectuelle), y compris visuels, photos, stratégie de communication o L’adaptation du site internet pour en faire un site éco-conçu selon les recommandations de l'Institut du numérique responsable ; o La mise à jour du site internet ou de la présence sur les réseaux sociaux, la présence sur les plateformes de réservation (mettant en avant les engagements des établissements dans la transition écologique) valorisant les engagements développement durable de l’hébergement touristique. En activant cette ligne, le bénéficiaire s'engage à mettre en avant auprès des clients et des salariés les éco-gestes, les circuits courts ou les engagements environnementaux. | O53: =O52 -> 0
C54: ='2-Je choisis mes actions'!B32 -> Energie - Accompagnement pour le financement de la rénovation globale | L54: ='2-Je choisis mes actions'!E32 -> 0 | M54: Pas besoin de devis | O54: =IF('2-Je choisis mes actions'!I32=0,0,IF(L54>0,1,0)) -> 0 | P54: ='2-Je choisis mes actions'!G32 -> 
C55: En complément de la ligne "MOE pour rénovation globale sur un objectif d'économie d'énergie", cette ligne permet d'établir une prestation auprès d'un bureau d'étude ou d'un consultant, avec pour objectif de : - Établir le plan de financement, en fonction des différents guichets nationaux, régionaux et locaux, indiquant clairement au bénéficiaire le montant des aides et le reste à charge ; - Préparer les dossiers de demande d'aide auprès de ces guichets avec les renseignements techniques demandés. | O55: =O54 -> 0
C56: ='2-Je choisis mes actions'!B33 -> Energie - Maîtrise des besoins de chauffage des chambres | L56: ='2-Je choisis mes actions'!E33 -> 0 | M56: Pas besoin de devis | O56: =IF('2-Je choisis mes actions'!I33=0,0,IF(L56>0,1,0)) -> 0 | P56: ='2-Je choisis mes actions'!G33 -> 
C57: Pour maintenir la consommation d'énergie à un niveau raisonnable, il est nécessaire de réguler les températures en fonction des besoins réels et de l'occupation ou non des différentes zones de l'hébergement. Il est notamment très important de posséder un dispositif de régulation thermique dans chaque chambre : la mise en place de systèmes de contrôle autonomes dans les chambres peut permettre d'économiser jusqu'à 30 % d'énergie en chauffage. Vous pouvez bénéficier d’une aide pour financer des robinets thermostatiques de radiateur, un dispositif de détection d'ouverture de fenêtre permettant d’interrompre le chauffage seul ou combiné avec la climatisation, un programmateur horaire, ou un système de gestion par chambre des consignes des radiateurs. En activant cette ligne, le bénéficiaire s'engage sur des consignes de température par chambre (hors été) selon leur occupation : 20°C à 22°C si chambre occupée ; 16°C à 18°C si chambre inoccupée pendant une courte période ; maintien à 12°C-14°C si inoccupée pendant une longue période. | O57: =O56 -> 0
C58: ='2-Je choisis mes actions'!B34 -> Energie - Sèche-linge professionnel de grande efficacité énergétique et lave-linge | L58: ='2-Je choisis mes actions'!E34 -> 0 | M58: Pas besoin de devis | O58: =IF('2-Je choisis mes actions'!I34=0,0,IF(L58>0,1,0)) -> 0 | P58: ='2-Je choisis mes actions'!G34 -> 
C59: Vous pouvez bénéficier d’une aide pour l’acquisition d’équipements professionnels qui permettent une économie d'énergie. Pour le calcul de l’aide, si le bénéficiaire investit dans un lave-linge ET un sèche-linge, le forfait sera calculé en ajoutant la capacité en kg de linge des 2 équipements. Sont éligibles : 1/ Les sèche-linge ≥ 9 kg - Seuls sont éligibles les sèche-linge professionnels de forte capacité : poids de linge ≥ 9 kg, - Energie de séchage soit inférieure à 0,25 kWh/kg linge. - Pour exemple, TopTen référence ce type d’équipements jusqu’à 23kg (alors que Topten France ne référence les équipements que jusqu’à 9kg) : https://www.topten.ch/business/products/bus_tumble_driers 2/ Les lave-linge de capacité ≥ 7 kg de linge - Les lave-linge commerciaux ou professionnels de choisir ceux avec une consommation < 7 L par kg de linge lavé - Les lave-linge ménagers doivent appartenir à la classe énergétique A et avoir un indice de réparabilité >7.0 3/ Les lave-linge et sèche-linge combinés ≥ 7 kg - Les lave-linge sèche-linge combinés ménagers doivent appartenir à la classe énergétique A | O59: =O58 -> 0
C60: ='2-Je choisis mes actions'!B35 -> Energie - Bâche de nuit pour piscine | L60: ='2-Je choisis mes actions'!E35 -> 0 | M60: Pas besoin de devis | O60: =IF('2-Je choisis mes actions'!I35=0,0,IF(L60>0,1,0)) -> 0 | P60: ='2-Je choisis mes actions'!G35 -> 
C61: La bâche de nuit pour piscine permet de limiter la déperdition calorifique d'au moins 20% en moyenne. Les bâches opaques permettent de réduire la consommation de produits de traitement de l'eau en limitant la photosynthèse. A noter de privilégier les modules manuels ou le cas échéant avec alimentation solaire | O61: =O60 -> 0
C62: ='2-Je choisis mes actions'!B36 -> Energie & Confort d'été - actions sur les ouvertures (fenêtres) | L62: ='2-Je choisis mes actions'!E36 -> 0 | M62: Pas besoin de devis | O62: =IF('2-Je choisis mes actions'!I36=0,0,IF(L62>0,1,0)) -> 0 | P62: ='2-Je choisis mes actions'!G36 -> 
C63: Cette action vise à améliorer le confort en été de votre hébergement touristique et à diminuer voire supprimer les besoins de climatisation, en agissant sur la protection des ouvertures : pose de volets, stores pare-soleil intérieurs et extérieurs, films solaires sur les ouvrants, etc. Non éligibles : rideaux, voilages, ombrières, changement de menuiseries en double vitrage. | O63: =O62 -> 0
C64: ='2-Je choisis mes actions'!B37 -> Energie & Confort d'été - végétalisation | L64: ='2-Je choisis mes actions'!E37 -> 0 | M64: Pas besoin de devis | O64: =IF('2-Je choisis mes actions'!I37=0,0,IF(L64>0,1,0)) -> 0 | P64: ='2-Je choisis mes actions'!G37 -> 
C65: Cette action vise à réduire les apports de chaleur en été vers le bâtiment, en lien avec l’activité d’hébergement. En été, des murs chauds peuvent entraîner une élévation de la température intérieure des bâtiments, ce qui a pour effet d'augmenter la demande en climatisation et, par là même, la consommation d'énergie. Lorsque les murs sont recouverts de plantes et de terre humide, leur température peut être réduite, la baisse pouvant aller jusqu'à 10 °C, ce qui permet de réduire les besoins en climatisation à l'intérieur du bâtiment. Aux abords du bâtiment, les arbres et les sols jouent un rôle important de rafraîchissement, par ombrage et évapotranspiration. Vous pouvez bénéficier d’une aide pour : - Une étude climatique et paysagère ; - La préparation et la plantation pour murs végétaux ; - La désimperméabilisation et les plantations adaptées aux futures conditions climatiques et cohérentes avec la biodiversité locale ; - Cultiver/entretenir en priorité des espèces peu gourmandes en eau, adaptées au climat local, à privilégier le paillage, à privilégier les sources d’eau non issues du réseau d’eau potable (par exemple récupération des eaux de pluie), le cas échéant choisir un système d’arrosage économe en eau (goutte à goutte) ; - L’installation d’une pergola en bois naturel avec ombrage végétal permettant de végétaliser terrasses ou espaces extérieures pour apporter ombre et fraicheur. | O65: =O64 -> 0
C66: ='2-Je choisis mes actions'!B38 -> Eau - Dispositifs d'économie d'eau pour les chambres et sanitaires liés à l’activité d’hébergement | L66: ='2-Je choisis mes actions'!E38 -> 0 | M66: Pas besoin de devis | O66: =IF('2-Je choisis mes actions'!I38=0,0,IF(L66>0,1,0)) -> 0 | P66: ='2-Je choisis mes actions'!G38 -> 
C67: Cette action concerne les points d'eau des chambres et sanitaires. Les achats éligibles sont : - Les économiseurs d'eau pour les lavabos : ce sont des petits équipements très simples et peu coûteux que l'on place sur l’embout du robinet, ils permettent de faire des économies d'eau en mélangeant sous pression, de l'air à l'eau du robinet. Le débit normal d'un robinet est d'environ de 12 litres par minute. En utilisant un économiseur d'eau, ce débit peut passer à environ 6 litres par minute (débit variable), sans perte de confort, grâce à l'ajout d'air par le régulateur de débit. Cette action est éligible pour les chambres dans lesquelles les lavabos n'étaient pas équipées de limiteur de débit. - Les robinets mitigeurs pour les lavabos : ils sont également conseillés pour économiser l'eau, car ils permettent d'ouvrir ou de fermer l'eau en régulant en même temps le débit et la température. Ainsi, et contrairement aux robinets mélangeurs il n'y a pas besoin de faire couler l'eau jusqu'à obtenir la température et le débit souhaités. L'ouverture et la fermeture du robinet sont possibles en un seul geste, sans modifier la température de l'eau. - Les mitigeurs thermostatiques pour les douches maintiennent la température de l'eau de façon précise. Cette action est éligible pour les chambres dans lesquelles la robinetterie de douche est changée avec un gain en termes de consommation d'eau. - Chasse d’eau à double commande ou double flux, plaquette de réservoir pour les toilettes . Les réservoirs des chasses d'eau classiques contiennent entre 15 litres (les plus anciens) et 6 litres (les plus récents) d'eau potable. Des systèmes de chasses d'eau à double commande existent sur le marché depuis plusieurs années. Sans pour autant remplacer l'ensemble des installations, il est également possible de mettre en place des actions simples et peu coûteuses. En fonction des modèles installés, il est possible de faire entre 30 et 50% d'économies d'eau. - Urinoirs avec écoulement déclenché en fonction de la présence, urinoirs sans eau - Equipements de suivi des consommations d’eau | O67: =O66 -> 0
C68: ='2-Je choisis mes actions'!B39 -> Eau - Toilettes sèches pour les chambres et sanitaires liés à l’activité d’hébergement | L68: ='2-Je choisis mes actions'!E39 -> 0 | M68: Pas besoin de devis | O68: =IF('2-Je choisis mes actions'!I39=0,0,IF(L68>0,1,0)) -> 0 | P68: ='2-Je choisis mes actions'!G39 -> 
C69: Les toilettes sèches ne requièrent aucune utilisation d'eau. Plusieurs systèmes existent (à compost, à séparation etc.) pouvant convenir aux différentes contraintes d'usage ou de bâtiment. Avant installation, le bénéficiaire se renseignera auprès des compétences locales pour connaître la règlementation inhérente aux départements en matière de toilettes sèches. | O69: =O68 -> 0
C70: ='2-Je choisis mes actions'!B40 -> Mobilité - Abri vélo équipé de production photovoltaïque pour la recharge | L70: ='2-Je choisis mes actions'!E40 -> 0 | M70: Pas besoin de devis | O70: =IF('2-Je choisis mes actions'!I40=0,0,IF(L70>0,1,0)) -> 0 | P70: ='2-Je choisis mes actions'!G40 -> 
C71: L'abri s'assurera d'un impact limité sur l'artificialisation des sols. Le toit de l'abri, correctement orienté, est équipé de modules photovoltaïques. Cette ligne est compatible avec un contrat d'autoconsommation. L'investissement est limité à 10 vélos. | O71: =O70 -> 0
C72: ='2-Je choisis mes actions'!B41 -> Prévention des déchets non alimentaires dans les hébergements | L72: ='2-Je choisis mes actions'!E41 -> 0 | M72: =IF(P72="Oui","Devis à joindre","Pas besoin de devis") -> Pas besoin de devis | O72: =IF('2-Je choisis mes actions'!I41=0,0,IF(L72>0,1,0)) -> 0 | P72: ='2-Je choisis mes actions'!G41 -> 0
C73: Cette action vise à réduire les déchets non alimentaires, au sein de l’hébergement : - réduction des déchets d’emballages - suppression des produits jetables ou en dose individuelle - équipements permettant la réduction voire la suppression de la consommation de produits non alimentaires, notamment ceux nécessaires au nettoyage, entretien, lavage Vous pouvez bénéficier d’une aide pour tout matériel ou équipement (hors consommables) contribuant à l’objectif : par exemple, matériel navette fournisseurs, contenants pour stockage de produits vrac, contenants durables pour substitution des emballages individuels (café, thé, sucre, sauces...) ; achat vaisselle/couverts/serviettes/nappes/dessous de table pour substituer du jetable ; achat de lavettes et équipements de protection (charlottes, gants, masques, ..) réutilisables en substitution de jetable, équipements permettant de supprimer l’utilisation de produits dangereux... Le tri et la gestion des biodéchets sont éligibles sur les lignes Tremplin / Economie circulaire. | O73: =O72 -> 0
C74: ='2-Je choisis mes actions'!B42 -> h6 | L74: ='2-Je choisis mes actions'!E42 -> 0 | M74: Pas besoin de devis | O74: =IF('2-Je choisis mes actions'!I42=0,0,IF(L74>0,1,0)) -> 0 | P74: ='2-Je choisis mes actions'!G42 -> 0
C75: ='2-Je choisis mes actions'!B43 -> h7 | L75: ='2-Je choisis mes actions'!E43 -> 0 | M75: Pas besoin de devis | O75: =IF('2-Je choisis mes actions'!I43=0,0,IF(L75>0,1,0)) -> 0 | P75: ='2-Je choisis mes actions'!G43 -> 0
C76: ='2-Je choisis mes actions'!B44 -> h8 | L76: ='2-Je choisis mes actions'!E44 -> 0 | M76: Pas besoin de devis | O76: =IF('2-Je choisis mes actions'!I44=0,0,IF(L76>0,1,0)) -> 0 | P76: ='2-Je choisis mes actions'!G44 -> 0
C77: ='2-Je choisis mes actions'!B45 -> h5 | L77: ='2-Je choisis mes actions'!E45 -> 0 | M77: =IF(P77="Oui","Devis à joindre","Pas besoin de devis") -> Pas besoin de devis | O77: =IF('2-Je choisis mes actions'!I45=0,0,IF(L77>0,1,0)) -> 0 | P77: ='2-Je choisis mes actions'!G45 -> 0
C78: ='2-Je choisis mes actions'!B60 -> Chauffe-eau solaire individuels | L78: ='2-Je choisis mes actions'!E60 -> 0 | M78: =IF(P78="Oui","Devis à joindre","Pas besoin de devis") -> Pas besoin de devis | O78: =IF('2-Je choisis mes actions'!I60=0,0,IF(L78>0,1,0)) -> 0 | P78: ='2-Je choisis mes actions'!G60 -> 
C79: Cette opération est destinée à financer l’achat et l’installation de chauffe-eau solaire individuels pour les PME d’Outre-Mer. L’installation devra respecter les critères techniques suivants : - La surface de capteurs, les besoins annuels en eau chaude et le taux de couverture solaire sont déterminés à partir d’une note de dimensionnement de l'installation intégrée au devis - Taux de couverture solaire supérieur à 50 % - Maximum 10m² de capteurs pour les OM (au-delà se référer au Fonds Chaleur) - Installation recommandée sans appoint électrique (mais appoint possible) - Mise en place par un professionnel - Les installations doivent faire l’objet : • D’une certification QB dont le domaine d’emploi de l’avis technique couvre explicitement les départements d’outremer • Ou des caractéristiques de performances et de qualité équivalentes établies par un organisme localisé dans l’Espace Economique Européen et accrédité selon la norme NF EN ISO/CEI 17065 par le Comité Français d’Accréditation (COFRAC) ou tout autre organisme d’accréditation signataire de l’accord européen multilatéral pertinent pris dans le cadre de la coordination européenne des organismes d’accréditation. | O79: =O78 -> 0
C80: ='2-Je choisis mes actions'!B61 -> Brasseurs d’air | L80: ='2-Je choisis mes actions'!E61 -> 0 | M80: =IF(P80="Oui","Devis à joindre","Pas besoin de devis") -> Pas besoin de devis | O80: =IF('2-Je choisis mes actions'!I61=0,0,IF(L80>0,1,0)) -> 0 | P80: ='2-Je choisis mes actions'!G61 -> 
C81: Les actions ont pour objectif de limiter voire supprimer l’usage de la climatisation par la mise en place de brasseurs d’air dans les restaurants. Les brasseurs d’air sont éligibles pour réduire l’utilisation de la climatisation, à condition de respecter les éléments techniques suivants : - Volume de brassage à vitesse max > 8500 m3/h - 3 vitesses de fonctionnement minimum - Puissance moteur max < 70 W - Moteur silencieux bruit à vitesse max < 45 db - Vitesse d’air : 1m/s : l’installateur attestera sur son devis qu’il respecte les préconisations du fournisseur pour atteindre l’objectif de 1 m/s - Eclairage compatible LEDs ou pas d’éclairage - Mise en place réalisée par un professionnel - Recommandation : 1 brasseur pour 10 à 15 m2 ou se référer aux préconisations du fournisseur de brasseurs d’air | O81: =O80 -> 0
C82: ='2-Je choisis mes actions'!B49 -> Bilan d’émission de gaz à effet de serre (bilan GES scope 1, 2 et 3) et plan d'actions | L82: ='2-Je choisis mes actions'!E49 -> 0 | M82: =IF(P82="Oui","Devis à joindre","Pas besoin de devis") -> Pas besoin de devis | O82: =IF('2-Je choisis mes actions'!I49=0,0,IF(L82>0,1,0)) -> 0 | P82: ='2-Je choisis mes actions'!G49 -> 0
C83: Il s’agit de compter la quantité de gaz à effet de serre qui est due à votre activité pendant une année. Le bilan est réalisé en disant précisément quelles actions sont à l’origine du plus d’émissions pour vous aider à construire un plan d’action efficace. Le bilan porte sur les émissions de gaz à effet de serre directement générées par votre activité (1er cercle), celles liées à la consommation d’énergie de votre entreprise (2ème cercle) ainsi que les émissions indirectes de votre entreprise, par exemple liées aux produits que vous vendez (3ème cercle). La réalisation du Bilan GES se fait en conformité avec la méthode réglementaire ou les normes internationales en vigueur (ISO 14064, ISO 14069) et devra nécessairement inclure une proposition de plan d'actions. Vous pouvez trouver plus d'information sur : https://www.bilans-ges.ademe.fr/ : - rubrique "Ressources" pour plus de détails méthodologiques - rubrique "Bilans en ligne" pour consulter des Bilans GES réalisés. Quand vous aurez réalisé votre bilan, vous pouvez le publier sur cette plateforme. | O83: =O82 -> 0
C84: ='2-Je choisis mes actions'!B50 -> Vous organiser pour réduire les émissions de gaz à effet de serre : élaborer une stratégie (démarche ACT® pas à pas) | L84: ='2-Je choisis mes actions'!E50 -> 0 | M84: =IF(P84="Oui","Devis à joindre","Pas besoin de devis") -> Pas besoin de devis | O84: =IF('2-Je choisis mes actions'!I50=0,0,IF(L84>0,1,0)) -> 0 | P84: ='2-Je choisis mes actions'!G50 -> 
C85: Une aide financière peut vous être versée pour mettre en œuvre la démarche ACT (« Assessing low Carbon Transition ») pas à pas. La démarche ACT pas à pas vous aidera à passer à l’action pour réduire vos émissions de gaz à effet de serre. L’outil comporte les étapes suivantes : - Comment vous organiser pour ce travail - Identifier ce qui va changer dans votre activité - Programmer le budget nécessaire dans le temps - Mettre en œuvre les actions pour réduire les émissions de gaz à effet de serre - Suivre le résultat de vos actions et en tirer des leçons pour la poursuite de la démarche Pour plus d'information : https://actinitiative.org/act-implementations/ | O85: =O84 -> 0
C86: ='2-Je choisis mes actions'!B51 -> Evaluer votre stratégie de réduction des émissions de gaz à effet de serre (Evaluation ACT®) | L86: ='2-Je choisis mes actions'!E51 -> 0 | M86: Pas besoin de devis | O86: =IF('2-Je choisis mes actions'!I51=0,0,IF(L86>0,1,0)) -> 0 | P86: ='2-Je choisis mes actions'!G51 -> 
C87: Une aide financière peut vous être versée pour mettre en œuvre une évaluation ACT (« Assessing low Carbon Transition »). La démarche ACT Evaluation vous permettra de comparer les objectifs de réduction des émissions de gaz à effet de serre que vous avez retenu pour votre activité avec ce qui est considéré comme la voie de votre secteur vers la suppression des émissions de gaz à effet de serre. Cela devrait vous permettre de vous orienter vers un modèle d’affaire décarboné. Pour plus d'information : https://actinitiative.org/act-implementations/ | O87: =O86 -> 0
C88: ='2-Je choisis mes actions'!B55 -> Accompagnement à la baisse des consommations d’énergie des bâtiments imposée par le dispositif Eco Energie Tertiaire : audit énergétique | L88: ='2-Je choisis mes actions'!E55 -> 0 | M88: Pas besoin de devis | O88: =IF('2-Je choisis mes actions'!I55=0,0,IF(L88>0,1,0)) -> 0 | P88: ='2-Je choisis mes actions'!G55 -> 
C89: Une aide financière peut vous être versée pour mettre en œuvre un audit énergétique permettant d’atteindre les objectifs de performance définis par le dispositif Eco Energie Tertiaire (ou « décret tertiaire »), le cas échéant ou avec les mêmes objectifs pour les bâtiments non assujettis. Dans les deux cas, les objectifs du décret doivent s’appliquer pour bénéficier de l’aide. Le dispositif Eco Energie Tertiaire (décret n°2019-771 du 23 juillet 2019) pose un objectif de réduction des consommations énergétiques des bâtiments : -40% en 2030, -50% en 2040 et -60% en 2050 par rapport à 2010. Cet objectif n’est pas applicable pas dans les DOM-COM. L'accompagnement consiste en un audit énergétique en deux temps : - une analyse détaillée des données de votre bâtiment ; - des propositions chiffrées et argumentées d’actions d’économie d’énergie visant des objectifs comparables aux objectifs nationaux. La plupart des investissements proposés sont éligibles au Crédit d’impôt pour la rénovation énergétique des TPE/PME : https://www.economie.gouv.fr/plan-de-relance/profils/entreprises/credit-impot-renovation-energetique-tpepme Il est possible de poursuivre avec une aide à la mise en œuvre des actions préconisées, et la vérification des économies d'énergie après la réception des travaux. La prestation d'audit sera réalisée conformément au cahier des charges de l'ADEME téléchargeable sur la plateforme AGIR: https://www.ademe.fr/audit-energetique-batiments | O89: =O88 -> 0
C90: ='2-Je choisis mes actions'!B56 -> Maîtrise d'œuvre (MOE) pour rénovation globale d’un ou plusieurs bâtiments pour viser un objectif de 50% d’économie d’énergie | L90: ='2-Je choisis mes actions'!E56 -> 0 | M90: Pas besoin de devis | O90: =IF('2-Je choisis mes actions'!I56=0,0,IF(L90>0,1,0)) -> 0 | P90: ='2-Je choisis mes actions'!G56 -> 
C91: Si vous voulez engager un programme de travaux préconisé par un audit énergétique qui permettra de réduire vos consommations d’énergie de 50%, vous pouvez bénéficier d’une aide à la maîtrise d’œuvre pour : - réaliser des études de faisabilité si cela s'avère nécessaire, les études d'avant-projet et de projet ; - passer des contrats de travaux ; - diriger et coordonner l'exécution des travaux jusqu'à leur réception. La plupart des investissements réalisés pour améliorer la performance énergétique de vos bâtiments tertiaires sont éligibles au Crédit d’impôt pour la rénovation énergétique des TPE/PME https://www.economie.gouv.fr/plan-de-relance/profils/entreprises/credit-impot-renovation-energetique-tpepme | O91: =O90 -> 0
C92: ='2-Je choisis mes actions'!B57 -> Diagnostic sur la qualité de l'air (intérieur et extérieur) de l’entreprise | L92: ='2-Je choisis mes actions'!E57 -> 0 | M92: Pas besoin de devis | O92: =IF('2-Je choisis mes actions'!I57=0,0,IF(L92>0,1,0)) -> 0 | P92: ='2-Je choisis mes actions'!G57 -> 
C93: Un expert peut vous accompagner pour réaliser un diagnostic de la qualité de l’air dans votre entreprise et autour et de proposer un plan d’actions pour l’améliorer. La prestation comportera : - un premier état de la situation établi sur la base d’un questionnaire ; - une phase de mesures dans l’air que vous réaliserez grâce à des kits qui vous seront fournis, par exemple, kit de mesure CO2 et COV (composés organiques volatils) pour la qualité de l’air intérieur, kit NO2 (oxyde d’azote) en milieu urbain pour la qualité de l’air extérieur ; - un accompagnement à distance par visioconférence de 1 à 2 h pour vous aider à réaliser les mesures ; - un bilan assorti d’une proposition de plan d’actions. Pour les projets de construction d’un nouveau bâtiment, vous devrez être accompagné dans votre projet en prenant également en compte dans le diagnostic l’usage du bâtiment. Si vous avez un projet de rénovation, le système de ventilation existant sera diagnostiqué. | O93: =O92 -> 0
C94: ='2-Je choisis mes actions'!B58 -> Solaire photovoltaïque en autoconsommation pour les PME de Corse et d’Outre-Mer | L94: ='2-Je choisis mes actions'!E58 -> 0 | M94: =IF(P94="Oui","Devis à joindre","Pas besoin de devis") -> Pas besoin de devis | O94: =IF('2-Je choisis mes actions'!I58=0,0,IF(L94>0,1,0)) -> 0 | P94: ='2-Je choisis mes actions'!G58 -> 
C95: Cette opération est destinée aux bâtiments des TPE et PME situés en outre-mer et en Corse. Une aide financière peut vous être versée pour l’investissement dans une installation de production d’électricité avec des panneaux solaires photovoltaïques en autoconsommation au fil du soleil, sans stockage d’électricité et sans revente de surplus au réseau d’électricité. Une étude de faisabilité selon cahier des charges ADEME, visant un taux d’autoconsommation d’au moins 80% doit être fournie en complément du devis détaillé de l’installation. L’ADEME recommande que les entreprises qui réalisent ce type d'installation soient RGE (reconnu garent de l'environnement), QualiPV ou équivalent. L’ensemble des démarches administratives et de contrôle (Consuel, déclaration à EDF ou EDM, …) devront être réalisées par l’installateur. Le certificat de conformité du Consuel devra être fourni à l’issue du chantier. Un contrôle de réalisation pourra être effectué sur ces opérations par la direction régionale de l’ADEME. | O95: =O94 -> 0
C96: ='2-Je choisis mes actions'!B59 -> Solaire photovoltaïque autonome pour les activités économiques non raccordées au réseau électrique des PME de Corse et d’Outre-Mer | L96: ='2-Je choisis mes actions'!E59 -> 0 | M96: =IF(P96="Oui","Devis à joindre","Pas besoin de devis") -> Pas besoin de devis | O96: =IF('2-Je choisis mes actions'!I59=0,0,IF(L96>0,1,0)) -> 0 | P96: ='2-Je choisis mes actions'!G59 -> 
C97: Cette opération est destinée à alimenter les activités économiques des TPE et PME non raccordés au réseau électrique et éloigné de celui-ci situés sur des territoires d’outre-mer et de Corse où le système FACE ne peut intervenir. Une aide financière peut vous être versée pour l’investissement dans une installation de production d’électricité autonome : panneaux solaire, batterie, onduleur, électronique de régulation, local technique, pose, contrôle et système d’eau potable Une étude de dimensionnement devra avoir été réalisée. L’ADEME recommande que les entreprises qui réalisent ce type d'installation soient RGE (reconnu garant de l'environnement), QualiPV ou équivalent. L’ensemble des démarches administratives et de contrôle (bureau de contrôle) devront être réalisées par l’installateur. Le certificat de conformité du bureau de contrôle devra être fourni à l’issue du chantier. Une visite du site et un contrôle de réalisation pourra être effectué sur ces opérations par la direction régionale de l’ADEME. | O97: =O96 -> 0
C98: ='2-Je choisis mes actions'!B65 -> Améliorer l'efficacité de l'éclairage des locaux avec des luminaire à modules LED pré-équipés de détecteurs | L98: ='2-Je choisis mes actions'!E65 -> 0 | M98: Pas besoin de devis | O98: =IF('2-Je choisis mes actions'!I65=0,0,IF(L98>0,1,0)) -> 0 | P98: ='2-Je choisis mes actions'!G65 -> 
C99: Les luminaires LED performants permettent des économies d'énergie et financières immédiates et des économies de maintenance grâce à une durée de vie 5 fois supérieure aux éclairages classiques (généralement tubes T8 sur ballast ferromagnétiques). Ces luminaires, pré-équipés de détecteurs, permettent également de mettre en place de la gestion dans le bâtiment de façon simple, sans tirer des câbles entre eux et d'éventuels capteurs séparés. Une aide financière peut vous être versée pour l’investissement dans des luminaires d’éclairage général à modules LED pré-équipés pour la régulation en fonction de l'éclairage naturel et la détection de présence, tels que définis dans la fiche CEE BAT-EQ-127. Cet investissement peut également bénéficier des Certificats d’économie d’énergie. | O99: =O98 -> 0
C100: ='2-Je choisis mes actions'!B66 -> Augmenter l’éclairage naturel grâce à des lanterneaux d'éclairage zénithal | L100: ='2-Je choisis mes actions'!E66 -> 0 | M100: Pas besoin de devis | O100: =IF('2-Je choisis mes actions'!I66=0,0,IF(L100>0,1,0)) -> 0 | P100: ='2-Je choisis mes actions'!G66 -> 
C101: Favoriser l'éclairage naturel est un geste de sobriété énergétique qui est aussi bon pour la santé en diminuant les dépressions saisonnières, la fatigue psychologique et le stress. Réglementairement, les exutoires de fumées (DENFC) sont obligatoires en toiture dans le cadre de la réglementation de sécurité incendie. Il s'agit que ceux-ci soient en plus source d'économie d'énergie et de bien-être. Pour un local commercial de 5 000 m2 à Paris, un facteur de Lumière du Jour de 2,5%, soit 11% de surface géométrique lumière apporte en juin, plus de 300h de disponibilité à 300 lux et plus de 180h à 1 000 lux. En février, plus de 130h à 300 lux. Ceci signifie une autonomie en éclairage conséquente. Une aide financière peut vous être versée pour l’investissement dans des lanterneaux d’éclairage zénithal s’ils respectent les préconisations techniques de la fiche CEE BAT-EQ-129. Cet investissement peut également bénéficier des Certificats d’économie d’énergie. | O101: =O100 -> 0
C102: ='2-Je choisis mes actions'!B67 -> Augmenter l’éclairage naturel grâce à des conduits de lumière naturelle | L102: ='2-Je choisis mes actions'!E67 -> 0 | M102: Pas besoin de devis | O102: =IF('2-Je choisis mes actions'!I67=0,0,IF(L102>0,1,0)) -> 0 | P102: ='2-Je choisis mes actions'!G67 -> 
C103: Les conduits de lumière sont des sources de lumière naturelle. Ils permettent d’amener l’éclairage naturel dans les pièces sombres voire aveugles. Ils captent la lumière souvent en toiture, là où l’éclairage est maximal, pour la conduire dans les pièces dépourvues d’accès important à l’éclairage naturel. La lumière diffusée est donc particulièrement adaptée au rythme jour/nuit et au cycle circadien de l’être humain. Il s’agit d’une mesure de sobriété énergétique et les économies d’énergie peuvent être substantielles. Une aide financière peut vous être versée pour l’investissement dans un conduit de lumière naturel. La fiche CEE BAT-EQ-131 permet de sélectionner le produit performant le plus adapté. Cet investissement peut également bénéficier des Certificats d’économie d’énergie. | O103: =O102 -> 0
C104: ='2-Je choisis mes actions'!B68 -> Améliorer l'efficacité de l'éclairage extérieur avec des luminaires LED | L104: ='2-Je choisis mes actions'!E68 -> 0 | M104: Pas besoin de devis | O104: =IF('2-Je choisis mes actions'!I68=0,0,IF(L104>0,1,0)) -> 0 | P104: ='2-Je choisis mes actions'!G68 -> 
C105: La consommation d’énergie de l’éclairage extérieur peut être divisée par deux en passant de sources énergivores à un éclairage LED. A cela se rajoutent des économies de maintenance grâce à une durée de vie 5 fois supérieure pour les luminaires LED par rapport aux sources énergivores. Une aide financière peut vous être versée pour l’investissement dans un éclairage extérieur par luminaire LED conforme aux exigences de la fiche CEE RES-EC-104. Sa source lumineuse doit pouvoir être remplacée et il doit permettre également de se conformer à l'arrêté du 27 décembre 2018 relatif à la prévention, à la réduction et à la limitation des nuisances lumineuses qui contient aussi des prescriptions sur la quantité maximale de lumière à installer. Cet investissement peut également bénéficier des Certificats d’économie d’énergie. | O105: =O104 -> 0
C106: ='2-Je choisis mes actions'!B69 -> Etude de dimensionnement de l'éclairage | L106: ='2-Je choisis mes actions'!E69 -> 0 | M106: Pas besoin de devis | O106: =IF('2-Je choisis mes actions'!I69=0,0,IF(L106>0,1,0)) -> 0 | P106: ='2-Je choisis mes actions'!G69 -> 
C107: Si avez sélectionné des investissements importants (supérieurs à 25 000 €) pour améliorer l’éclairage de votre entreprise, une aide financière peut vous être versée pour financer une étude de dimensionnement avant de mettre en œuvre ces investissements. Cette étude peut être réalisée en interne ou en externe. | O107: =O106 -> 0
C108: ='2-Je choisis mes actions'!B73 -> Isolation des meubles de vente réfrigérés et/ou des chambres froides | L108: ='2-Je choisis mes actions'!E73 -> 0 | M108: Pas besoin de devis | O108: =IF('2-Je choisis mes actions'!I73=0,0,IF(L108>0,1,0)) -> 0 | P108: ='2-Je choisis mes actions'!G73 -> 
C109: Une aide financière peut vous être versée pour améliorer l'étanchéité à l'air et les dispositifs de fermetures des équipements de froid : - des meubles de vente réfrigérés à température positive ou négative : installation de rideaux de nuit, portes ; - des chambres froides : réfection des joints de porte (de type caoutchouc mousse toilé, caoutchouc naturel, PVC ou silicone), installation d'une isolation pour chambre froide avec pare-vapeur (épaisseur 60 mm minimum pour les chambre à températures positives et 100 mm minimum pour les chambres froides négatives). Ces travaux doivent être mis en œuvre par des frigoristes qualifiés. Certains de ces investissements sont également éligible aux Certificats d'économie d'énergie. | O109: =O108 -> 0
C110: ='2-Je choisis mes actions'!B74 -> Remplacement de fluides dans les équipements frigorifiques commerciaux pour utiliser des fluides frigorigènes ayant moins d’impact sur le changement climatique | L110: ='2-Je choisis mes actions'!E74 -> 0 | M110: Pas besoin de devis | O110: =IF('2-Je choisis mes actions'!I74=0,0,IF(L110>0,1,0)) -> 0 | P110: ='2-Je choisis mes actions'!G74 -> 
C111: Une aide financière peut vous être versée pour remplacer un fluide frigorigène polluant (PRG > 1500, en particulier R404A) par un fluide moins impactant sur le réchauffement climatique (rétrofit). Les nouveaux fluides utilisés pour le rétrofit devront être mis en œuvre par un frigoriste qualifié (attestation de capacité et habilitation fluide), et avoir un PRG (pouvoir de réchauffement climatique) inférieur à 1500 kg équivalent CO2 sur 100 ans. Le remplacement du fluide devra s’accompagner de l’installation d’un détendeur adapté au nouveau fluide sur chacun des terminaux et du remplacement du filtre déshydrateur. Les équipements frigorifiques commerciaux concernés sont par exemple les présentoir frigorifique, chambre froide, armoire à froid négatif avec surgélateur intégré, etc. Dans le cas d’une installation centralisée (plusieurs équipements raccordés sur un même groupe frigorifique), le montant de l’aide sera calculé en fonction du nombre de détendeurs (ou trains thermostatiques) à remplacer dans le cadre du rétrofit. | O111: =O110 -> 0
C112: ='2-Je choisis mes actions'!B75 -> Remplacement de meubles frigorifiques anciens avec groupe froid intégré par des équipements équivalents neufs avec des fluides frigorigènes moins impactant sur le changement climatique | L112: ='2-Je choisis mes actions'!E75 -> 0 | M112: Pas besoin de devis | O112: =IF('2-Je choisis mes actions'!I75=0,0,IF(L112>0,1,0)) -> 0 | P112: ='2-Je choisis mes actions'!G75 -> 
C113: Une aide financière peut vous être versée pour remplacer des meubles frigorifiques à groupe logé (groupe froid intégré dans l’équipement) antérieurs à 2015 ou fonctionnant avec un fluide frigorigène à PRG > 1500 (en particulier R404A) par des meubles frigorifiques neufs à groupe logés fonctionnant avec un fluide frigorigène ayant un PRG < 1500. Les équipements frigorifiques commerciaux concernés sont par exemple les armoires frigorifiques positives, les tours réfrigérées, etc. Les équipements ne pourront pas être remplacés par du matériel domestique de type réfrigérateurs ou congélateurs bahut. | O113: =O112 -> 0
C114: ='2-Je choisis mes actions'!B76 -> Remplacement d’équipements frigorifiques commerciaux anciens par des équipements neufs à groupe froid déporté avec des fluides frigorigènes moins impactant sur le changement climatique | L114: ='2-Je choisis mes actions'!E76 -> 0 | M114: Pas besoin de devis | O114: =IF('2-Je choisis mes actions'!I76=0,0,IF(L114>0,1,0)) -> 0 | P114: ='2-Je choisis mes actions'!G76 -> 
C115: Une aide financière peut vous être versée pour remplacer des équipements frigorifiques anciens (antérieurs à 2015) ou fonctionnant avec un fluide frigorigène à PRG > 1500 (en particulier R404A), par des équipements frigorifiques neufs à groupe déporté (groupe froid situé à l’extérieur de l’équipement) fonctionnant avec un fluide frigorigène ayant un PRG < 1500. Le remplacement peut concerner l’ensemble du matériel (groupe frigorifique + équipement terminal) ou uniquement le groupe frigorifique si l’équipement terminal est en bon état de fonctionnement. Les équipements frigorifiques commerciaux concernés sont par exemple vitrine/présentoir frigorifique, chambre froide, surgélateur, etc. Si le remplacement concerne plusieurs équipements reliés à un même groupe frigorifique, le montant de l’aide sera assujetti au nombre d’équipements remplacés. Les nouveaux équipements devront être installés par un frigoriste qualifié (attestation de capacité et habilitation fluide). | O115: =O114 -> 0
C116: ='2-Je choisis mes actions'!B77 -> Installation de froid commercial centralisée au CO2 avec récupération de chaleur | L116: ='2-Je choisis mes actions'!E77 -> 0 | M116: Pas besoin de devis | O116: =IF('2-Je choisis mes actions'!I77=0,0,IF(L116>0,1,0)) -> 0 | P116: ='2-Je choisis mes actions'!G77 -> 
C117: Une aide financière peut vous être versée pour l'installation de centrale de froid au CO2 transcritique avec récupération de chaleur utilisée pour la production d'eau chaude sanitaire, de chauffage ou dans un process de fabrication. L'installation doit être mise en œuvre par un frigoriste agréé et être précédée d'une étude de dimensionnement. Cet investissement est également éligible aux Certificats d'économie d'énergie. | O117: =O116 -> 0
C118: ='2-Je choisis mes actions'!B81 -> Isolation de combles perdus | L118: ='2-Je choisis mes actions'!E81 -> 0 | M118: Pas besoin de devis | O118: =IF('2-Je choisis mes actions'!I81=0,0,IF(L118>0,1,0)) -> 0 | P118: ='2-Je choisis mes actions'!G81 -> 
C119: Cette opération est destinée aux seuls bâtiments industriels. Pour les bâtiments tertiaires, vous pouvez bénéficier Crédit d’impôt pour la rénovation énergétique des TPE/PME https://www.economie.gouv.fr/plan-de-relance/profils/entreprises/credit-impot-renovation-energetique-tpepme Une aide financière peut vous être versée pour l'isolation thermique des combles perdus. Cette isolation devra être réalisée avec des procédés d'isolation constitués de l'association d'un matériau isolant et de dispositifs de protection (dont membranes continues si nécessaire) contre des dégradations liées à son exposition aux environnements extérieurs et intérieurs, en conformité avec les règles de l'art. La résistance thermique de l'isolation installée répond aux exigences fixées par le fiche CEE BAT-EN-101 : elle est supérieure ou égale à 6 m². K/W (sauf dans les DOM-COM). La résistance thermique est évaluée selon la norme NF EN 12664, la norme NF EN 12667 ou la norme NF EN 12939 pour les isolants non-réfléchissants ou la norme NF EN 16012 pour les isolants réfléchissants. L’ADEME recommande que les entreprises qui réalisent ce type d'installation soient RGE (reconnu garant de l'environnement). Cet investissement peut également bénéficier des Certificats d’économie d’énergie. | O119: =O118 -> 0
C120: ='2-Je choisis mes actions'!B82 -> Isolation des rampants de toiture et plafonds de combles | L120: ='2-Je choisis mes actions'!E82 -> 0 | M120: Pas besoin de devis | O120: =IF('2-Je choisis mes actions'!I82=0,0,IF(L120>0,1,0)) -> 0 | P120: ='2-Je choisis mes actions'!G82 -> 
C121: Cette opération est destinée aux seuls bâtiments industriels. Pour les bâtiments tertiaires, vous pouvez bénéficier Crédit d’impôt pour la rénovation énergétique des TPE/PME https://www.economie.gouv.fr/plan-de-relance/profils/entreprises/credit-impot-renovation-energetique-tpepme Une aide financière peut vous être versée pour l'isolation thermique des rampants de toiture et plafonds de combles. Cette isolation devra être réalisée avec des procédés d'isolation constitués de l'association d'un matériau isolant et de dispositifs de fixation et de protection (dont membranes continues si nécessaire) contre des dégradations liées à son exposition aux environnements extérieurs et intérieurs, en conformité avec les règles de l'art. La résistance thermique de l'isolation installée répond aux exigences fixées par le fiche CEE BAT-EN-101 : elle est supérieure ou égale à 6 m². K/W (sauf dans les DOM-COM). La résistance thermique est évaluée selon la norme NF EN 12664, la norme NF EN 12667 ou la norme NF EN 12939 pour les isolants non-réfléchissants ou la norme NF EN 16012 pour les isolants réfléchissants. L’ADEME recommande que les entreprises qui réalisent ce type d'installation soient RGE (reconnu garent de l'environnement). Cet investissement peut également bénéficier des Certificats d’économie d’énergie. | O121: =O120 -> 0
C122: ='2-Je choisis mes actions'!B83 -> Isolation des murs par l'intérieur | L122: ='2-Je choisis mes actions'!E83 -> 0 | M122: Pas besoin de devis | O122: =IF('2-Je choisis mes actions'!I83=0,0,IF(L122>0,1,0)) -> 0 | P122: ='2-Je choisis mes actions'!G83 -> 
C123: Cette opération est destinée aux seuls bâtiments industriels. Pour les bâtiments tertiaires, vous pouvez bénéficier Crédit d’impôt pour la rénovation énergétique des TPE/PME https://www.economie.gouv.fr/plan-de-relance/profils/entreprises/credit-impot-renovation-energetique-tpepme Une aide financière peut vous être versée pour l'isolation thermique par l'intérieur des murs en façade ou en pignon. Cette isolation devra être réalisée avec des procédés d'isolation constitués de l'association d'un matériau isolant et de dispositifs de fixation et de protection (dont membranes continues si nécessaire) contre des dégradations liées à son exposition aux environnements extérieurs et intérieurs, en conformité avec les règles de l'art. La résistance thermique de l'isolation installée répond aux exigences fixées par le fiche CEE BAT-EN-102 : elle est supérieure ou égale à 3,7 m². K/W (sauf dans les DOM COM). La résistance thermique est évaluée selon la norme NF EN 12664, la norme NF EN 12667 ou la norme NF EN 12939 pour les isolants non-réfléchissants ou la norme NF EN 16012 pour les isolants réfléchissants. L’ADEME recommande que les entreprises qui réalisent ce type d'installation soient RGE (reconnu garent de l'environnement). Cet investissement peut également bénéficier des Certificats d’économie d’énergie. | O123: =O122 -> 0
C124: ='2-Je choisis mes actions'!B84 -> Isolation des murs par l'extérieur | L124: ='2-Je choisis mes actions'!E84 -> 0 | M124: Pas besoin de devis | O124: =IF('2-Je choisis mes actions'!I84=0,0,IF(L124>0,1,0)) -> 0 | P124: ='2-Je choisis mes actions'!G84 -> 
C125: Cette opération est destinée aux seuls bâtiments industriels. Pour les bâtiments tertiaires, vous pouvez bénéficier Crédit d’impôt pour la rénovation énergétique des TPE/PME https://www.economie.gouv.fr/plan-de-relance/profils/entreprises/credit-impot-renovation-energetique-tpepme Une aide financière peut vous être versée pour l'isolation thermique par l'extérieur des murs en façade ou en pignon. Cette isolation devra être réalisée avec des procédés d'isolation constitués de l'association d'un matériau isolant et de dispositifs de fixation et de protection (dont membranes continues si nécessaire) contre des dégradations liées à son exposition aux environnements extérieurs et intérieurs, en conformité avec les règles de l'art. La résistance thermique de l'isolation installée répond aux exigences fixées par le fiche CEE BAT-EN-102 : elle est supérieure ou égale à 3,7 m². K/W (sauf dans les DOM COM). La résistance thermique est évaluée selon la norme NF EN 12664, la norme NF EN 12667 ou la norme NF EN 12939 pour les isolants non-réfléchissants ou la norme NF EN 16012 pour les isolants réfléchissants. L’ADEME recommande que les entreprises qui réalisent ce type d'installation soient RGE (reconnu garent de l'environnement). Cet investissement peut également bénéficier des Certificats d’économie d’énergie. | O125: =O124 -> 0
C126: ='2-Je choisis mes actions'!B85 -> Isolation des toitures-terrasses | L126: ='2-Je choisis mes actions'!E85 -> 0 | M126: Pas besoin de devis | O126: =IF('2-Je choisis mes actions'!I85=0,0,IF(L126>0,1,0)) -> 0 | P126: ='2-Je choisis mes actions'!G85 -> 
C127: Cette opération est destinée aux seuls bâtiments industriels. Pour les bâtiments tertiaires, vous pouvez bénéficier Crédit d’impôt pour la rénovation énergétique des TPE/PME https://www.economie.gouv.fr/plan-de-relance/profils/entreprises/credit-impot-renovation-energetique-tpepme Une aide financière peut vous être versée pour l'isolation thermique des toiture terrasse ou couverture de pente inférieure à 5%. Cette isolation devra être réalisée avec des procédés d'isolation constitués de l'association d'un matériau isolant et de dispositifs de protection (dont membranes continues si nécessaire) contre des dégradations liées à son exposition aux environnements extérieurs et intérieurs, en conformité avec les règles de l'art. La résistance thermique de l'isolation installée répond aux exigences fixées par le fiche CEE BAT-EN-107 : elle est supérieure ou égale à 4,5 m². K/W (sauf dans les DOM COM). La résistance thermique est évaluée selon la norme NF EN 12664, la norme NF EN 12667 ou la norme NF EN 12939 pour les isolants non-réfléchissants ou la norme NF EN 16012 pour les isolants réfléchissants. L’ADEME recommande que les entreprises qui réalisent ce type d'installation soient RGE (reconnu garent de l'environnement). Cet investissement peut également bénéficier des Certificats d’économie d’énergie. | O127: =O126 -> 0
C128: ='2-Je choisis mes actions'!B86 -> Ventilation mécanique double flux | L128: ='2-Je choisis mes actions'!E86 -> 0 | M128: Pas besoin de devis | O128: =IF('2-Je choisis mes actions'!I86=0,0,IF(L128>0,1,0)) -> 0 | P128: ='2-Je choisis mes actions'!G86 -> 
C129: Cette opération est destinée aux seuls bâtiments industriels. Pour les bâtiments tertiaires, vous pouvez bénéficier Crédit d’impôt pour la rénovation énergétique des TPE/PME https://www.economie.gouv.fr/plan-de-relance/profils/entreprises/credit-impot-renovation-energetique-tpepme Une aide financière peut vous être versée pour l’installation d’une ventilation mécanique contrôlée (VMC) double flux car elle permet des économies de chauffage en limitant les pertes de chaleur inhérentes à la ventilation. Ce système permet de transférer une partie de la chaleur de l’air vicié extrait du bâtiment à l’air neuf filtré venant de l’extérieur. Un ventilateur pulse cet air neuf préchauffé par le biais de bouche d’insufflation. Le système de ventilation peut disposer d’une régulation en fonction des besoins, mesurés en fonction de paramètres d'occupation, ou d'une régulation par horloge. L’équipement installé doit répondre aux exigences fixées par la fiche CEE BAT-TH-126, y compris pour des salles d’un volume supérieur à 250 m3. L’ADEME recommande que les entreprises qui réalisent ce type d'installation soient RGE (reconnu garent de l'environnement). Cet investissement peut également bénéficier des Certificats d’économie d’énergie. | O129: =O128 -> 0
C130: ='2-Je choisis mes actions'!B87 -> Mise en place d’un système de gestion technique du bâtiment (GTB) de classe B ou A | L130: ='2-Je choisis mes actions'!E87 -> 0 | M130: Pas besoin de devis | O130: =IF('2-Je choisis mes actions'!I87=0,0,IF(L130>0,1,0)) -> 0 | P130: ='2-Je choisis mes actions'!G87 -> 
C131: Cette opération est destinée aux seuls bâtiments industriels. Pour les bâtiments tertiaires, vous pouvez bénéficier Crédit d’impôt pour la rénovation énergétique des TPE/PME https://www.economie.gouv.fr/plan-de-relance/profils/entreprises/credit-impot-renovation-energetique-tpepme Une aide financière peut vous être versée pour la mise en place d’un système de gestion technique du bâtiment assurant, par un système d’automatisation centralisé, les fonctions de régulation de classe B ou A au sens de la norme NF EN 15232-1 pour les usages chauffage, eau chaude sanitaire, climatisation, éclairage et auxiliaires. Les classes B et A correspondent respectivement à : - B : systèmes avancés (gestion au niveau local et monitoring) ; - A : systèmes à performance énergétique élevée (gestion au niveau local avec enregistrement automatique des besoins, monitoring, optimisation durable de l’énergie). | O131: =O130 -> 0
C132: ='2-Je choisis mes actions'!B91 -> Géothermie sur champ de sondes et géostructures énergétiques | L132: ='2-Je choisis mes actions'!E91 -> 0 | M132: Pas besoin de devis | O132: =IF('2-Je choisis mes actions'!I91=0,0,IF(L132>0,1,0)) -> 0 | P132: ='2-Je choisis mes actions'!G91 -> 
C133: Cette opération est destinée aux seuls bâtiments industriels et agricoles. Pour les bâtiments tertiaires, vous pouvez bénéficier Crédit d’impôt pour la rénovation énergétique des TPE/PME https://www.economie.gouv.fr/plan-de-relance/profils/entreprises/credit-impot-renovation-energetique-tpepme Une aide financière peut vous être versée pour l’investissement dans une pompe à chaleur récupérant la chaleur du sous-sol par le biais de sondes ou directement, quand cela est prévu dès la construction du bâtiment, par ses fondations. L’installateur doit calculer les MWh attendus annuellement en comptabilisant l'énergie récupéré dans le sous-sol pour alimenter le bâtiment. L’ADEME recommande que les entreprises qui réalisent ce type d'installation soient RGE (reconnu garent de l'environnement), QUALIPAC module chauffage ou ECS ou équivalent. | O133: =O132 -> 0
C134: ='2-Je choisis mes actions'!B92 -> Géothermie sur eau de nappe, sur eau de mer et sur eaux usées | L134: ='2-Je choisis mes actions'!E92 -> 0 | M134: Pas besoin de devis | O134: =IF('2-Je choisis mes actions'!I92=0,0,IF(L134>0,1,0)) -> 0 | P134: ='2-Je choisis mes actions'!G92 -> 
C135: Cette opération est destinée aux seuls bâtiments industriels et agricoles. Pour les bâtiments tertiaires, vous pouvez bénéficier Crédit d’impôt pour la rénovation énergétique des TPE/PME https://www.economie.gouv.fr/plan-de-relance/profils/entreprises/credit-impot-renovation-energetique-tpepme Une aide financière peut vous être versée pour l’investissement dans une pompe à chaleur récupérant la chaleur de sources en eaux souterraines ou superficielles. L’installateur doit estimer les MWh attendus annuellement en comptabilisant l'énergie récupérée dans les eaux pour alimenter le bâtiment. L’ADEME recommande que les entreprises qui réalisent ce type d'installation soient RGE (reconnu garent de l'environnement), QUALIPAC module chauffage ou ECS ou équivalent. | O135: =O134 -> 0
C136: ='2-Je choisis mes actions'!B93 -> Géocooling | L136: ='2-Je choisis mes actions'!E93 -> 0 | M136: Pas besoin de devis | O136: =IF('2-Je choisis mes actions'!I93=0,0,IF(L136>0,1,0)) -> 0 | P136: ='2-Je choisis mes actions'!G93 -> 
C137: Cette opération est destinée aux seuls bâtiments industriels et agricoles. Pour les bâtiments tertiaires, vous pouvez bénéficier Crédit d’impôt pour la rénovation énergétique des TPE/PME https://www.economie.gouv.fr/plan-de-relance/profils/entreprises/credit-impot-renovation-energetique-tpepme Une aide financière peut vous être versée pour l’investissement dans l’utilisation « directe » de la température du sous-sol lorsque les locaux nécessitent un rafraîchissement notamment en été : il s’agit du géocooling. L’installateur doit estimer les MWh thermiques attendus annuellement en comptabilisant l'énergie récupérée pour rafraichir le bâtiment. | O137: =O136 -> 0
C138: ='2-Je choisis mes actions'!B94 -> Pompe à chaleur (PAC) solarothermique | L138: ='2-Je choisis mes actions'!E94 -> 0 | M138: Pas besoin de devis | O138: =IF('2-Je choisis mes actions'!I94=0,0,IF(L138>0,1,0)) -> 0 | P138: ='2-Je choisis mes actions'!G94 -> 
C139: Cette opération est destinée aux seuls bâtiments industriels et agricoles. Pour les bâtiments tertiaires, vous pouvez bénéficier Crédit d’impôt pour la rénovation énergétique des TPE/PME https://www.economie.gouv.fr/plan-de-relance/profils/entreprises/credit-impot-renovation-energetique-tpepme Une aide financière peut vous être versée pour l’investissement dans une pompe à chaleur qui récupére la chaleur de capteurs solaires souples en polypropylène ou hybrides photovoltaïques. L’installateur doit estimer les MWh attendus annuellement en comptabilisant l'énergie récupéré par les capteurs pour alimenter le bâtiment. | O139: =O138 -> 0
C140: ='2-Je choisis mes actions'!B95 -> Solaire thermique | L140: ='2-Je choisis mes actions'!E95 -> 0 | M140: Pas besoin de devis | O140: =IF('2-Je choisis mes actions'!I95=0,0,IF(L140>0,1,0)) -> 0 | P140: ='2-Je choisis mes actions'!G95 -> 
C141: Cette opération est destinée aux seuls bâtiments industriels et agricoles. Pour les bâtiments tertiaires, vous pouvez bénéficier Crédit d’impôt pour la rénovation énergétique des TPE/PME https://www.economie.gouv.fr/plan-de-relance/profils/entreprises/credit-impot-renovation-energetique-tpepme Une aide financière peut vous être versée pour l’investissement dans une installation de chauffage de l'eau avec des panneaux solaire thermique. L'eau chaude peut ensuite être stockée dans un ballon pour quelques heures avant son utilisation. L’installateur doit estimer la production solaire en MWh annuel avant la pose des panneaux. L’ADEME recommande que les entreprises qui réalisent ce type d'installation soient RGE (reconnu garent de l'environnement), QUASOL ou équivalent. Pour des installations sur des serres agricoles, si ces bâtiments ont une consommation énergétique annuelle supérieure à 200 kWh/m², ils doivent avoir une performance énergétique minimale (calculée avec un outil de simulation adéquat de type Hortinergy ou équivalent). Leur coefficient de transmission thermique de la serre (ou coefficient Um - ramené au m² au sol pour l’ensemble des parois) ne doit pas dépasser 5.5 W/m2.K pour les serres existantes. Pour mémoire les serres neuves sont exclues du dispositif qui ne concerne que la réhabilitation des bâtiments. | O141: =O140 -> 0
C142: ='2-Je choisis mes actions'!B96 -> Création ou extension d’un réseau de chaleur ou de froid | L142: ='2-Je choisis mes actions'!E96 -> 0 | M142: Pas besoin de devis | O142: =IF('2-Je choisis mes actions'!I96=0,0,IF(L142>0,1,0)) -> 0 | P142: ='2-Je choisis mes actions'!G96 -> 
C143: Cette opération est destinée aux seuls bâtiments industriels et agricoles. Pour les bâtiments tertiaires, vous pouvez bénéficier Crédit d’impôt pour la rénovation énergétique des TPE/PME https://www.economie.gouv.fr/plan-de-relance/profils/entreprises/credit-impot-renovation-energetique-tpepme Une aide financière peut vous être versée pour la création ou l’extension d’un réseau de chaleur ou le raccordement d’un bâtiment à une unité de production d'énergie renouvelable (ENR) existante ou à un réseau de chaleur alimenté à plus de 65% par une énergie renouvelable thermique. L'aide apportée est calculée au prorata de la longueur du réseau (aller + retour/2). Ce dispositif est également éligible aux Certificat d’économie d’énergie. | O143: =O142 -> 0
C144: ='2-Je choisis mes actions'!B97 -> Chaudière biomasse inférieure à 1 200 MWh par an | L144: ='2-Je choisis mes actions'!E97 -> 0 | M144: Pas besoin de devis | O144: =IF('2-Je choisis mes actions'!I97=0,0,IF(L144>0,1,0)) -> 0 | P144: ='2-Je choisis mes actions'!G97 -> 
C145: Cette opération est destinée aux seuls bâtiments industriels et agricoles. Pour les bâtiments tertiaires, vous pouvez bénéficier Crédit d’impôt pour la rénovation énergétique des TPE/PME https://www.economie.gouv.fr/plan-de-relance/profils/entreprises/credit-impot-renovation-energetique-tpepme Une aide financière peut vous être versée pour l’investissement dans une chaudière d’une production inférieure à 1200MWh par an alimentée par des granulés de bois, plaquettes forestières et assimilés, connexes de l’industrie du bois. Seules les chaudières référencées dans la « base de données des chaudières petites et moyennes puissances éligibles au Fonds Chaleur » sont éligibles. La liste est disponible sous : https://agirpourlatransition.ademe.fr/entreprises/dispositif-aide/installation-production-chaleur-biomasse-bois L’ADEME recommande que les entreprises qui réalisent ce type d'installation soient RGE (reconnu garent de l'environnement), QUABOIS module Eau ou équivalent. Ce dispositif est également éligible aux Certificat d’économie d’énergie. Pour des installations sur des serres agricoles, si ces bâtiments ont une consommation énergétique annuelle supérieure à 200 kWh/m², ils doivent avoir une performance énergétique minimale (calculée avec un outil de simulation adéquat de type Hortinergy ou équivalent). Leur coefficient de transmission thermique de la serre (ou coefficient Um - ramené au m² au sol pour l’ensemble des parois) ne doit pas dépasser 5.5 W/m2.K pour les serres existantes. Pour mémoire les serres neuves sont exclues du dispositif qui ne concerne que la réhabilitation des bâtiments. | O145: =O144 -> 0
C146: ='2-Je choisis mes actions'!B101 -> Remplacement d'un véhicule thermique par un véhicule léger neuf électrique ou transformation /rétrofit électrique | L146: ='2-Je choisis mes actions'!E101 -> 0 | M146: Pas besoin de devis | O146: =IF('2-Je choisis mes actions'!I101=0,0,IF(L146>0,1,0)) -> 0 | P146: ='2-Je choisis mes actions'!G101 -> 
C147: Une aide financière peut vous être versée pour remplacer un véhicule léger thermique polluant par un véhicule léger électrique ou bien pour transformer un véhicule léger thermique en véhicule électrique (rétrofit). Pour déterminer s’il s’agit d’un véhicule léger, vérifiez sur la carte grise. Votre véhicule est concerné dans le cas suivants : J1 = VP Pour le remplacement : - un véhicule est "polluant" si sa vignette Crit’Air est de 5, 4 et 3. https://www.certificat-air.gouv.fr/fr/simulation - Un site internet est à votre disposition pour vous aider à comparer les modèles des véhicules : https://jechangemavoiture.gouv.fr/jcmv/ - Le véhicule ancien devra impérativement être mis au rebut dans un centre VHU (véhicule hors d'usage) agréé Si vous remplacez votre véhicule léger par une version électrique (achat ou location longue durée crédit bail), vous pourrez également bénéficier du bonus écologique et de la prime à la conversion : https://www.ecologie.gouv.fr/prime-conversion-bonus-ecologique-toutes-aides-en-faveur-mobilite-propre . Pour le rétrofit : Une aide financière peut aussi vous être versé pour transformer un véhicule thermique en véhicule électrique (rétrofit). Plus d'information : https://association-aire.org/ et https://librairie.ademe.fr/mobilite-et-transport/4590-etude-retrofit.html Attention, si vous recevez une aide de l’ADEME, vous devrez ensuite conserver ce véhicule jusqu’à ce qu’il soit amorti dans votre comptabilité. | O147: =O146 -> 0
C148: ='2-Je choisis mes actions'!B102 -> Remplacement d'un véhicule thermique par un véhicule léger neuf GNV ou transformation/rétrofit GNV | L148: ='2-Je choisis mes actions'!E102 -> 0 | M148: Pas besoin de devis | O148: =IF('2-Je choisis mes actions'!I102=0,0,IF(L148>0,1,0)) -> 0 | P148: ='2-Je choisis mes actions'!G102 -> 
C149: Une aide financière peut vous être versée pour remplacer un véhicule léger thermique polluant par un véhicule léger électrique ou bien pour transformer un véhicule léger thermique en véhicule électrique (rétrofit). Pour déterminer s’il s’agit d’un véhicule léger, vérifiez sur la carte grise. Votre véhicule est concerné dans le cas suivants : J1 = VP Pour le remplacement : - un véhicule est "polluant" si sa vignette Crit’Air est de 5, 4 et 3. https://www.certificat-air.gouv.fr/fr/simulation - Un site internet est à votre disposition pour vous aider à comparer les modèles des véhicules : https://jechangemavoiture.gouv.fr/jcmv/ - Le véhicule ancien devra impérativement être mis au rebut dans un centre VHU (véhicule hors d'usage) agréé Si vous remplacez votre véhicule léger par une version électrique (achat ou location longue durée crédit bail), vous pourrez également bénéficier du bonus écologique et de la prime à la conversion : https://www.ecologie.gouv.fr/prime-conversion-bonus-ecologique-toutes-aides-en-faveur-mobilite-propre . Pour le rétrofit : Une aide financière peut aussi vous être versé pour transformer un véhicule thermique en véhicule électrique (rétrofit). Plus d'information : https://association-aire.org/ et https://librairie.ademe.fr/mobilite-et-transport/4590-etude-retrofit.html Attention, si vous recevez une aide de l’ADEME, vous devrez ensuite conserver ce véhicule jusqu’à ce qu’il soit amorti dans votre comptabilité. | O149: =O148 -> 0
C150: ='2-Je choisis mes actions'!B103 -> Remplacement d'un véhicule thermique par une fourgonnette neuve électrique | L150: ='2-Je choisis mes actions'!E103 -> 0 | M150: Pas besoin de devis | O150: =IF('2-Je choisis mes actions'!I103=0,0,IF(L150>0,1,0)) -> 0 | P150: ='2-Je choisis mes actions'!G103 -> 
C151: Une aide financière peut vous être versée pour remplacer une fourgonnette thermique polluante par une fourgonnette électrique. Pour déterminer s’il s’agit d’une fourgonnette, vérifiez sur la carte grise. Votre véhicule est concerné si : J1 = CTTE (hors J3 = DERIV VP) et F2 = PTAC ≤ 2500 kg Pour déterminer si le véhicule est polluant : vérifiez sa vignette Crit’Air. Sont concernés les véhicules non classés, Crit’Air 5, 4 et 3. Un site internet vous aide dans cette démarche : https://www.primealaconversion.gouv.fr/dboneco/accueil/ Le véhicule ancien devra impérativement être mis au rebut dans un centre VHU (véhicule hors d'usage) agréé. Si vous souhaitez remplacer votre véhicule par une version électrique (achat ou crédit bail), vous pourrez également bénéficier du bonus écologique et de la prime à la conversion : https://www.ecologie.gouv.fr/prime-conversion-bonus-ecologique-toutes-aides-en-faveur-mobilite-propre Attention, si vous recevez une aide de l’ADEME, vous devrez ensuite conserver ce véhicule jusqu’à ce qu’il soit amorti dans votre comptabilité. | O151: =O150 -> 0
C152: ='2-Je choisis mes actions'!B104 -> Remplacement d'un véhicule thermique par une fourgonnette neuve GNV | L152: ='2-Je choisis mes actions'!E104 -> 0 | M152: Pas besoin de devis | O152: =IF('2-Je choisis mes actions'!I104=0,0,IF(L152>0,1,0)) -> 0 | P152: ='2-Je choisis mes actions'!G104 -> 
C153: Une aide financière peut vous être versée pour remplacer une fourgonnette thermique polluante par une fourgonnette GNV. Pour déterminer s’il s’agit d’une fourgonnette, vérifiez sur la carte grise. Votre véhicule est concerné si : J1 = CTTE (hors J3 = DERIV VP) et F2 = PTAC ≤ 2500 kg Pour déterminer si le véhicule est polluant : vérifiez sa vignette Crit’Air. Sont concernés les véhicules non classés, Crit’Air 5, 4 et 3. Le véhicule ancien devra impérativement être mis au rebut dans un centre VHU (véhicule hors d'usage) agréé. Attention, si vous recevez une aide de l’ADEME, vous devrez ensuite conserver ce véhicule jusqu’à ce qu’il soit amorti dans votre comptabilité. Lien utile : https://www.gaz-mobilite.fr | O153: =O152 -> 0
C154: ='2-Je choisis mes actions'!B105 -> Remplacement d'un véhicule thermique par un fourgon neuf électrique | L154: ='2-Je choisis mes actions'!E105 -> 0 | M154: Pas besoin de devis | O154: =IF('2-Je choisis mes actions'!I105=0,0,IF(L154>0,1,0)) -> 0 | P154: ='2-Je choisis mes actions'!G105 -> 
C155: Une aide financière peut vous être versée pour remplacer un fourgon thermique polluant par un fourgon électrique neuf. Pour déterminer s’il s’agit d’un fourgon, vérifiez sur la carte grise. Votre véhicule est concerné dans les deux cas suivants : - J1 = CTTE (hors J3 = DERIV VP) et F2 = PTAC > 2500 kg ; - ou bien J1 = VASP et F2 = PTAC > 2500 kg. Pour déterminer si le véhicule est polluant : vérifiez sa vignette Crit’Air. Sont concernés les véhicules non classés, Crit’Air 5, 4 et 3. Le véhicule ancien devra impérativement être mis au rebut dans un centre VHU (véhicule hors d'usage) agréé. Si vous souhaitez remplacer votre véhicule léger par une version électrique (achat ou crédit bail), vous pourrez également bénéficier du bonus écologique et de la prime à la conversion : https://www.ecologie.gouv.fr/prime-conversion-bonus-ecologique-toutes-aides-en-faveur-mobilite-propre Attention, si vous recevez une aide de l’ADEME, vous devrez ensuite conserver ce véhicule jusqu’à ce qu’il soit amorti dans votre comptabilité. | O155: =O154 -> 0
C156: ='2-Je choisis mes actions'!B106 -> Remplacement d'un véhicule thermique par un fourgon neuf GNV | L156: ='2-Je choisis mes actions'!E106 -> 0 | M156: Pas besoin de devis | O156: =IF('2-Je choisis mes actions'!I106=0,0,IF(L156>0,1,0)) -> 0 | P156: ='2-Je choisis mes actions'!G106 -> 
C157: Une aide financière peut vous être versée pour remplacer un fourgon thermique par un fourgon GNV. Pour déterminer s’il s’agit d’un fourgon, vérifiez sur la carte grise. Votre véhicule est concerné dans les deux cas suivants : - J1 = CTTE (hors J3 = DERIV VP) et F2 = PTAC > 2500 kg ; - ou bien J1 = VASP et F2 = PTAC > 2500 kg. Pour déterminer si le véhicule est polluant : vérifiez sa vignette Crit’Air. Sont concernés les véhicules non classés, Crit’Air 5, 4 et 3. Le véhicule ancien devra impérativement être mis au rebut dans un centre VHU (véhicule hors d'usage) agréé. Si vous souhaitez remplacer votre fourgon par une version au GNV (gaz naturel pour véhicule) n’oubliez pas qu’en plus de l’aide proposée par l’ADEME vous pourrez également bénéficier d'une aide fiscale de suramortissement : https://bofip.impots.gouv.fr/bofip/1445-PGP.html/identifiant%3DBOI-BIC-AMT-20-30-10-20191218 Attention, si vous recevez une aide de l’ADEME, vous devrez ensuite conserver ce véhicule jusqu’à ce qu’il soit amorti dans votre comptabilité. | O157: =O156 -> 0
C158: ='2-Je choisis mes actions'!B107 -> Remplacement d'un véhicule thermique par un camion neuf électrique dont le PTAC est inf à 7,5 T | L158: ='2-Je choisis mes actions'!E107 -> 0 | M158: Pas besoin de devis | O158: =IF('2-Je choisis mes actions'!I107=0,0,IF(L158>0,1,0)) -> 0 | P158: ='2-Je choisis mes actions'!G107 -> 
C159: Une aide financière peut vous être versée pour remplacer un fourgon thermique polluant par un fourgon électrique neuf. Pour déterminer s’il s’agit d’un fourgon, vérifiez sur la carte grise. Votre véhicule est concerné dans les deux cas suivants : - J1 = CTTE (hors J3 = DERIV VP) et F2 = PTAC > 2500 kg ; - ou bien J1 = VASP et F2 = PTAC > 2500 kg. Pour déterminer si le véhicule est polluant : vérifiez sa vignette Crit’Air. Sont concernés les véhicules non classés, Crit’Air 5, 4 et 3. Le véhicule ancien devra impérativement être mis au rebut dans un centre VHU (véhicule hors d'usage) agréé. Si vous souhaitez remplacer votre véhicule léger par une version électrique (achat ou crédit bail), vous pourrez également bénéficier du bonus écologique et de la prime à la conversion : https://www.ecologie.gouv.fr/prime-conversion-bonus-ecologique-toutes-aides-en-faveur-mobilite-propre. Attention, si vous recevez une aide de l’ADEME, vous devrez ensuite conserver ce véhicule jusqu’à ce qu’il soit amorti dans votre comptabilité. | O159: =O158 -> 0
C160: ='2-Je choisis mes actions'!B108 -> Remplacement d'un véhicule thermique par un camion neuf GNV dont le PTAC est inf à 7,5 T | L160: ='2-Je choisis mes actions'!E108 -> 0 | M160: Pas besoin de devis | O160: =IF('2-Je choisis mes actions'!I108=0,0,IF(L160>0,1,0)) -> 0 | P160: ='2-Je choisis mes actions'!G108 -> 
C161: Une aide financière peut vous être versée pour remplacer un camion thermique par un camion neuf GNV. Pour déterminer s’il s’agit d’un camion, vérifiez sur la carte grise. Votre véhicule est concerné dans les deux cas suivants : J= N2 ou N3 ; F2 = PTAC ≤ 7,5T. Pour déterminer si le véhicule est polluant : vérifiez sa vignette Crit’Air. Sont concernés les véhicules non classés, Crit’Air 5, 4 et 3. Le véhicule ancien devra impérativement être mis au rebut dans un centre VHU (véhicule hors d'usage) agréé. Si vous souhaitez remplacer votre camion thermique par un camion GNV, n’oubliez pas qu’en plus de l’aide proposée par l’ADEME vous pouvez également bénéficier d'une aide fiscale de suramortissement : https://bofip.impots.gouv.fr/bofip/1445-PGP.html/identifiant%3DBOI-BIC-AMT-20-30-10-20191218 Attention, si vous recevez une aide de l’ADEME, vous devrez ensuite conserver ce véhicule jusqu’à ce qu’il soit amorti dans votre comptabilité. Lien utile : https://www.gaz-mobilite.fr | O161: =O160 -> 0
C162: ='2-Je choisis mes actions'!B109 -> Remplacement d'un camion thermique ou BOM thermique par un camion neuf électrique ( PTAC inf à 19T) ou une BOM électrique | L162: ='2-Je choisis mes actions'!E109 -> 0 | M162: Pas besoin de devis | O162: =IF('2-Je choisis mes actions'!I109=0,0,IF(L162>0,1,0)) -> 0 | P162: ='2-Je choisis mes actions'!G109 -> 
C163: Une aide financière peut vous être versée pour remplacer un camion thermique par un camion électrique. Pour déterminer s’il s’agit d’un camion, vérifiez sur la carte grise. Votre véhicule est concerné dans les deux cas suivants : - J= N2 ou N3 ; F2 = PTAC ≤ à 19T - ou pour les VASP, la catégorie N correspondant aux BOM Pour déterminer si le véhicule est polluant : vérifiez sa vignette Crit’Air. Sont concernés les véhicules non classés, Crit’Air 5, 4 et 3. Le véhicule ancien devra impérativement être mis au rebut dans un centre VHU (véhicule hors d'usage) agréé. Si vous souhaitez remplacer votre camion thermique par un camion électrique, n’oubliez pas qu’en plus de l’aide proposée par l’ADEME vous pouvez également bénéficier du bonus écologique de 50 000 € Attention, si vous recevez une aide de l’ADEME, vous devrez ensuite conserver ce véhicule jusqu’à ce qu’il soit amorti dans votre comptabilité. | O163: =O162 -> 0
C164: ='2-Je choisis mes actions'!B110 -> Remplacement d'un véhicule thermique par un camion neuf GNV dont le PTAC est inf ou égal à 19T | L164: ='2-Je choisis mes actions'!E110 -> 0 | M164: Pas besoin de devis | O164: =IF('2-Je choisis mes actions'!I110=0,0,IF(L164>0,1,0)) -> 0 | P164: ='2-Je choisis mes actions'!G110 -> 
C165: Une aide financière peut vous être versée pour remplacer un camion thermique par un camion neuf GNV. Pour déterminer s’il s’agit d’un camion, vérifiez sur la carte grise. Votre véhicule est concerné dans les deux cas suivants : - J= N2 ou N3 ; F2 = PTAC ≤ 19T - ou pour les VASP, la catégorie N correspondant aux BOM Pour déterminer si le véhicule est polluant : vérifiez sa vignette Crit’Air. Sont concernés les véhicules non classés, Crit’Air 5, 4 et 3. Le véhicule ancien devra impérativement être mis au rebut dans un centre VHU (véhicule hors d'usage) agréé. Si vous souhaitez remplacer votre camion thermique par un camion GNV, n’oubliez pas qu’en plus de l’aide proposée par l’ADEME vous pouvez également bénéficier d'une aide fiscale de suramortissement : https://bofip.impots.gouv.fr/bofip/1445-PGP.html/identifiant%3DBOI-BIC-AMT-20-30-10-20191218 Attention, si vous recevez une aide de l’ADEME, vous devrez ensuite conserver ce véhicule jusqu’à ce qu’il soit amorti dans votre comptabilité. | O165: =O164 -> 0
C166: ='2-Je choisis mes actions'!B111 -> Transformation d'une fourgonnette, d'un fourgon ou d'un camion à motorisation thermique en motorisation électrique (retrofit) | L166: ='2-Je choisis mes actions'!E111 -> 0 | M166: Pas besoin de devis | O166: =IF('2-Je choisis mes actions'!I111=0,0,IF(L166>0,1,0)) -> 0 | P166: ='2-Je choisis mes actions'!G111 -> 
C167: Une aide financière peut vous être versée pour transformer votre fourgonnette à motorisation thermique en motorisation électrique à batterie ou à pile à combustible (rétrofit). Vérifiez sur la carte grise. Votre véhicule est concerné dans les cas suivants : - J1 = CTTE (hors J3 = DERIV VP) - J1 = VASP et F2 = PTAC > 2500 kg - J= N2 ou N3 ; F2 = PTAC ≤ 19T - ou pour les VASP, la catégorie N Pour en savoir plus : https://association-aire.org/ et https://librairie.ademe.fr/mobilite-et-transport/4590-etude-retrofit.html Attention, si vous recevez une aide de l’ADEME, vous devrez ensuite conserver ce véhicule jusqu’à ce qu’il soit amorti dans votre comptabilité. | O167: =O166 -> 0
C168: ='2-Je choisis mes actions'!B112 -> Transformation d'une fourgonnette, d'un fourgon ou d'un camion à motorisation thermique en motorisation GNV (retrofit) | L168: ='2-Je choisis mes actions'!E112 -> 0 | M168: Pas besoin de devis | O168: =IF('2-Je choisis mes actions'!I112=0,0,IF(L168>0,1,0)) -> 0 | P168: ='2-Je choisis mes actions'!G112 -> 
C169: Une aide financière peut vous être versée pour transformer votre fourgonnette, fourgon ou camion à motorisation thermique diesel en motorisation fonctionnant au GNV (rétrofit). Vérifiez sur la carte grise. Votre véhicule est concerné dans les cas suivants : - J1 = CTTE (hors J3 = DERIV VP) - J1 = VASP et F2 = PTAC > 2500 kg - J= N2 ou N3 ; F2 = PTAC ≤ 19T - ou pour les VASP, la catégorie N Pour en savoir plus : https://association-aire.org/ et https://librairie.ademe.fr/mobilite-et-transport/4590-etude-retrofit.html Attention, si vous recevez une aide de l’ADEME, vous devrez ensuite conserver ce véhicule jusqu’à ce qu’il soit amorti dans votre comptabilité. | O169: =O168 -> 0
C170: ='2-Je choisis mes actions'!B113 -> Véhicule utilitaire léger frigorifique : achat d’un groupe frigorifique électrique | L170: ='2-Je choisis mes actions'!E113 -> 0 | M170: Pas besoin de devis | O170: =IF('2-Je choisis mes actions'!I113=0,0,IF(L170>0,1,0)) -> 0 | P170: ='2-Je choisis mes actions'!G113 -> 
C171: Une aide financière peut vous être versée pour l'achat et l'installation d'un groupe frigorifique électrique et le cas échéant d'une batterie additionnelle sur un véhicule utilitaire léger neuf ou immatriculé après le 01/09/2020 équipé d'une caisse isotherme agréée. Cette mesure recouvre l'achat et l'installation d'un groupe frigorifique électrique et le cas échéant d'une batterie additionnelle sur un véhicule utilitaire léger neuf équipé d'une caisse isotherme agréée. | O171: =O170 -> 0
C172: ='2-Je choisis mes actions'!B114 -> Vélo de service à assistance électrique, pliant ou adapté PMR | L172: ='2-Je choisis mes actions'!E114 -> 0 | M172: Pas besoin de devis | O172: =IF('2-Je choisis mes actions'!I114=0,0,IF(L172>0,1,0)) -> 0 | P172: ='2-Je choisis mes actions'!G114 -> 
C173: Une aide financière peut vous être versée pour compléter votre flotte de véhicule par un vélo à assistance électrique, un vélo pliant (à assistance électrique ou non) ou un vélo adapté aux PMR (à assistance électrique ou non). Le vélo sera équipé d'un compteur permettant de connaître les kilomètres réalisés. | O173: =O172 -> 0
C174: ='2-Je choisis mes actions'!B115 -> Vélo cargo pour un usage professionnel | L174: ='2-Je choisis mes actions'!E115 -> 0 | M174: Pas besoin de devis | O174: =IF('2-Je choisis mes actions'!I115=0,0,IF(L174>0,1,0)) -> 0 | P174: ='2-Je choisis mes actions'!G115 -> 
C175: Une aide financière peut vous être versée pour l’achat d’un vélo cargo, à assistance électrique ou non, réservé à un usage professionnel comme la livraison à la clientèle. Est considéré comme vélo-cargo, un cycle à deux ou 3 roues vendu pour transporter davantage de charge qu’un pilote avec 30kg de chargement supplémentaire (25kg à l’arrière et 5kg à l’avant). Cela inclut notamment les biporteurs, les triporteurs et tricycles et, par extension, l’ensemble attelage vélo + remorque (le vélo tracteur est en général un vélo de type tout terrain très solide, capable d’encaisser des chocs importants). Pour la logistique urbaine (livraison, artisans..), une aide financière peut vous être accordée pour l'aquisition d'une remorque vélo ou d'un conteneur vélo permettant de compléter l'équipement d'un vélo cargo ou d'un VAE. Ces matériels sont destinés à un usage permettant de transporter des marchandises. A noter : - vous pouvez bénéficier également du bonus écologique jusqu'à 1000€ pour l'achat d'un vélo-cargo : https://www.asp-public.fr/bonus-et-prime-la-conversion-pour-lachat-dun-velo-assistance-electrique - les vélo-cargos équipés de batteries au plomb ne sont pas éligibles. Attention, si vous recevez une aide de l’ADEME, vous devrez ensuite conserver ce véhicule jusqu’à ce qu’il soit amorti dans votre comptabilité. | O175: =O174 -> 0
C176: ='2-Je choisis mes actions'!B116 -> Abris à vélo avec toit | L176: ='2-Je choisis mes actions'!E116 -> 0 | M176: Pas besoin de devis | O176: =IF('2-Je choisis mes actions'!I116=0,0,IF(L176>0,1,0)) -> 0 | P176: ='2-Je choisis mes actions'!G116 -> 
C177: Une aide financière peut vous être versée pour l’installation d'abris à vélo avec toit à destination de vos salariés et de vos clients pour les déplacements quotidiens domicile-travail ainsi que les déplacements professionnels. Celui-ci doit être conforme au référentiel du programme CEE Alveole : https://drive.google.com/file/d/14oef0j1SwHWJO4WYPoIXVkbFNICgyFyQ/view Vous disposez également pour cette opération d'une exonération d'impôt dans le cadre d'une mise à disposition de vélo et des équipements de sécurité associés auprès de vos salariés comme précisé ici : https://bofip.impots.gouv.fr/bofip/10630-PGP.html/identifiant=BOI-IS-RICI-20-30-20190213 | O177: =O176 -> 0
C178: ='2-Je choisis mes actions'!B117 -> Diagnostic de flottes de véhicules | L178: ='2-Je choisis mes actions'!E117 -> 0 | M178: Pas besoin de devis | O178: =IF('2-Je choisis mes actions'!I117=0,0,IF(L178>0,1,0)) -> 0 | P178: ='2-Je choisis mes actions'!G117 -> 
C179: Une aide financière peut vous être versée pour financer un diagnostic de flottes de véhicules assuré par un prestataire extérieur. L'objectif de cette étude est d'analyser votre flotte de véhicules en vu de l'optimiser et de favoriser un renouvellement en véhicules moins polluants. Le cahier des charges est disponible à l'adresse : https://librairie.ademe.fr/air-et-bruit/4547-diagnostic-d-optimisation-de-flottes-de-vehicules.html. Pour une action plus ambitieuse, la méthodologie Mobilipro pourra être utilisée. Le gestionnaire de la flotte et le bureau d’étude spécialisé mènent ensemble le processus de suivi et d’évaluation des économies financières réalisées, des polluants et du CO2 évités. Plus d'informations concernant MOBILIPRO : https://nouvelle-aquitaine.ademe.fr/collectivites-et-secteur-public/animer-mon-territoire/mobilipro-optimiser-les-deplacements-professionnels | O179: =O178 -> 0
C180: ='2-Je choisis mes actions'!B121 -> Etat des lieux et proposition pour trier les déchets de bois, papier/carton, métaux, verre et plastiques ainsi que les fractions minérales et le plâtre | L180: ='2-Je choisis mes actions'!E121 -> 0 | M180: Pas besoin de devis | O180: =IF('2-Je choisis mes actions'!I121=0,0,IF(L180>0,1,0)) -> 0 | P180: ='2-Je choisis mes actions'!G121 -> 
C181: Une aide financière peut vous être versée pour réaliser un état des lieux et proposer des recommandations afin d’améliorer le tri des déchets valorisables de bois, papier/carton, métaux, verre et plastiques ainsi que les fractions minérales et le plâtre pour le secteur du BTP. Cette aide forfaitaire ne peut être accordée qu'à des entreprises ou des regroupements d'entreprises dont les déchets sont collectés par le service public et dont le volume total de déchets produits est inférieur ou égal à 1100 l/semaine (seuil réglementaire). Elle vise à promouvoir la collecte à la source des déchets de bois, papier/carton, métaux, verre et plastiques (Décret n° 2016-288 du 10 mars 2016 "Obligation de mettre en place le tri 5 flux") ainsi que les fractions minérales et le plâtre pour le secteur du BTP (Art. 74 de la loi AGEC). | O181: =O180 -> 0
C182: ='2-Je choisis mes actions'!B122 -> Analyse de process pour la prévention des déchets (méthode Comptabilité des flux de matière) | L182: ='2-Je choisis mes actions'!E122 -> 0 | M182: Pas besoin de devis | O182: =IF('2-Je choisis mes actions'!I122=0,0,IF(L182>0,1,0)) -> 0 | P182: ='2-Je choisis mes actions'!G122 -> 
C183: Une aide financière peut vous être versée pour réaliser une étude suivant la méthode de comptabilité des flux de matière. Les entreprises considèrent en général que le coût des déchets se limite aux coûts des prestations extérieures pour collecter et traiter ces déchets. Un déchet génère pourtant d'autres coûts pour l'entreprise, généralement méconnus car diffus et cachés, en particulier le coût de génération du déchet (coût de la matière première qui devient un déchet et coûts du processus qui lui est affecté). Ainsi, en moyenne, la facture de gestion des déchets représente moins de 7 % du coût complet de leurs déchets. La méthode de Comptabilité des Flux de Matières (Material Flow Cost Accounting, MFCA ISO 14051) permet d’identifier et de quantifier les flux et stocks de matières ainsi que les coûts associés. Cette méthode cible tous les flux qui ne contribuent pas à la réalisation du produit final ; elle impute à ces flux tous les coûts s’y rapportant. De cette façon, la méthode MFCA permet de calculer avec précision et fiabilité la répartition des coûts de production entre produits et déchets dans l’objectif de réduire ses pertes et réaliser des économies. | O183: =O182 -> 0
C184: ='2-Je choisis mes actions'!B123 -> Diagnostic pour réduire les emballages ou remplacer des emballages plastiques par d’autres | L184: ='2-Je choisis mes actions'!E123 -> 0 | M184: Pas besoin de devis | O184: =IF('2-Je choisis mes actions'!I123=0,0,IF(L184>0,1,0)) -> 0 | P184: ='2-Je choisis mes actions'!G123 -> 
C185: Une aide financière peut vous être versée pour financer un diagnostic devant servir à la réduction des emballages et le remplacement des emballages plastiques. Ce diagnostic consiste en : - la réalisation d’un état des lieux des emballages utilisés et des fonctionnalités auxquelles ils doivent répondre ; - la proposition et priorisation d’actions d’écoconception envisageables. Ces actions portent en particulier sur la réduction des emballages, la mise en place de systèmes de réemploi, l’amélioration de la recyclabilité et la substitution du plastique à usage unique par d’autres matériaux. L’aide prend en compte le coût d’un consultant externe et les frais en interne pour rassembler la documentation nécessaire sur les emballages utilisés et les fonctionnalités attendus. Vous acceptez alors d’être contacté par l’ADEME pour partager votre diagnostic, dans le respect de la confidentialité de vos données. Pour aider à la réalisation : « recommandations pour réaliser un diagnostic emballage » téléchargeable dans la médiathèque sur https://librairie.ademe.fr/dechets-economie-circulaire/4339-recommandations-pour-un-diagnostic-emballage.html | O185: =O184 -> 0
C186: ='2-Je choisis mes actions'!B124 -> Soutien aux réparateurs : logiciels, progiciels et outils de réparation | L186: ='2-Je choisis mes actions'!E124 -> 0 | M186: Pas besoin de devis | O186: =IF('2-Je choisis mes actions'!I124=0,0,IF(L186>0,1,0)) -> 0 | P186: ='2-Je choisis mes actions'!G124 -> 
C187: Il s’agit d’une aide forfaitaire qui vise à financer d’une part de l’investissement - tels que l’achat de logiciels ou progiciels de gestion commerciale ou de gestion de SAV, l’achat d’outils ou d’équipement de réparation (ex : outils de programmation propriétaire pour les cartes électroniques, équipement de remplacement et rebillage de composant, outils de manutention, etc.) – et d’autre part de la formation à la réparation, à l’utilisation d’outils numériques et à la qualité du service client (ex : pour favoriser la réparation de nouveaux produits qui arrivent sur le marché, la réparation au composant, la réparation dans le froid, dispositif de visio pour des diagnostics de panne à distance, de suivi d’activité et optimisation, etc.). Ces aides ont pour objectifs de faciliter le travail de réparation et de professionnaliser les secteurs de la réparation. | O187: =O186 -> 0
C188: ='2-Je choisis mes actions'!B125 -> Bilan des matières entrantes dans et sortantes de l’entreprise (méthode Bilan matière) | L188: ='2-Je choisis mes actions'!E125 -> 0 | M188: Pas besoin de devis | O188: =IF('2-Je choisis mes actions'!I125=0,0,IF(L188>0,1,0)) -> 0 | P188: ='2-Je choisis mes actions'!G125 -> 
C189: Une aide financière peut vous être versée pour couvrir les coûts de réalisation d’un Bilan de toutes les matières entrant et sortant de votre entreprise. Cette mesure s’adresse aux entreprises industrielles de transformation, le Bilan Matières vous permet de préciser vos enjeux en rapport avec les matières que vous utilisez : vulnérabilité et risques à anticiper sur l’ensemble de votre chaîne de valeur (fournisseurs, approvisionnement, qualité). Le bilan vous permettra également de réduire les consommations de matières premières et donc de réaliser des gains économiques et d’améliorer vos performances. | O189: =O188 -> 0
C190: ='2-Je choisis mes actions'!B126 -> Récupération des eaux de pluie | L190: ='2-Je choisis mes actions'!E126 -> 0 | M190: Pas besoin de devis | O190: =IF('2-Je choisis mes actions'!I126=0,0,IF(L190>0,1,0)) -> 0 | P190: ='2-Je choisis mes actions'!G126 -> 
C191: Une aide financière peut vous être versée pour couvrir les coûts d’achat de cuves d’au moins 10m3, pour récupérer les eaux de pluie de votre bâtiment existant. Ces cuves doivent être enterrées et associées à un système de filtration en amont et de gestion des surpressions en aval. | O191: =O190 -> 0
C192: ='2-Je choisis mes actions'!B127 -> Compacteurs mécaniques (cartons, plastiques, textiles et toutes autres matières valorisables…) et/ou broyeurs de végétaux | L192: ='2-Je choisis mes actions'!E127 -> 0 | M192: Pas besoin de devis | O192: =IF('2-Je choisis mes actions'!I127=0,0,IF(L192>0,1,0)) -> 0 | P192: ='2-Je choisis mes actions'!G127 -> 
C193: Une aide financière peut vous être versée pour couvrir les coûts d’achat d’outils de densification de déchets dont le volume important rend l’entreposage dans l'attente de leur enlèvement peu compatible avec la place disponible. Pour les végétaux, un broyeur peut également permettre leur valorisation sur place en paillage L'objectif est d'améliorer la qualité des déchets adressés dans les filières de recyclage matière afin de réduire les refus des recycleurs et, pour les végétaux, de réduire le volume à transporter en déchèterie. | O193: =O192 -> 0
C194: ='2-Je choisis mes actions'!B128 -> Concasseur mobile (déchets inertes du BTP) | L194: ='2-Je choisis mes actions'!E128 -> 0 | M194: Pas besoin de devis | O194: =IF('2-Je choisis mes actions'!I128=0,0,IF(L194>0,1,0)) -> 0 | P194: ='2-Je choisis mes actions'!G128 -> 
C195: Une aide financière peut vous être versée pour couvrir les coûts d’acquisition d’un équipement (concasseur mobile) permettant la réduction du volume de déchets inertes sur chantier. Cette aide forfaitaire ne concerne que les entreprises du bâtiment. | O195: =O194 -> 0
C196: ='2-Je choisis mes actions'!B129 -> Préparation des biodéchets : mise en place du tri, pré-collecte, formation du personnel, signalétique | L196: ='2-Je choisis mes actions'!E129 -> 0 | M196: =IF(P196="Oui","Devis à joindre","Pas besoin de devis") -> Pas besoin de devis | O196: =IF('2-Je choisis mes actions'!I129=0,0,IF(L196>0,1,0)) -> 0 | P196: ='2-Je choisis mes actions'!G129 -> 
C197: Une aide financière peut vous être versée pour financer les équipements utiles en amont de la phase de traitement des déchets de cuisine et de table à savoir : les tables de tri, la formation du personnel au nouveau geste de tri, la signalétique, les éventuelles adaptations des locaux et les bacs de tri (du boisseau à la caisse palette en passant par le bac de collecte classique). Cette aide est destinée aux entreprises produisant moins de 10 t/an de biodéchets (seuil réglementaire). | O197: =O196 -> 0
C198: ='2-Je choisis mes actions'!B130 -> Composteur en bac pour biodéchets | L198: ='2-Je choisis mes actions'!E130 -> 0 | M198: Pas besoin de devis | O198: =IF('2-Je choisis mes actions'!I130=0,0,IF(L198>0,1,0)) -> 0 | P198: ='2-Je choisis mes actions'!G130 -> 
C199: Une aide financière peut vous être versée pour financer un composteur en bac. Le composteur en bac est un équipement individuel ou collectif destiné au compostage des biodéchets. Il est généralement constitué d'une ossature en bois ou en plastique, munie d'un couvercle ainsi que d'une grille anti-rongeurs (recommandations ADEME). Il doit permettre l'apport de broyat, le brassage régulier du tas en cours de compostage (ventilation) afin de permettre la production d'un compost de qualité. La capacité du site de compostage doit être corrélée à la production de biodéchets. Pour davantage de conseils se référer aux documents suivants : Le compostage et le paillage : https://www.ademe.fr/sites/default/files/assets/documents/guide-pratique-compostage-et-paillage.pdf https://agirpourlatransition.ademe.fr/particuliers/maison/jardinage/compost-a-faire-tas-bac L'aide de l'ADEME est destinée aux entreprises produisant moins de 10 t/an de biodéchets (seuil réglementaire). | O199: =O198 -> 0
C200: ='2-Je choisis mes actions'!B131 -> Pavillon de compostage pour biodéchets | L200: ='2-Je choisis mes actions'!E131 -> 0 | M200: Pas besoin de devis | O200: =IF('2-Je choisis mes actions'!I131=0,0,IF(L200>0,1,0)) -> 0 | P200: ='2-Je choisis mes actions'!G131 -> 
C201: Une aide financière peut vous être versée pour financer un pavillon de compostage. Le pavillon de compostage est un équipement individuel ou collectif destiné au compostage des biodéchets. Il est généralement constitué d'un chalet en bois, compartimenté en 2 parties distinctes fermées appelées « casiers ». A côté de cette partie fermée, un emplacement est dédié au stockage du broyat végétal à mélanger avec les biodéchets afin d'obtenir le meilleur mélange possible et la production d'un compost de qualité. La capacité du site de compostage doit être corrélée à la production de biodéchets. Pour davantage de conseils se référer aux documents suivants : Le compostage et le paillage : https://www.ademe.fr/sites/default/files/assets/documents/guide-pratique-compostage-et-paillage.pdf L'aide de l'ADEME est destinée aux entreprises produisant moins de 10 t/an de biodéchets (seuil réglementaire). | O201: =O200 -> 0
C202: ='2-Je choisis mes actions'!B132 -> Benne de stockage compartimentée pour le tri des déchets du bâtiment | L202: ='2-Je choisis mes actions'!E132 -> 0 | M202: Pas besoin de devis | O202: =IF('2-Je choisis mes actions'!I132=0,0,IF(L202>0,1,0)) -> 0 | P202: ='2-Je choisis mes actions'!G132 -> 
C203: Une aide financière peut vous être versée pour acheter un contenant favorisant le tri à la source des déchets de chantier, en vue de respecter l’exigence de tri des 7 flux : papier/carton, métal, plastique, verre, bois, déchets de fraction minérale (béton, gravats, brique, tuile, ardoise…) et plâtre. Cette aide forfaitaire ne concerne que les entreprises du bâtiment. | O203: =O202 -> 0
C204: ='2-Je choisis mes actions'!B133 -> Contenants de type caisse-palettes ou futs (par lot de 7) pour les déchets du bâtiment | L204: ='2-Je choisis mes actions'!E133 -> 0 | M204: Pas besoin de devis | O204: =IF('2-Je choisis mes actions'!I133=0,0,IF(L204>0,1,0)) -> 0 | P204: ='2-Je choisis mes actions'!G133 -> 
C205: Une aide financière peut vous être versée pour acheter un lot de contenants favorisant le tri à la source des déchets de chantier, en vue de respecter l’exigence de tri des 7 flux : papier/carton, métal, plastique, verre, bois, déchets de fraction minérale (béton, gravats, brique, tuile, ardoise…) et plâtre. Cette aide concerne donc des lots de 7 caisse-palettes ou futs pour gérer ces 7 flux. Cette aide forfaitaire ne concerne que les entreprises du bâtiment. | O205: =O204 -> 0
C206: ='2-Je choisis mes actions'!B134 -> Contenants de type bacs à roulettes (par lot de 7) pour les déchets du bâtiment | L206: ='2-Je choisis mes actions'!E134 -> 0 | M206: Pas besoin de devis | O206: =IF('2-Je choisis mes actions'!I134=0,0,IF(L206>0,1,0)) -> 0 | P206: ='2-Je choisis mes actions'!G134 -> 
C207: Une aide financière peut vous être versée pour acheter des lots de bacs à roulettes pour réaliser le tri à la source des déchets de chantier, en vue de respecter l’exigence de tri des 7 flux : papier/carton, métal, plastique, verre, bois, déchets de fraction minérale (béton, gravats, brique, tuile, ardoise…) et plâtre. Cette aide concerne donc des lots de 7 bacs à roulettes pour gérer ces 7 flux. Cette aide forfaitaire ne concerne que les entreprises du bâtiment. | O207: =O206 -> 0
C208: ='2-Je choisis mes actions'!B135 -> Contenants souples de type big-bags réutilisables (lot de 7) et portants pour maintien big-bags ouverts pour les déchets du bâtiment | L208: ='2-Je choisis mes actions'!E135 -> 0 | M208: Pas besoin de devis | O208: =IF('2-Je choisis mes actions'!I135=0,0,IF(L208>0,1,0)) -> 0 | P208: ='2-Je choisis mes actions'!G135 -> 
C209: Une aide financière peut vous être versée pour acheter un lot de contenants souples de type big-bags favorisant le tri à la source des déchets de chantier, en vue de respecter l’exigence de tri des 7 flux : papier/carton, métal, plastique, verre, bois, déchets de fraction minérale (béton, gravats, brique, tuile, ardoise…) et plâtre. Cette aide concerne donc des lots de 7 big-bags pour gérer ces 7 flux, accompagnés de portant pour maintien ouvert. Cette aide forfaitaire ne concerne que les entreprises du bâtiment. | O209: =O208 -> 0
C210: ='2-Je choisis mes actions'!B138 -> Broyeurs de déchets plastiques pour réutilisation dans le process | L210: ='2-Je choisis mes actions'!E138 -> 0 | M210: =IF(P210="Oui","Devis à joindre","Pas besoin de devis") -> Pas besoin de devis | O210: =IF('2-Je choisis mes actions'!I138=0,0,IF(L210>0,1,0)) -> 0 | P210: ='2-Je choisis mes actions'!G138 -> 
C211: Cette action permet de financer des broyeurs de déchets plastiques permettant le traitement de chutes internes pour réincorporation en substitution de plastiques vierges dans le processus de production de produits finis. Si vous avez des projets complexes – y compris intégrant un broyeur – et/ou nécessitant un investissement important, nous vous suggérons de déposer une demande d’aide dans le cadre du programme ORPLAST : https://agirpourlatransition.ademe.fr/entreprises/dispositif-aide/20200922/orplast2020-168 | O211: =O210 -> 0
C212: ='2-Je choisis mes actions'!B139 -> Acquisition d’emballage ou de contenants réemployables en substitution du plastique à usage unique | L212: ='2-Je choisis mes actions'!E139 -> 0 | M212: =IF(P212="Oui","Devis à joindre","Pas besoin de devis") -> Pas besoin de devis | O212: =IF('2-Je choisis mes actions'!I139=0,0,IF(L212>0,1,0)) -> 0 | P212: ='2-Je choisis mes actions'!G139 -> 
C213: Une aide financière peut vous être versée pour l’acquisition d’emballages ou de contenants réemployables en substitution d'emballages ou contenants en plastique à usage unique. Ces emballages ou contenants réemployables doivent être recyclables*. Par ailleurs un système de réemploi de ces emballages ou contenants doit être fonctionnel (incitation au retour/collecte/lavage). Le bénéficiaire accepte de transmettre, sur demande de l’ADEME, une description du système de réemploi mis en place. Les bénéficiaires sont les entreprises des secteurs de la restauration (code NAF 56), du commerce (code NAF 47) et de la fabrication de boissons (code NAF 11). Si vous avez des projets complexes concernant le réemploi d’emballages ou de contenants nécessitant un investissement important, nous vous suggérons de déposer une demande d’aide dans le cadre du programme https://agirpourlatransition.ademe.fr/entreprises/dispositif-aide/aides-reemploi-reduction-substitution-emballages-contenants-notamment-plastique-a * Toutes les solutions d’emballages ou de contenants proposées dans les projets doivent êtres recyclables. Dans le cadre de l’instruction du présent dispositif d’aide de l’ADEME, sont considérés comme recyclable les emballages ménagers relevant des matériaux : - verre, papier carton, métaux, - plastiques dans les cas suivants : PET, PE souple ou rigide, PP rigide - ainsi que les filières de recyclage encore en développement : rigides en PS, bois et liège. De plus, seuls les emballages ne faisant pas l’objet d’un malus sont éligibles (voir page 10 du document Citéo « Le tarif 2021 pour le recyclage des emballages ménagers », https://bo.citeo.com/sites/default/files/2021-02/2021027-Citeo_Grille%20tarifaire_Tarif_2021.pdf) | O213: =O212 -> 0
... 31 more rows

Sheet Volet financier B (hidden)
C1: ="Date de version du fichier : "&TEXT(Accueil!C78,"JJ/MM/AAAA") -> Date de version du fichier : 24/01/2022
C2: =TODAY() -> 2022-01-21
A3: INFORMATION SUR L'ENTREPRISE
I4: Fonds chaleur : | J4: =CONSTANTES!B4 -> 1
B5: Secteur d'activité | I5: UG : | J5: =IFERROR(VLOOKUP('1-J''identifie mon entreprise'!$C$24,LIST_GEO!$H:$I,2,FALSE),"DR - Dir. Exécutive des Territoires") -> DR - Dir. Exécutive des Territoires
B7: Nom de l'entreprise : | C7: ='1-J''identifie mon entreprise'!$E$40 -> 0 | L7: 1
L8: 1
B9: Code Naf : | C9: =code_naf ->  | D9: =IFERROR(VLOOKUP(code_naf,LIST_NAF!#REF!,4,FALSE),"") ->  | L9: 1
L10: 1
C11: Entreprise qui dispose d'un bâtiments industriels : | D11: =IF(ch_bat_indus="","",ch_bat_indus) ->  | L11: =IF(aff_bat=1,1,0) -> 0
L12: =L13 -> 0
C13: secteur d'activité spécifique : | D13: =IF('1-J''identifie mon entreprise'!$D$16="","",'1-J''identifie mon entreprise'!$D$16:$F$16) ->  | L13: =IF(code_naf="9529Z",1,0) -> 0
L14: 1
C15: =IF(aff_collectivite=1,"collectivité locale :","régime micro-entreprise :") -> régime micro-entreprise : | D15: =IF(aff_collectivite=1,collectivite_locale,IF(micro_entreprise="","",micro_entreprise)) ->  | L15: 1
L16: 1
B17: Code postal | L17: 1
L18: 1
B19: Département : | C19: =ch_departement -> 0 | D19: Ville : | E19: ='1-J''identifie mon entreprise'!$E$24:$F$24 -> 0 | L19: 1
L20: 1
B21: Partenariat Fonds Tourisme durable | L21: =IF(partenariat=0,0,1) -> 0
L22: =L23 -> 0
E23: Avez-vous une activité d’hébergement touristique liée au tourisme social : | F23: =IF(ch_ftd_social="","",ch_ftd_social) ->  | L23: =IF(ftd_social=0,0,1) -> 0
L24: =L25 -> 0
E25: ='1-J''identifie mon entreprise'!E30 -> Avez-vous une activité de restauration ou à d’hébergement touristique liée à l’agritourisme qui représente au minimum 30% de votre chiffre d’affaire : | F25: =IF(ch_fdt_agri="","",ch_fdt_agri) ->  | L25: =IF(fdt_agri=0,0,1) -> 0
L26: =L27 -> 0
E27: Si vous avez un code partenaire fonds tourisme durable, veuillez l'indiquer ici : | F27: =IF(code_part=1,IF(ch_code_partenaire="","",ch_code_partenaire),"") ->  | L27: =IF(code_part=0,0,1) -> 0
L28: =L29 -> 0
C29: ='1-J''identifie mon entreprise'!C35 -> Avez-vous également une activité d'hébergement : | D29: =IF('1-J''identifie mon entreprise'!$D$35="","",'1-J''identifie mon entreprise'!$D$35) ->  | L29: =IF(act_ftd=0,0,1) -> 0
L30: =L21 -> 0
A31: ACTIONS SÉLÉCTIONNÉES | L31: 1
L32: 1
B33: ='2-Je choisis mes actions'!B5 -> Nom de l'action | C33: ='2-Je choisis mes actions'!C5 -> Quantité | D33: ='2-Je choisis mes actions'!D5 -> Type d'unité | E33: ='2-Je choisis mes actions'!E5 -> Coût prévisionnel total HT | F33: ='2-Je choisis mes actions'!F5 -> Montant prévisionnel de l'aide ADEME | G33: ='2-Je choisis mes actions'!G5 -> Devis à joindre à la demande d'aide ? | H33: Affichage onglet2- | I33: Poste de dépense AGIR | J33: Précision AGIR | K33: Programme budgétaire | L33: 1
A34: =IF('2-Je choisis mes actions'!I6=0,0,'2-Je choisis mes actions'!J6) -> 0 | B34: ='2-Je choisis mes actions'!B6 -> Modèle d'affaires Restauration durable | C34: ='2-Je choisis mes actions'!C6 -> 0 | D34: ='2-Je choisis mes actions'!D6 -> Oui/Non | E34: =IF(nb_erreur=0,'2-Je choisis mes actions'!E6*$H34,0) -> 0 | F34: =IF(nb_erreur=0,'2-Je choisis mes actions'!F6*$H34,0) -> 0 | G34: =IF('2-Je choisis mes actions'!G6="Oui","Oui","") ->  | H34: ='2-Je choisis mes actions'!I6 -> 0 | I34: Prestations extérieurs - Autres dépenses de sous traitance (études, honoraires, etc.) | J34: Restauration durable - Modèle d'affaires | K34: ='2-Je choisis mes actions'!K6 -> L.ET | L34: =IF(OR(H34=0,E34=0,nb_erreur>0),0,1) -> 0 | M34: ='3-Synthese et finalisation'!C18 -> Un consultant peut vous accompagner dans l’établissement d’un nouveau modèle d’affaires. Suite à une expertise de vos dépenses courantes, une analyse des consommations de l'établissement et à une étude de marché, le prestataire évaluera les investissements et revenus attendus d'une activité de restauration avec un caractère durable affirmé, en particulier sur les volets : - Carte de restauration plus durable ; - Circuits courts de proximité et valorisation des produits locaux ; - Lutte contre le gaspillage alimentaire - Maîtrise des consommations (énergie, eau) et contrats d'énergie verte ; - Mobilités douces des clients ; - Valorisation du patrimoine naturel (ex.: refuge LPO). Le prestataire remettra le rapport final à l’établissement, qui le tiendra à disposition de l'ADEME. | N34: =ROUND(IF($F$34=SUM($A$34:$A$44),A34,$F$34*A34/SUM($A$34:$A$44)),2) -> 0
A35: =IF('2-Je choisis mes actions'!I7=0,0,'2-Je choisis mes actions'!J7) -> 0 | B35: ='2-Je choisis mes actions'!B7 -> Formation à la cuisine durable et aux éco-gestes en restauration | C35: ='2-Je choisis mes actions'!C7 -> 0 | D35: ='2-Je choisis mes actions'!D7 -> Oui/Non | E35: =IF(nb_erreur=0,'2-Je choisis mes actions'!E7*$H35,0) -> 0 | F35: =IF(nb_erreur=0,'2-Je choisis mes actions'!F7*$H35,0) -> 0 | G35: =IF('2-Je choisis mes actions'!G7="Oui","Oui","") ->  | H35: ='2-Je choisis mes actions'!I7 -> 0 | I35: Prestations extérieurs de formation / communication / animation | J35: Restauration durable - Formation cuisine durable | K35: ='2-Je choisis mes actions'!K7 -> L.ET | L35: 0 | M35: ='3-Synthese et finalisation'!C20 -> Cette action vise à encourager la formation du personnel temporaire et permanent aux enjeux et techniques de l’alimentation durable et aux éco-gestes en restauration. Vous pouvez bénéficier d’une aide pour financer une formation courte pour un ou plusieurs salariés de l’entreprise sur les cuisines végétales ou alternatives, la lutte contre le gaspillage alimentaire, les éco-gestes en restauration, les enjeux environnementaux de l’alimentation, l’alimentation durable etc. La formation doit être dispensée par un organisme de formation habilité. Le bénéficiaire conservera les attestations de formation qu’il tiendra à disposition de l’ADEME. | N35: =ROUND(IF($F$34=SUM($A$34:$A$44),A35,$F$34*A35/SUM($A$34:$A$44)),2) -> 0
A36: =IF('2-Je choisis mes actions'!I8=0,0,'2-Je choisis mes actions'!J8) -> 0 | B36: ='2-Je choisis mes actions'!B8 -> Communication - Supports/actions de communication valorisant la restauration durable | C36: ='2-Je choisis mes actions'!C8 -> 0 | D36: ='2-Je choisis mes actions'!D8 -> Oui/Non | E36: =IF(nb_erreur=0,'2-Je choisis mes actions'!E8*$H36,0) -> 0 | F36: =IF(nb_erreur=0,'2-Je choisis mes actions'!F8*$H36,0) -> 0 | G36: =IF('2-Je choisis mes actions'!G8="Oui","Oui","") ->  | H36: ='2-Je choisis mes actions'!I8 -> 0 | I36: Prestations extérieurs de formation / communication / animation | J36: Restauration durable - Communication | K36: ='2-Je choisis mes actions'!K8 -> L.ET | L36: 0 | M36: ='3-Synthese et finalisation'!C22 -> Cette ligne consiste à soutenir les actions de communication pérennes qui mettent en valeur la démarche durable du restaurant, les producteurs et fournisseurs locaux, ainsi que les écogestes dans le restaurant pour les salarié.e.s et pour les client.e.s : achat de supports de communication matériels ou numérique pérennes et/ou actions immatérielles à vocation pérenne. En activant cette ligne, le bénéficiaire s'engage à mettre en avant auprès des clients et des salariés l’alimentation durable, la lutte contre le gaspillage, les approvisionnements de proximité et circuits courts, les éco-gestes ou les engagements environnementaux. Vous pouvez bénéficier d’une aide pour : - Des achats de supports de communication matériels ou numériques pérennes : o L’achat de panneaux/supports en matériaux durables pour les menus du jour ; le renouvellement des cartes pour l’évolution de celle-ci en lien avec les engagements pris et la mise en valeur des approvisionnements locaux / sous labels, à l’exclusion des supports à usage unique. Les panneaux d’affichage électroniques ou écrans ne sont pas éligibles. o L’achat de tableaux/panneaux/supports d’affichage en matériaux biosourcés, naturels ou recyclables, ou supports imprimés à l’exclusion des supports à usage unique pour l’information des client.e.s sur la démarche de transition écologique du restaurant concernant : les actions mises en place sur le restaurant ; les caractéristiques des approvisionnements, notamment alimentaires (local, bio, autres labels…), la valorisation de producteurs partenaires ; le travail réalisé sur les menus et sur la lutte contre le gaspillage ; les éco-gestes au quotidien ; les démarches environnementales du restaurant. Les panneaux d’affichage électroniques ou écrans ne sont pas éligibles. - Les achats de prestations immatérielles : o La création ou l’adaptation de supports de communication imprimés ou numériques (prestation intellectuelle), y compris visuels, photos, stratégie de communication o L’adaptation du site internet ou des supports de communication numérique (réseaux sociaux, plates formes engagées sur la restauration durable) ; dans ce cas le bénéficiaire s'engagera à mettre en place un site éco-conçu selon les recommandations de l'Institut du numérique responsable. | N36: =ROUND(IF($F$34=SUM($A$34:$A$44),A36,$F$34*A36/SUM($A$34:$A$44)),2) -> 0
A37: =IF('2-Je choisis mes actions'!I9=0,0,'2-Je choisis mes actions'!J9) -> 0 | B37: ='2-Je choisis mes actions'!B9 -> Evolution des approvisionnements et des menus | C37: ='2-Je choisis mes actions'!C9 -> 0 | D37: ='2-Je choisis mes actions'!D9 -> Oui/Non | E37: =IF(nb_erreur=0,'2-Je choisis mes actions'!E9*$H37,0) -> 0 | F37: =IF(nb_erreur=0,'2-Je choisis mes actions'!F9*$H37,0) -> 0 | G37: =IF('2-Je choisis mes actions'!G9="Oui","Oui","") ->  | H37: ='2-Je choisis mes actions'!I9 -> 0 | I37: Autres équipements | J37: Restauration durable - appros et menus | K37: ='2-Je choisis mes actions'!K9 -> L.ET | L37: 0 | M37: ='3-Synthese et finalisation'!C24 -> Cette action vise à faire évoluer les approvisionnements et les menus, en favorisant ; - la relocalisation du circuit d’approvisionnement - l’augmentation et la mise en œuvre du végétal, les produits de qualité et/ou durables, - l’ancrage dans le territoire, - le fait-maison via l’usage de produits bruts - la conservation des produits frais. Vous pouvez bénéficier d’une aide pour tout matériel de cuisine ou équipement contribuant à l’objectif, par exemple : - équipements permettant de travailler des produits bruts, végétaux tels que éplucheuses, essoreuses, robots, aménagement spécifique pour une légumerie etc… - équipements nécessaires à la relocalisation des approvisionnements, par exemple emballages navettes avec producteurs locaux - Les équipements permettant de faire de la conservation non énergivore à partir de produits locaux/de saison, sont également éligiblespar exemple : conserves, fermentation, garde-manger etc… - extension, conversion, création d’un potager et/ou verger selon les principes de l’agriculture biologique (pas de certification demandée). Le restaurateur ne pourra pas afficher « produits AB « s’il n’est pas certifié. | N37: 0
A38: =IF('2-Je choisis mes actions'!I10=0,0,'2-Je choisis mes actions'!J10) -> 0 | B38: ='2-Je choisis mes actions'!B10 -> Lutte contre le gaspillage alimentaire | C38: ='2-Je choisis mes actions'!C10 -> 0 | D38: ='2-Je choisis mes actions'!D10 -> Oui/Non | E38: =IF(nb_erreur=0,'2-Je choisis mes actions'!E10*$H38,0) -> 0 | F38: =IF(nb_erreur=0,'2-Je choisis mes actions'!F10*$H38,0) -> 0 | G38: =IF('2-Je choisis mes actions'!G10="Oui","Oui","") ->  | H38: ='2-Je choisis mes actions'!I10 -> 0 | I38: Autres équipements | J38: Restauration durable - Lutte contre le gaspillage alimentaire | K38: ='2-Je choisis mes actions'!K10 -> L.ET | L38: 0 | M38: ='3-Synthese et finalisation'!C26 -> Cette action vise à suivre et réduire le gaspillage alimentaire en cuisine et en salle. Vous pouvez bénéficier d’une aide pour tout matériel ou équipement contribuant à l’objectif, par exemple : - matériel pour limiter les pertes alimentaires grâce à une meilleure conservation : cellule de refroidissement / surgélation neuve (pour un remplacement ou un retrofit, voir « Mes actions liées à l'efficacité énergétique des équipements de froid commercial »), tables/tours réfrigérées si mise en place en vue de la lutte contre le gaspillage, - matériel pour limiter contre le gaspillage en cuisine : thermomètre ou autre système de vérification de la température des aliments, étiqueteuses, déshydrateurs alimentaires - matériel pour limiter le gaspillage en salle : vaisselle durable adaptable à l'appétit des convives (petites assiettes et grandes assiettes), contenants durables pour permettre les dons (à l'exclusion des contenants en plastique), contenant pour les « doggy bags » réutilisables ou recyclables, balance pour tarification différenciée au poids, - matériel pour suivre le gaspillage alimentaire : matériel de pesée des déchets y compris balances connectées, , licence de logiciel de suivi des pesées du gaspillage alimentaire, table de tri… | N38: 0
A39: =IF('2-Je choisis mes actions'!I11=0,0,'2-Je choisis mes actions'!J11) -> 0 | B39: ='2-Je choisis mes actions'!B11 -> Prévention des déchets non alimentaires en restauration | C39: ='2-Je choisis mes actions'!C11 -> 0 | D39: ='2-Je choisis mes actions'!D11 -> Oui/Non | E39: =IF(nb_erreur=0,'2-Je choisis mes actions'!E11*$H39,0) -> 0 | F39: =IF(nb_erreur=0,'2-Je choisis mes actions'!F11*$H39,0) -> 0 | G39: =IF('2-Je choisis mes actions'!G11="Oui","Oui","") ->  | H39: ='2-Je choisis mes actions'!I11 -> 0 | I39: Autres équipements | J39: Restauration durable - Prévention gestion déchets non alimentaires | K39: ='2-Je choisis mes actions'!K11 -> L.ET | L39: 0 | M39: ='3-Synthese et finalisation'!C28 -> Cette action vise à réduire les déchets non alimentaires, au sein du restaurant / pour l’activité de traiteur : - réduction des déchets d’emballages - suppression des produits jetables ou en dose individuelle - équipements permettant la réduction voire la suppression de la consommation de produits non alimentaires, notamment ceux nécessaires au nettoyage, entretien, lavage Vous pouvez bénéficier d’une aide pour tout matériel ou équipement (hors consommables) contribuant à l’objectif : par exemple, matériel navette fournisseurs, contenants pour stockage de produits vrac, contenants durables pour substitution des emballages individuels (café, thé, sucre, sauces...) ; achat vaisselle/couverts/serviettes/nappes/dessous de table pour substituer du jetable ; achat de lavettes et équipements de protection (charlottes, gants, masques, ..) réutilisables en substitution de jetable, équipements permettant de supprimer l’utilisation de produits dangereux ... Le tri et la gestion des biodéchets sont éligibles sur les lignes Tremplin / Economie circulaire. L'acquisition d’emballage ou de contenants réemployables en substitution d'emballages ou contenants en plastique à usage unique (par ex : achat de contenants consignés pour vente à emporter) sont éligibles sur les lignes Tremplin / Economie circulaire. | N39: 0
A40: =IF('2-Je choisis mes actions'!I12=0,0,'2-Je choisis mes actions'!J12) -> 0 | B40: ='2-Je choisis mes actions'!B12 -> Energie - Economie d’énergie en cuisine (cuisson, froid) | C40: ='2-Je choisis mes actions'!C12 -> 0 | D40: ='2-Je choisis mes actions'!D12 -> Oui/Non | E40: =IF(nb_erreur=0,'2-Je choisis mes actions'!E12*$H40,0) -> 0 | F40: =IF(nb_erreur=0,'2-Je choisis mes actions'!F12*$H40,0) -> 0 | G40: =IF('2-Je choisis mes actions'!G12="Oui","Oui","") ->  | H40: ='2-Je choisis mes actions'!I12 -> 0 | I40: Autres équipements | J40: Restauration durable - Economie d’énergie en cuisine | K40: ='2-Je choisis mes actions'!K12 -> L.ET | L40: 0 | M40: ='3-Synthese et finalisation'!C30 -> Cette action vise à réaliser des économies d'énergie en cuisine sur les postes de cuisson, lavage et séchage du linge). A noter que le lavage de la vaisselle est concerné par la ligne Eau-Economie d’eau en cuisine). Vous pouvez bénéficier d’une aide pour tout matériel ou équipement contribuant à : - réduire la consommation d’énergie liée à la cuisson. Par exemple : achat de matériel de cuisson ou de froid plus économe en énergie) permettant des économies (thermostats/thermomètres), équipements permettant de réduire la consommation des appareils de cuisson existants (ex : détecteur de marmite…), équipement de cuisson basse énergie, couvercles, équipements pour une cuisson basse consommation… -réduire la consommation d’énergie liée au lavage et au séchage du linge nécessaire à la restauration tels que nappes, serviettes, textiles de cuisine… Pour les sèche-linge ≥ 8 kg - Seuls sont éligibles les sèche-linge professionnels de forte capacité : poids de linge ≥ 8 kg, - Energie de séchage soit inférieure à 0,25 kWh/kg linge. - Pour exemple, TopTen référence ce type d’équipements jusqu’à 23kg (alors que Topten France ne référence les équipements que jusqu’à 9kg) : https://www.topten.ch/business/products/bus_tumble_driers Pour les lave-linge ≥ 7 kg - Les lave-linge commerciaux ou professionnels de choisir ceux avec une consommation < 7 L par kg de linge lavé - Les lave-linge ménagers doivent appartenir à la classe énergétique A et avoir un indice de réparabilité >7.0 Pour les lave-linge et sèche-linge combinés ≥ 7kg - Les lave-linge sèche linge combinés ménagers doivent appartenir à la classe énergétique A A noter : les appareils de cuisson ne sont pas éligibles et l’isolation des meubles réfrigérés et chambres froides et le remplacement d’équipements (armoires frigorifiques, fluides par des matériels avec des fluides émettant moins de gaz à effet de serre), sont visés par d’autres lignes de la rubrique « Mes actions liées à l’efficacité énergétique des équipements de froid commercial ». | N40: 0
A41: =IF('2-Je choisis mes actions'!I13=0,0,'2-Je choisis mes actions'!J13) -> 0 | B41: ='2-Je choisis mes actions'!B13 -> Energie - Confort d'été et d’hiver liés à l’activité de restauration | C41: ='2-Je choisis mes actions'!C13 -> 0 | D41: ='2-Je choisis mes actions'!D13 -> Oui/Non | E41: =IF(nb_erreur=0,'2-Je choisis mes actions'!E13*$H41,0) -> 0 | F41: =IF(nb_erreur=0,'2-Je choisis mes actions'!F13*$H41,0) -> 0 | G41: =IF('2-Je choisis mes actions'!G13="Oui","Oui","") ->  | H41: ='2-Je choisis mes actions'!I13 -> 0 | I41: Autres équipements | J41: Restauration durable - Confort d'été et d’hiver | K41: ='2-Je choisis mes actions'!K13 -> L.ET | L41: 0 | M41: ='3-Synthese et finalisation'!C32 -> 1/ Concernant le confort d’hiver, les actions visent à améliorer le confort thermique à l’intérieur du restaurant et pour la consommation alimentaire en extérieur. CONFORT EXTERIEUR : cette aide exclut tout dispositif de chauffage consommant de l’énergie. Vous pouvez bénéficier d’une aide pour : achat de couvertures, aménagements brise vent etc…. POUR LE CONFORT INTERIEUR : Pour maintenir la consommation d'énergie à un niveau raisonnable, il est nécessaire de réguler les températures en fonction des besoins réels et de l'occupation ou non des différentes zones du restaurant. Il est notamment très important de posséder un dispositif de régulation thermique. Vous pouvez bénéficier d’une aide pour financer des robinets thermostatiques de radiateur, un dispositif de détection d'ouverture de fenêtre permettant d’interrompre le chauffage (et la climatisation si elle est présente), un programmateur horaire, ou un système de gestion par zone des consignes des radiateurs. En activant cette ligne, le bénéficiaire s'engage sur des consignes de température selon leur occupation : 20°C à 22°C si restaurant occupé ; 16°C à 18°C si restaurant inoccupé pendant une courte période ; maintien à 12°C-14°C si inoccupé pendant une longue période. 2/ Concernant le confort d’été : Cette action vise à la fois à maîtriser les consommations d’énergie liées à la climatisation (en été), et à améliorer le confort thermique sur ces saisons, dans le cadre de l’activité de restauration (bâtiment et extérieurs dédiés à l’activité de restauration). Les actions ont pour objectif de limiter voire supprimer l’usage de la climatisation par : - Amélioration de l’ombrage et la préservation du frais à l'extérieur en été ; - Réduction des apports de chaleur à l’intérieur en agissant sur la protection des ouvertures et l’apport de frais par la végétalisation et la désimperméabilisation Sont éligibles : - protection des ouvrants : pose de volets, stores pare-soleil intérieurs ou extérieurs, films solaires sur les ouvrants… - Création de rafraîchissement par ombrage et évapotranspiration des plantations pour espaces extérieurs de restauration et ombrage des vitrages et murs = uniquement par végétalisation : plantation, pergolas en bois naturel avec ombrage végétal - Végétalisation (plantations adaptées aux futures conditions climatiques et cohérentes avec la biodiversité locale : choisir des plantes peu gourmandes en eau et privilégier le paillage) : étude climatique et paysagère, préparation et plantation des murs végétaux - Travaux de désimperméabilisation - Plantations adaptées aux conditions climatiques Non éligibles : rideaux, voilages, ombrières, changement de menuiseries en double vitrage | N41: 0
A42: =IF('2-Je choisis mes actions'!I14=0,0,'2-Je choisis mes actions'!J14) -> 0 | B42: ='2-Je choisis mes actions'!B14 -> Eau - Dispositifs d'économie d'eau en cuisine | C42: ='2-Je choisis mes actions'!C14 -> 0 | D42: ='2-Je choisis mes actions'!D14 -> Oui/Non | E42: =IF(nb_erreur=0,'2-Je choisis mes actions'!E14*$H42,0) -> 0 | F42: =IF(nb_erreur=0,'2-Je choisis mes actions'!F14*$H42,0) -> 0 | G42: =IF('2-Je choisis mes actions'!G14="Oui","Oui","") ->  | H42: ='2-Je choisis mes actions'!I14 -> 0 | I42: Autres équipements | J42: Restauration durable - Economie d'eau cuisine | K42: ='2-Je choisis mes actions'!K14 -> L.ET | L42: 0 | M42: ='3-Synthese et finalisation'!C34 -> Cette action vise à réaliser des économies d'eau en cuisine pour le lavage et la préparation des repas. Cette action concerne les points d'eau des cuisines . Vous pouvez bénéficier d’une aide pour : - Robinetterie : Les économiseurs d'eau, les mitigeurs d’eau… - Les équipements pour récupérer ou réutiliser l’eau - Les équipements de lavage économes en eau et les lave-vaisselle selon critères eau + énergie mentioonnés ci-dessous - Equipements de suivi des consommations d’eau Pour les lave-vaisselle, l’obligation de respecter les critères suivants : - respecter les seuils de consommation d’eau - soit eau de rinçage finale de la machine principale max 3.0 litres/panier (selon Ecolabel Nordic swan) - soit consommation d’eau conforme au critère C44 de l’écolabel européen sur les hébergements : - 10 litres/cycle pour un lave-vaisselle ménagers 15 couverts ; - 10 litres/cycle pour un lave-vaisselle ménagers 14 couverts ; - 10 litres/cycle pour un lave-vaisselle ménagers 13 couverts ; - 9 litres/cycle pour un lave-vaisselle ménagers 12 couverts ; - 9 litres/cycle pour un lave-vaisselle ménagers 9 couverts ; - 7 litres/cycle pour un lave-vaisselle ménagers 6 couverts ; - 9,5 litres/cycle pour un lave-vaisselle ménagers 4 couverts ; - ET appartenir au minimum à la classe énergétique A++ selon le système d'étiquetage énergétique de l'UE conformément à l'annexe VI du règlement délégué (UE) nº 1059/2010 de la Commission ou la classe A ou B depuis le 01/01/2021 | N42: 0
A43: =IF('2-Je choisis mes actions'!I15=0,0,'2-Je choisis mes actions'!J15) -> 0 | B43: ='2-Je choisis mes actions'!B15 -> Eau - Dispositifs d'économie d'eau dans les sanitaires des restaurants / de l’activité de restauration | C43: ='2-Je choisis mes actions'!C15 -> 0 | D43: ='2-Je choisis mes actions'!D15 -> Oui/Non | E43: =IF(nb_erreur=0,'2-Je choisis mes actions'!E15*$H43,0) -> 0 | F43: =IF(nb_erreur=0,'2-Je choisis mes actions'!F15*$H43,0) -> 0 | G43: =IF('2-Je choisis mes actions'!G15="Oui","Oui","") ->  | H43: ='2-Je choisis mes actions'!I15 -> 0 | I43: Autres équipements | J43: Restauration durable - Economie d'eau sanitaires | K43: ='2-Je choisis mes actions'!K15 -> L.ET | L43: 0 | M43: ='3-Synthese et finalisation'!C36 -> Cette action vise à réaliser des économies d'eau dans les sanitaires des restaurants / de l’activité de restauration (sanitaires du personnel et/ou des convives). Vous pouvez bénéficier d’une aide pour : - Equipements des lavabos : Les économiseurs d'eau, les robinets mitigeurs pour les lavabos : - Equipements pour les WC : Les chasses d’eau à double commande et/ou plaquette de réservoir pour les toilettes. - Urinoirs avec écoulement déclenché en fonction de la présence, urinoirs sans eau - Equipements de suivi des consommations d’eau - Les toilettes sèches, qui ne requièrent aucune utilisation d'eau. Plusieurs systèmes existent (à compost, à séparation etc.) pouvant convenir aux différentes contraintes d'usage ou de bâtiment. Avant installation, le bénéficiaire se renseignera auprès des compétences locales pour connaître la règlementation inhérente aux départements en matière de toilettes sèches. L’auto-installation des équipements économiseurs d’eau est autorisée. Le bénéficiaire s’engage à mettre en place simultanément une information de ses clients aux éco-gestes et aux économies d’eau. | N43: 0
A44: =IF('2-Je choisis mes actions'!I16=0,0,'2-Je choisis mes actions'!J16) -> 0 | B44: ='2-Je choisis mes actions'!B16 -> Eau - dispositifs d’économie d’eau pour les espaces extérieurs et potagers liés à l'activité de restauration | C44: ='2-Je choisis mes actions'!C16 -> 0 | D44: ='2-Je choisis mes actions'!D16 -> Oui/Non | E44: =IF(nb_erreur=0,'2-Je choisis mes actions'!E16*$H44,0) -> 0 | F44: =IF(nb_erreur=0,'2-Je choisis mes actions'!F16*$H44,0) -> 0 | G44: =IF('2-Je choisis mes actions'!G16="Oui","Oui","") ->  | H44: ='2-Je choisis mes actions'!I16 -> 0 | I44: Autres équipements | J44: Restauration durable - Economie d’eau extérieurs | K44: ='2-Je choisis mes actions'!K16 -> L.ET | L44: 0 | M44: ='3-Synthese et finalisation'!C38 -> Cette action vise à réaliser des économies d'eau sur les espaces verts directement liés à l’activité de restauration : espaces extérieurs de restauration (jardin, terrasse) et potager lié à l’activité de restauration (herbes aromatiques, production de fruits/légumes utilisés en cuisine). Vous pouvez bénéficier d’une aide pour les dispositifs économes d’arrosage (goutte à goutte etc.). En bénéficiant de cette aide, le bénéficiaire s’engage à cultiver/entretenir en priorité des espèces peu gourmandes en eau, adaptées au climat local, privilégier le paillage, et à privilégier les sources d’eau non issues du réseau d’eau potable (par exemple récupération des eaux de pluie). En bénéficiant de cette aide, le bénéficiaire s’engage à cultiver/entretenir en priorité des espèces économes en eau et adaptées au climat local, et à privilégier les sources d’eau non issues du réseau d’eau potable (par exemple récupération des eaux de pluie). | N44: 0
A45: =IF('2-Je choisis mes actions'!I17=0,0,'2-Je choisis mes actions'!J17) -> 0 | B45: ='2-Je choisis mes actions'!B17 -> r12 | C45: ='2-Je choisis mes actions'!C17 -> 0 | D45: ='2-Je choisis mes actions'!D17 -> 0 | E45: =IF(nb_erreur=0,'2-Je choisis mes actions'!E17*$H45,0) -> 0 | F45: =IF(nb_erreur=0,'2-Je choisis mes actions'!F17*$H45,0) -> 0 | G45: =IF('2-Je choisis mes actions'!G17="Oui","Oui","") ->  | H45: ='2-Je choisis mes actions'!I17 -> 0 | I45: Autres équipements | J45: r12 | K45: ='2-Je choisis mes actions'!K17 -> L.ET | L45: 0 | N45: =$K$155*F45 -> 
A46: =IF('2-Je choisis mes actions'!I18=0,0,'2-Je choisis mes actions'!J18) -> 0 | B46: ='2-Je choisis mes actions'!B18 -> r13 | C46: ='2-Je choisis mes actions'!C18 -> 0 | D46: ='2-Je choisis mes actions'!D18 -> 0 | E46: =IF(nb_erreur=0,'2-Je choisis mes actions'!E18*$H46,0) -> 0 | F46: =IF(nb_erreur=0,'2-Je choisis mes actions'!F18*$H46,0) -> 0 | G46: =IF('2-Je choisis mes actions'!G18="Oui","Oui","") ->  | H46: ='2-Je choisis mes actions'!I18 -> 0 | I46: Autres équipements | J46: r13 | K46: ='2-Je choisis mes actions'!K18 -> L.ET | L46: 0
A47: =IF('2-Je choisis mes actions'!I19=0,0,'2-Je choisis mes actions'!J19) -> 0 | B47: ='2-Je choisis mes actions'!B19 -> r14 | C47: ='2-Je choisis mes actions'!C19 -> 0 | D47: ='2-Je choisis mes actions'!D19 -> 0 | E47: =IF(nb_erreur=0,'2-Je choisis mes actions'!E19*$H47,0) -> 0 | F47: =IF(nb_erreur=0,'2-Je choisis mes actions'!F19*$H47,0) -> 0 | G47: =IF('2-Je choisis mes actions'!G19="Oui","Oui","") ->  | H47: ='2-Je choisis mes actions'!I19 -> 0 | I47: Autres équipements | J47: r14 | K47: ='2-Je choisis mes actions'!K19 -> L.ET | L47: 0
A48: =IF('2-Je choisis mes actions'!I20=0,0,'2-Je choisis mes actions'!J20) -> 0 | B48: ='2-Je choisis mes actions'!B20 -> r15 | C48: ='2-Je choisis mes actions'!C20 -> 0 | D48: ='2-Je choisis mes actions'!D20 -> 0 | E48: =IF(nb_erreur=0,'2-Je choisis mes actions'!E20*$H48,0) -> 0 | F48: =IF(nb_erreur=0,'2-Je choisis mes actions'!F20*$H48,0) -> 0 | G48: =IF('2-Je choisis mes actions'!G20="Oui","Oui","") ->  | H48: ='2-Je choisis mes actions'!I20 -> 0 | I48: Autres équipements | J48: r15 | K48: ='2-Je choisis mes actions'!K20 -> L.ET | L48: 0
A49: =IF('2-Je choisis mes actions'!I21=0,0,'2-Je choisis mes actions'!J21) -> 0 | B49: ='2-Je choisis mes actions'!B21 -> r16 | C49: ='2-Je choisis mes actions'!C21 -> 0 | D49: ='2-Je choisis mes actions'!D21 -> 0 | E49: =IF(nb_erreur=0,'2-Je choisis mes actions'!E21*$H49,0) -> 0 | F49: =IF(nb_erreur=0,'2-Je choisis mes actions'!F21*$H49,0) -> 0 | G49: =IF('2-Je choisis mes actions'!G21="Oui","Oui","") ->  | H49: ='2-Je choisis mes actions'!I21 -> 0 | I49: Autres équipements | J49: r16 | K49: ='2-Je choisis mes actions'!K21 -> L.ET | L49: 0
A50: =IF('2-Je choisis mes actions'!I22=0,0,'2-Je choisis mes actions'!J22) -> 0 | B50: ='2-Je choisis mes actions'!B22 -> r17 | C50: ='2-Je choisis mes actions'!C22 -> 0 | D50: ='2-Je choisis mes actions'!D22 -> 0 | E50: =IF(nb_erreur=0,'2-Je choisis mes actions'!E22*$H50,0) -> 0 | F50: =IF(nb_erreur=0,'2-Je choisis mes actions'!F22*$H50,0) -> 0 | G50: =IF('2-Je choisis mes actions'!G22="Oui","Oui","") ->  | H50: ='2-Je choisis mes actions'!I22 -> 0 | I50: Autres équipements | J50: r17 | K50: ='2-Je choisis mes actions'!K22 -> L.ET | L50: 0
A51: =IF('2-Je choisis mes actions'!I23=0,0,'2-Je choisis mes actions'!J23) -> 0 | B51: ='2-Je choisis mes actions'!B23 -> r18 | C51: ='2-Je choisis mes actions'!C23 -> 0 | D51: ='2-Je choisis mes actions'!D23 -> 0 | E51: =IF(nb_erreur=0,'2-Je choisis mes actions'!E23*$H51,0) -> 0 | F51: =IF(nb_erreur=0,'2-Je choisis mes actions'!F23*$H51,0) -> 0 | G51: =IF('2-Je choisis mes actions'!G23="Oui","Oui","") ->  | H51: ='2-Je choisis mes actions'!I23 -> 0 | I51: Autres équipements | J51: r18 | K51: ='2-Je choisis mes actions'!K23 -> L.ET | L51: 0
A52: =IF('2-Je choisis mes actions'!I24=0,0,'2-Je choisis mes actions'!J24) -> 0 | B52: ='2-Je choisis mes actions'!B24 -> r19 | C52: ='2-Je choisis mes actions'!C24 -> 0 | D52: ='2-Je choisis mes actions'!D24 -> 0 | E52: =IF(nb_erreur=0,'2-Je choisis mes actions'!E24*$H52,0) -> 0 | F52: =IF(nb_erreur=0,'2-Je choisis mes actions'!F24*$H52,0) -> 0 | G52: =IF('2-Je choisis mes actions'!G24="Oui","Oui","") ->  | H52: ='2-Je choisis mes actions'!I24 -> 0 | I52: Autres équipements | J52: r19 | K52: ='2-Je choisis mes actions'!K24 -> L.ET | L52: 0
A53: =IF('2-Je choisis mes actions'!I25=0,0,'2-Je choisis mes actions'!J25) -> 0 | B53: ='2-Je choisis mes actions'!B25 -> r20 | C53: ='2-Je choisis mes actions'!C25 -> 0 | D53: ='2-Je choisis mes actions'!D25 -> 0 | E53: =IF(nb_erreur=0,'2-Je choisis mes actions'!E25*$H53,0) -> 0 | F53: =IF(nb_erreur=0,'2-Je choisis mes actions'!F25*$H53,0) -> 0 | G53: =IF('2-Je choisis mes actions'!G25="Oui","Oui","") ->  | H53: ='2-Je choisis mes actions'!I25 -> 0 | I53: Autres équipements | J53: r20 | K53: ='2-Je choisis mes actions'!K25 -> L.ET | L53: 0
A54: =IF('2-Je choisis mes actions'!I29=0,0,'2-Je choisis mes actions'!J29) -> 0 | B54: ='2-Je choisis mes actions'!B29 -> Modèle d'affaires Tourisme durable Hébergement touristique | C54: ='2-Je choisis mes actions'!C29 -> 0 | D54: ='2-Je choisis mes actions'!D29 -> Oui/Non | E54: =IF(nb_erreur=0,'2-Je choisis mes actions'!E29*$H54,0) -> 0 | F54: =IF(nb_erreur=0,'2-Je choisis mes actions'!F29*$H54,0) -> 0 | G54: =IF('2-Je choisis mes actions'!G29="Oui","Oui","") ->  | H54: ='2-Je choisis mes actions'!I29 -> 0 | I54: Prestations extérieurs - Autres dépenses de sous traitance (études, honoraires, etc.) | J54: Hébergement - Modèle d'affaires | K54: ='2-Je choisis mes actions'!K29 -> L.ET | L54: 0 | M54: ='3-Synthese et finalisation'!C49 -> Un consultant peut vous accompagner dans l’établissement d’un modèle d’affaires. Suite à une expertise de vos dépenses courantes, une analyse des consommations de l'établissement et à une étude de marché et de positionnement, le prestataire évaluera les investissements et revenus attendus d'une activité touristique avec un caractère durable affirmé, en particulier sur les volets : - Maîtrise des consommations et contrats d'énergie verte ; - Circuits courts et valorisation des produits locaux ; - Mobilités douces des clients ; - Valorisation du patrimoine naturel (ex.: refuge LPO) ; - Attractivité de nouveaux clients avec la proposition de nouveaux services dits durables (hébergements alternatifs, activités touristiques). La formation doit être dispensée par un organisme de formation habilité. Le bénéficiaire conservera les attestations de formation qu’il tiendra à disposition de l’ADEME.
A55: =IF('2-Je choisis mes actions'!I30=0,0,'2-Je choisis mes actions'!J30) -> 0 | B55: ='2-Je choisis mes actions'!B30 -> Formation aux éco-gestes pour un hébergement touristique durable | C55: ='2-Je choisis mes actions'!C30 -> 0 | D55: ='2-Je choisis mes actions'!D30 -> Oui/Non | E55: =IF(nb_erreur=0,'2-Je choisis mes actions'!E30*$H55,0) -> 0 | F55: =IF(nb_erreur=0,'2-Je choisis mes actions'!F30*$H55,0) -> 0 | G55: =IF('2-Je choisis mes actions'!G30="Oui","Oui","") ->  | H55: ='2-Je choisis mes actions'!I30 -> 0 | I55: Prestations extérieurs de formation / communication / animation | J55: Hébergement - Formation | K55: ='2-Je choisis mes actions'!K30 -> L.ET | L55: 0 | M55: ='3-Synthese et finalisation'!C51 -> Cette action a pour objectif de fournir une formation sur les enjeux environnementaux d’un hébergement touristique ou une formation courte sur les éco-gestes que les salariés peuvent mettre en place en lien avec l’activité d’hébergement pour le nettoyage, la qualité de l'air intérieur, la sensibilisation des clients etc. La formation doit être dispensée par un organisme de formation habilité. Le bénéficiaire conservera les attestations de formation qu’il tiendra à disposition de l’ADEME.
A56: =IF('2-Je choisis mes actions'!I31=0,0,'2-Je choisis mes actions'!J31) -> 0 | B56: ='2-Je choisis mes actions'!B31 -> Communication - Supports de communication valorisant l’hébergement touristique durable | C56: ='2-Je choisis mes actions'!C31 -> 0 | D56: ='2-Je choisis mes actions'!D31 -> Oui/Non | E56: =IF(nb_erreur=0,'2-Je choisis mes actions'!E31*$H56,0) -> 0 | F56: =IF(nb_erreur=0,'2-Je choisis mes actions'!F31*$H56,0) -> 0 | G56: =IF('2-Je choisis mes actions'!G31="Oui","Oui","") ->  | H56: ='2-Je choisis mes actions'!I31 -> 0 | I56: Prestations extérieurs de formation / communication / animation | J56: Hébergement - Communication | K56: ='2-Je choisis mes actions'!K31 -> L.ET | L56: 0 | M56: ='3-Synthese et finalisation'!C53 -> Cette ligne consiste à soutenir les actions de communication pérennes qui mettent en valeur la démarche durable du restaurant, les fournisseurs locaux, ainsi que les écogestes dans l’hébergement pour les salarié.e.s et pour les client.e.s : achat de supports de communication matériels ou numérique pérennes et/ou actions immatérielles à vocation pérenne. En activant cette ligne, le bénéficiaire s'engage à mettre en avant auprès des clients et des salariés : les éco-gestes ou les engagements environnementaux (économie d’eau ou d’énergie etc…). Vous pouvez bénéficier d’une aide pour : - Des achats de supports de communication matériels pérennes : o L’achat de tableaux/panneaux/supports d’affichage en matériaux biosourcés, naturels ou recyclables, ou supports imprimés à l’exclusion des supports à usage unique pour l’information des client.e.s sur la démarche de transition écologique de l’hébergement concernant : les éco-gestes au quotidien, les démarches environnementales de l’hébergement, les certifications ou labélisations obtenus, la valorisation des mobilités alternatives ou douces au départ de l’établissement. Les panneaux d’affichage électroniques ou écrans ne sont pas éligibles. - Les achats de prestations immatérielles : o La création ou l’adaptation de supports de communication imprimés ou numériques (prestation intellectuelle), y compris visuels, photos, stratégie de communication o L’adaptation du site internet pour en faire un site éco-conçu selon les recommandations de l'Institut du numérique responsable ; o La mise à jour du site internet ou de la présence sur les réseaux sociaux, la présence sur les plateformes de réservation (mettant en avant les engagements des établissements dans la transition écologique) valorisant les engagements développement durable de l’hébergement touristique. En activant cette ligne, le bénéficiaire s'engage à mettre en avant auprès des clients et des salariés les éco-gestes, les circuits courts ou les engagements environnementaux.
A57: =IF('2-Je choisis mes actions'!I32=0,0,'2-Je choisis mes actions'!J32) -> 0 | B57: ='2-Je choisis mes actions'!B32 -> Energie - Accompagnement pour le financement de la rénovation globale | C57: ='2-Je choisis mes actions'!C32 -> 0 | D57: ='2-Je choisis mes actions'!D32 -> Oui/Non | E57: =IF(nb_erreur=0,'2-Je choisis mes actions'!E32*$H57,0) -> 0 | F57: =IF(nb_erreur=0,'2-Je choisis mes actions'!F32*$H57,0) -> 0 | G57: =IF('2-Je choisis mes actions'!G32="Oui","Oui","") ->  | H57: ='2-Je choisis mes actions'!I32 -> 0 | I57: Prestations extérieurs - Autres dépenses de sous traitance (études, honoraires, etc.) | J57: Hébergement - Accompagnement rénovation globale | K57: ='2-Je choisis mes actions'!K32 -> L.ET | L57: 0 | M57: ='3-Synthese et finalisation'!C55 -> En complément de la ligne "MOE pour rénovation globale sur un objectif d'économie d'énergie", cette ligne permet d'établir une prestation auprès d'un bureau d'étude ou d'un consultant, avec pour objectif de : - Établir le plan de financement, en fonction des différents guichets nationaux, régionaux et locaux, indiquant clairement au bénéficiaire le montant des aides et le reste à charge ; - Préparer les dossiers de demande d'aide auprès de ces guichets avec les renseignements techniques demandés.
A58: =IF('2-Je choisis mes actions'!I33=0,0,'2-Je choisis mes actions'!J33) -> 0 | B58: ='2-Je choisis mes actions'!B33 -> Energie - Maîtrise des besoins de chauffage des chambres | C58: ='2-Je choisis mes actions'!C33 -> 0 | D58: ='2-Je choisis mes actions'!D33 -> Nombre de chambres équipées | E58: =IF(nb_erreur=0,'2-Je choisis mes actions'!E33*$H58,0) -> 0 | F58: =IF(nb_erreur=0,'2-Je choisis mes actions'!F33*$H58,0) -> 0 | G58: =IF('2-Je choisis mes actions'!G33="Oui","Oui","") ->  | H58: ='2-Je choisis mes actions'!I33 -> 0 | I58: Autres équipements | J58: Hébergement - Maîtrise besoins chauffage | K58: ='2-Je choisis mes actions'!K33 -> L.ET | L58: 0 | M58: ='3-Synthese et finalisation'!C57 -> Pour maintenir la consommation d'énergie à un niveau raisonnable, il est nécessaire de réguler les températures en fonction des besoins réels et de l'occupation ou non des différentes zones de l'hébergement. Il est notamment très important de posséder un dispositif de régulation thermique dans chaque chambre : la mise en place de systèmes de contrôle autonomes dans les chambres peut permettre d'économiser jusqu'à 30 % d'énergie en chauffage. Vous pouvez bénéficier d’une aide pour financer des robinets thermostatiques de radiateur, un dispositif de détection d'ouverture de fenêtre permettant d’interrompre le chauffage seul ou combiné avec la climatisation, un programmateur horaire, ou un système de gestion par chambre des consignes des radiateurs. En activant cette ligne, le bénéficiaire s'engage sur des consignes de température par chambre (hors été) selon leur occupation : 20°C à 22°C si chambre occupée ; 16°C à 18°C si chambre inoccupée pendant une courte période ; maintien à 12°C-14°C si inoccupée pendant une longue période.
A59: =IF('2-Je choisis mes actions'!I34=0,0,'2-Je choisis mes actions'!J34) -> 0 | B59: ='2-Je choisis mes actions'!B34 -> Energie - Sèche-linge professionnel de grande efficacité énergétique et lave-linge | C59: ='2-Je choisis mes actions'!C34 -> 0 | D59: ='2-Je choisis mes actions'!D34 -> € par kg de linge (capacité) | E59: =IF(nb_erreur=0,'2-Je choisis mes actions'!E34*$H59,0) -> 0 | F59: =IF(nb_erreur=0,'2-Je choisis mes actions'!F34*$H59,0) -> 0 | G59: =IF('2-Je choisis mes actions'!G34="Oui","Oui","") ->  | H59: ='2-Je choisis mes actions'!I34 -> 0 | I59: Autres équipements | J59: Hébergement - Sèche-linge | K59: ='2-Je choisis mes actions'!K34 -> L.ET | L59: 0 | M59: ='3-Synthese et finalisation'!C59 -> Vous pouvez bénéficier d’une aide pour l’acquisition d’équipements professionnels qui permettent une économie d'énergie. Pour le calcul de l’aide, si le bénéficiaire investit dans un lave-linge ET un sèche-linge, le forfait sera calculé en ajoutant la capacité en kg de linge des 2 équipements. Sont éligibles : 1/ Les sèche-linge ≥ 9 kg - Seuls sont éligibles les sèche-linge professionnels de forte capacité : poids de linge ≥ 9 kg, - Energie de séchage soit inférieure à 0,25 kWh/kg linge. - Pour exemple, TopTen référence ce type d’équipements jusqu’à 23kg (alors que Topten France ne référence les équipements que jusqu’à 9kg) : https://www.topten.ch/business/products/bus_tumble_driers 2/ Les lave-linge de capacité ≥ 7 kg de linge - Les lave-linge commerciaux ou professionnels de choisir ceux avec une consommation < 7 L par kg de linge lavé - Les lave-linge ménagers doivent appartenir à la classe énergétique A et avoir un indice de réparabilité >7.0 3/ Les lave-linge et sèche-linge combinés ≥ 7 kg - Les lave-linge sèche-linge combinés ménagers doivent appartenir à la classe énergétique A
A60: =IF('2-Je choisis mes actions'!I35=0,0,'2-Je choisis mes actions'!J35) -> 0 | B60: ='2-Je choisis mes actions'!B35 -> Energie - Bâche de nuit pour piscine | C60: ='2-Je choisis mes actions'!C35 -> 0 | D60: ='2-Je choisis mes actions'!D35 -> Oui/Non | E60: =IF(nb_erreur=0,'2-Je choisis mes actions'!E35*$H60,0) -> 0 | F60: =IF(nb_erreur=0,'2-Je choisis mes actions'!F35*$H60,0) -> 0 | G60: =IF('2-Je choisis mes actions'!G35="Oui","Oui","") ->  | H60: ='2-Je choisis mes actions'!I35 -> 0 | I60: Autres équipements | J60: Hébergement - Bâche de nuit piscine | K60: ='2-Je choisis mes actions'!K35 -> L.ET | L60: 0 | M60: ='3-Synthese et finalisation'!C61 -> La bâche de nuit pour piscine permet de limiter la déperdition calorifique d'au moins 20% en moyenne. Les bâches opaques permettent de réduire la consommation de produits de traitement de l'eau en limitant la photosynthèse. A noter de privilégier les modules manuels ou le cas échéant avec alimentation solaire
A61: =IF('2-Je choisis mes actions'!I36=0,0,'2-Je choisis mes actions'!J36) -> 0 | B61: ='2-Je choisis mes actions'!B36 -> Energie & Confort d'été - actions sur les ouvertures (fenêtres) | C61: ='2-Je choisis mes actions'!C36 -> 0 | D61: ='2-Je choisis mes actions'!D36 -> Nombre de fenêtres équipées | E61: =IF(nb_erreur=0,'2-Je choisis mes actions'!E36*$H61,0) -> 0 | F61: =IF(nb_erreur=0,'2-Je choisis mes actions'!F36*$H61,0) -> 0 | G61: =IF('2-Je choisis mes actions'!G36="Oui","Oui","") ->  | H61: ='2-Je choisis mes actions'!I36 -> 0 | I61: Prestations extérieurs - Autres dépenses de sous traitance (études, honoraires, etc.) | J61: Hébergement - ouvertures | K61: ='2-Je choisis mes actions'!K36 -> L.ET | L61: 0 | M61: ='3-Synthese et finalisation'!C63 -> Cette action vise à améliorer le confort en été de votre hébergement touristique et à diminuer voire supprimer les besoins de climatisation, en agissant sur la protection des ouvertures : pose de volets, stores pare-soleil intérieurs et extérieurs, films solaires sur les ouvrants, etc. Non éligibles : rideaux, voilages, ombrières, changement de menuiseries en double vitrage.
A62: =IF('2-Je choisis mes actions'!I37=0,0,'2-Je choisis mes actions'!J37) -> 0 | B62: ='2-Je choisis mes actions'!B37 -> Energie & Confort d'été - végétalisation | C62: ='2-Je choisis mes actions'!C37 -> 0 | D62: ='2-Je choisis mes actions'!D37 -> Oui/Non | E62: =IF(nb_erreur=0,'2-Je choisis mes actions'!E37*$H62,0) -> 0 | F62: =IF(nb_erreur=0,'2-Je choisis mes actions'!F37*$H62,0) -> 0 | G62: =IF('2-Je choisis mes actions'!G37="Oui","Oui","") ->  | H62: ='2-Je choisis mes actions'!I37 -> 0 | I62: Prestations extérieurs de formation / communication / animation | J62: Hébergement - végétalisation | K62: ='2-Je choisis mes actions'!K37 -> L.ET | L62: 0 | M62: ='3-Synthese et finalisation'!C65 -> Cette action vise à réduire les apports de chaleur en été vers le bâtiment, en lien avec l’activité d’hébergement. En été, des murs chauds peuvent entraîner une élévation de la température intérieure des bâtiments, ce qui a pour effet d'augmenter la demande en climatisation et, par là même, la consommation d'énergie. Lorsque les murs sont recouverts de plantes et de terre humide, leur température peut être réduite, la baisse pouvant aller jusqu'à 10 °C, ce qui permet de réduire les besoins en climatisation à l'intérieur du bâtiment. Aux abords du bâtiment, les arbres et les sols jouent un rôle important de rafraîchissement, par ombrage et évapotranspiration. Vous pouvez bénéficier d’une aide pour : - Une étude climatique et paysagère ; - La préparation et la plantation pour murs végétaux ; - La désimperméabilisation et les plantations adaptées aux futures conditions climatiques et cohérentes avec la biodiversité locale ; - Cultiver/entretenir en priorité des espèces peu gourmandes en eau, adaptées au climat local, à privilégier le paillage, à privilégier les sources d’eau non issues du réseau d’eau potable (par exemple récupération des eaux de pluie), le cas échéant choisir un système d’arrosage économe en eau (goutte à goutte) ; - L’installation d’une pergola en bois naturel avec ombrage végétal permettant de végétaliser terrasses ou espaces extérieures pour apporter ombre et fraicheur.
A63: =IF('2-Je choisis mes actions'!I38=0,0,'2-Je choisis mes actions'!J38) -> 0 | B63: ='2-Je choisis mes actions'!B38 -> Eau - Dispositifs d'économie d'eau pour les chambres et sanitaires liés à l’activité d’hébergement | C63: ='2-Je choisis mes actions'!C38 -> 0 | D63: ='2-Je choisis mes actions'!D38 -> Nombre de chambres ou de sanitaires équipées | E63: =IF(nb_erreur=0,'2-Je choisis mes actions'!E38*$H63,0) -> 0 | F63: =IF(nb_erreur=0,'2-Je choisis mes actions'!F38*$H63,0) -> 0 | G63: =IF('2-Je choisis mes actions'!G38="Oui","Oui","") ->  | H63: ='2-Je choisis mes actions'!I38 -> 0 | I63: Prestations extérieurs de formation / communication / animation | J63: Hébergement - Economie d'eau chambres | K63: ='2-Je choisis mes actions'!K38 -> L.ET | L63: 0 | M63: ='3-Synthese et finalisation'!C67 -> Cette action concerne les points d'eau des chambres et sanitaires. Les achats éligibles sont : - Les économiseurs d'eau pour les lavabos : ce sont des petits équipements très simples et peu coûteux que l'on place sur l’embout du robinet, ils permettent de faire des économies d'eau en mélangeant sous pression, de l'air à l'eau du robinet. Le débit normal d'un robinet est d'environ de 12 litres par minute. En utilisant un économiseur d'eau, ce débit peut passer à environ 6 litres par minute (débit variable), sans perte de confort, grâce à l'ajout d'air par le régulateur de débit. Cette action est éligible pour les chambres dans lesquelles les lavabos n'étaient pas équipées de limiteur de débit. - Les robinets mitigeurs pour les lavabos : ils sont également conseillés pour économiser l'eau, car ils permettent d'ouvrir ou de fermer l'eau en régulant en même temps le débit et la température. Ainsi, et contrairement aux robinets mélangeurs il n'y a pas besoin de faire couler l'eau jusqu'à obtenir la température et le débit souhaités. L'ouverture et la fermeture du robinet sont possibles en un seul geste, sans modifier la température de l'eau. - Les mitigeurs thermostatiques pour les douches maintiennent la température de l'eau de façon précise. Cette action est éligible pour les chambres dans lesquelles la robinetterie de douche est changée avec un gain en termes de consommation d'eau. - Chasse d’eau à double commande ou double flux, plaquette de réservoir pour les toilettes . Les réservoirs des chasses d'eau classiques contiennent entre 15 litres (les plus anciens) et 6 litres (les plus récents) d'eau potable. Des systèmes de chasses d'eau à double commande existent sur le marché depuis plusieurs années. Sans pour autant remplacer l'ensemble des installations, il est également possible de mettre en place des actions simples et peu coûteuses. En fonction des modèles installés, il est possible de faire entre 30 et 50% d'économies d'eau. - Urinoirs avec écoulement déclenché en fonction de la présence, urinoirs sans eau - Equipements de suivi des consommations d’eau
A64: =IF('2-Je choisis mes actions'!I39=0,0,'2-Je choisis mes actions'!J39) -> 0 | B64: ='2-Je choisis mes actions'!B39 -> Eau - Toilettes sèches pour les chambres et sanitaires liés à l’activité d’hébergement | C64: ='2-Je choisis mes actions'!C39 -> 0 | D64: ='2-Je choisis mes actions'!D39 -> Nombre de toilettes sèches | E64: =IF(nb_erreur=0,'2-Je choisis mes actions'!E39*$H64,0) -> 0 | F64: =IF(nb_erreur=0,'2-Je choisis mes actions'!F39*$H64,0) -> 0 | G64: =IF('2-Je choisis mes actions'!G39="Oui","Oui","") ->  | H64: ='2-Je choisis mes actions'!I39 -> 0 | I64: Prestations extérieurs - Autres dépenses de sous traitance (études, honoraires, etc.) | J64: Hébergement - Toilettes sèches pour les chambres et sanitaires liés à l’activité d’hébergement | K64: ='2-Je choisis mes actions'!K39 -> L.ET | L64: 0 | M64: ='3-Synthese et finalisation'!C69 -> Les toilettes sèches ne requièrent aucune utilisation d'eau. Plusieurs systèmes existent (à compost, à séparation etc.) pouvant convenir aux différentes contraintes d'usage ou de bâtiment. Avant installation, le bénéficiaire se renseignera auprès des compétences locales pour connaître la règlementation inhérente aux départements en matière de toilettes sèches.
A65: =IF('2-Je choisis mes actions'!I40=0,0,'2-Je choisis mes actions'!J40) -> 0 | B65: ='2-Je choisis mes actions'!B40 -> Mobilité - Abri vélo équipé de production photovoltaïque pour la recharge | C65: ='2-Je choisis mes actions'!C40 -> 0 | D65: ='2-Je choisis mes actions'!D40 -> Capacité d'accueil de l'abris en nombre de vélos | E65: =IF(nb_erreur=0,'2-Je choisis mes actions'!E40*$H65,0) -> 0 | F65: =IF(nb_erreur=0,'2-Je choisis mes actions'!F40*$H65,0) -> 0 | G65: =IF('2-Je choisis mes actions'!G40="Oui","Oui","") ->  | H65: ='2-Je choisis mes actions'!I40 -> 0 | I65: Autres équipements | J65: Abris à vélo PV | K65: ='2-Je choisis mes actions'!K40 -> L.ET | L65: 0 | M65: ='3-Synthese et finalisation'!C71 -> L'abri s'assurera d'un impact limité sur l'artificialisation des sols. Le toit de l'abri, correctement orienté, est équipé de modules photovoltaïques. Cette ligne est compatible avec un contrat d'autoconsommation. L'investissement est limité à 10 vélos.
A66: =IF('2-Je choisis mes actions'!I41=0,0,'2-Je choisis mes actions'!J41) -> 0 | B66: ='2-Je choisis mes actions'!B41 -> Prévention des déchets non alimentaires dans les hébergements | C66: ='2-Je choisis mes actions'!C41 -> 0 | D66: ='2-Je choisis mes actions'!D41 -> Oui/Non | E66: =IF(nb_erreur=0,'2-Je choisis mes actions'!E41*$H66,0) -> 0 | F66: =IF(nb_erreur=0,'2-Je choisis mes actions'!F41*$H66,0) -> 0 | G66: =IF('2-Je choisis mes actions'!G41="Oui","Oui","") ->  | H66: ='2-Je choisis mes actions'!I41 -> 0 | I66: Autres équipements | J66: Hébergement - Prévention gestion déchets non alimentaires | K66: ='2-Je choisis mes actions'!K41 -> L.ET | L66: =IF(OR(H66=0,E66=0,nb_erreur>0),0,1) -> 0 | M66: ='3-Synthese et finalisation'!C73 -> Cette action vise à réduire les déchets non alimentaires, au sein de l’hébergement : - réduction des déchets d’emballages - suppression des produits jetables ou en dose individuelle - équipements permettant la réduction voire la suppression de la consommation de produits non alimentaires, notamment ceux nécessaires au nettoyage, entretien, lavage Vous pouvez bénéficier d’une aide pour tout matériel ou équipement (hors consommables) contribuant à l’objectif : par exemple, matériel navette fournisseurs, contenants pour stockage de produits vrac, contenants durables pour substitution des emballages individuels (café, thé, sucre, sauces...) ; achat vaisselle/couverts/serviettes/nappes/dessous de table pour substituer du jetable ; achat de lavettes et équipements de protection (charlottes, gants, masques, ..) réutilisables en substitution de jetable, équipements permettant de supprimer l’utilisation de produits dangereux... Le tri et la gestion des biodéchets sont éligibles sur les lignes Tremplin / Economie circulaire.
A67: =IF('2-Je choisis mes actions'!I42=0,0,'2-Je choisis mes actions'!J42) -> 0 | B67: ='2-Je choisis mes actions'!B42 -> h6 | C67: ='2-Je choisis mes actions'!C42 -> 0 | D67: ='2-Je choisis mes actions'!D42 -> 0 | E67: =IF(nb_erreur=0,'2-Je choisis mes actions'!E42*$H67,0) -> 0 | F67: =IF(nb_erreur=0,'2-Je choisis mes actions'!F42*$H67,0) -> 0 | G67: =IF('2-Je choisis mes actions'!G42="Oui","Oui","") ->  | H67: ='2-Je choisis mes actions'!I42 -> 0 | I67: a | J67: b | K67: ='2-Je choisis mes actions'!K42 -> L.ET | L67: 0
A68: =IF('2-Je choisis mes actions'!I43=0,0,'2-Je choisis mes actions'!J43) -> 0 | B68: ='2-Je choisis mes actions'!B43 -> h7 | C68: ='2-Je choisis mes actions'!C43 -> 0 | D68: ='2-Je choisis mes actions'!D43 -> 0 | E68: =IF(nb_erreur=0,'2-Je choisis mes actions'!E43*$H68,0) -> 0 | F68: =IF(nb_erreur=0,'2-Je choisis mes actions'!F43*$H68,0) -> 0 | G68: =IF('2-Je choisis mes actions'!G43="Oui","Oui","") ->  | H68: ='2-Je choisis mes actions'!I43 -> 0 | I68: a | J68: b | K68: ='2-Je choisis mes actions'!K43 -> L.ET | L68: 0
A69: =IF('2-Je choisis mes actions'!I44=0,0,'2-Je choisis mes actions'!J44) -> 0 | B69: ='2-Je choisis mes actions'!B44 -> h8 | C69: ='2-Je choisis mes actions'!C44 -> 0 | D69: ='2-Je choisis mes actions'!D44 -> 0 | E69: =IF(nb_erreur=0,'2-Je choisis mes actions'!E44*$H69,0) -> 0 | F69: =IF(nb_erreur=0,'2-Je choisis mes actions'!F44*$H69,0) -> 0 | G69: =IF('2-Je choisis mes actions'!G44="Oui","Oui","") ->  | H69: ='2-Je choisis mes actions'!I44 -> 0 | I69: c | J69: x | K69: ='2-Je choisis mes actions'!K44 -> L.ET | L69: 0
A70: =IF('2-Je choisis mes actions'!I45=0,0,'2-Je choisis mes actions'!J45) -> 0 | B70: ='2-Je choisis mes actions'!B45 -> h5 | C70: ='2-Je choisis mes actions'!C45 -> 0 | D70: ='2-Je choisis mes actions'!D45 -> 0 | E70: =IF(nb_erreur=0,'2-Je choisis mes actions'!E45*$H70,0) -> 0 | F70: =IF(nb_erreur=0,'2-Je choisis mes actions'!F45*$H70,0) -> 0 | G70: =IF('2-Je choisis mes actions'!G45="Oui","Oui","") ->  | H70: ='2-Je choisis mes actions'!I45 -> 0 | I70: a | J70: b | K70: ='2-Je choisis mes actions'!K45 -> L.ET | L70: 0
A71: =IF('2-Je choisis mes actions'!I60=0,0,'2-Je choisis mes actions'!J60) -> 0 | B71: ='2-Je choisis mes actions'!B60 -> Chauffe-eau solaire individuels | C71: ='2-Je choisis mes actions'!C60 -> 0 | D71: ='2-Je choisis mes actions'!D60 -> Surface de panneaux en m² | E71: =IF(nb_erreur=0,'2-Je choisis mes actions'!E60*$H71,0) -> 0 | F71: =IF(nb_erreur=0,'2-Je choisis mes actions'!F60*$H71,0) -> 0 | G71: =IF('2-Je choisis mes actions'!G60="Oui","Oui","") ->  | H71: ='2-Je choisis mes actions'!I60 -> 0 | I71: Aménagements et constructions | J71: Chauffe-eau solaire | K71: ='2-Je choisis mes actions'!K60 -> L.ET | L71: 0 | M71: ='3-Synthese et finalisation'!C79 -> Cette opération est destinée à financer l’achat et l’installation de chauffe-eau solaire individuels pour les PME d’Outre-Mer. L’installation devra respecter les critères techniques suivants : - La surface de capteurs, les besoins annuels en eau chaude et le taux de couverture solaire sont déterminés à partir d’une note de dimensionnement de l'installation intégrée au devis - Taux de couverture solaire supérieur à 50 % - Maximum 10m² de capteurs pour les OM (au-delà se référer au Fonds Chaleur) - Installation recommandée sans appoint électrique (mais appoint possible) - Mise en place par un professionnel - Les installations doivent faire l’objet : • D’une certification QB dont le domaine d’emploi de l’avis technique couvre explicitement les départements d’outremer • Ou des caractéristiques de performances et de qualité équivalentes établies par un organisme localisé dans l’Espace Economique Européen et accrédité selon la norme NF EN ISO/CEI 17065 par le Comité Français d’Accréditation (COFRAC) ou tout autre organisme d’accréditation signataire de l’accord européen multilatéral pertinent pris dans le cadre de la coordination européenne des organismes d’accréditation.
A72: =IF('2-Je choisis mes actions'!I61=0,0,'2-Je choisis mes actions'!J61) -> 0 | B72: ='2-Je choisis mes actions'!B61 -> Brasseurs d’air | C72: ='2-Je choisis mes actions'!C61 -> 0 | D72: ='2-Je choisis mes actions'!D61 -> Nombre de brasseur | E72: =IF(nb_erreur=0,'2-Je choisis mes actions'!E61*$H72,0) -> 0 | F72: =IF(nb_erreur=0,'2-Je choisis mes actions'!F61*$H72,0) -> 0 | G72: =IF('2-Je choisis mes actions'!G61="Oui","Oui","") ->  | H72: ='2-Je choisis mes actions'!I61 -> 0 | I72: Autres équipements | J72: Brasseurs d'air | K72: ='2-Je choisis mes actions'!K61 -> L.ET | L72: 0 | M72: ='3-Synthese et finalisation'!C81 -> Les actions ont pour objectif de limiter voire supprimer l’usage de la climatisation par la mise en place de brasseurs d’air dans les restaurants. Les brasseurs d’air sont éligibles pour réduire l’utilisation de la climatisation, à condition de respecter les éléments techniques suivants : - Volume de brassage à vitesse max > 8500 m3/h - 3 vitesses de fonctionnement minimum - Puissance moteur max < 70 W - Moteur silencieux bruit à vitesse max < 45 db - Vitesse d’air : 1m/s : l’installateur attestera sur son devis qu’il respecte les préconisations du fournisseur pour atteindre l’objectif de 1 m/s - Eclairage compatible LEDs ou pas d’éclairage - Mise en place réalisée par un professionnel - Recommandation : 1 brasseur pour 10 à 15 m2 ou se référer aux préconisations du fournisseur de brasseurs d’air
A73: =IF('2-Je choisis mes actions'!I49=0,0,'2-Je choisis mes actions'!J49) -> 0 | B73: ='2-Je choisis mes actions'!B49 -> Bilan d’émission de gaz à effet de serre (bilan GES scope 1, 2 et 3) et plan d'actions | C73: ='2-Je choisis mes actions'!C49 -> L’ADEME et Bpifrance ont lancé le "Diag Décarbon’Action" en collaboration avec l’Association Bilan Carbone afin d’accompagner la transition énergétique et écologique des entreprises françaises. Pour réaliser votre bilan d’émission de gaz à effet de serre, rendez-vous sur https://diagdecarbonaction.bpifrance.fr/. Le "Diag Décarbon’Action" inclut une subvention de l’ADEME. | D73: ='2-Je choisis mes actions'!D49 -> 0 | E73: =IF(nb_erreur=0,'2-Je choisis mes actions'!E49*$H73,0) -> 0 | F73: =IF(nb_erreur=0,'2-Je choisis mes actions'!F49*$H73,0) -> 0 | G73: =IF('2-Je choisis mes actions'!G49="Oui","Oui","") ->  | H73: ='2-Je choisis mes actions'!I49 -> 1 | I73: Prestations extérieurs - Autres dépenses de sous traitance (études, honoraires, etc.) | J73: Bilan GES | K73: ='2-Je choisis mes actions'!K49 -> L.EY | L73: 0 | M73: ='3-Synthese et finalisation'!C83 -> Il s’agit de compter la quantité de gaz à effet de serre qui est due à votre activité pendant une année. Le bilan est réalisé en disant précisément quelles actions sont à l’origine du plus d’émissions pour vous aider à construire un plan d’action efficace. Le bilan porte sur les émissions de gaz à effet de serre directement générées par votre activité (1er cercle), celles liées à la consommation d’énergie de votre entreprise (2ème cercle) ainsi que les émissions indirectes de votre entreprise, par exemple liées aux produits que vous vendez (3ème cercle). La réalisation du Bilan GES se fait en conformité avec la méthode réglementaire ou les normes internationales en vigueur (ISO 14064, ISO 14069) et devra nécessairement inclure une proposition de plan d'actions. Vous pouvez trouver plus d'information sur : https://www.bilans-ges.ademe.fr/ : - rubrique "Ressources" pour plus de détails méthodologiques - rubrique "Bilans en ligne" pour consulter des Bilans GES réalisés. Quand vous aurez réalisé votre bilan, vous pouvez le publier sur cette plateforme. | N73: =ROUND(IF($F$73=SUM($A$73:$A$75),$K$155*A73,$K$155*$F$73*A73/SUM($A$73:$A$75)),2) -> 
A74: =IF('2-Je choisis mes actions'!I50=0,0,'2-Je choisis mes actions'!J50) -> 0 | B74: ='2-Je choisis mes actions'!B50 -> Vous organiser pour réduire les émissions de gaz à effet de serre : élaborer une stratégie (démarche ACT® pas à pas) | C74: ='2-Je choisis mes actions'!C50 -> 0 | D74: ='2-Je choisis mes actions'!D50 -> Oui/Non | E74: =IF(nb_erreur=0,'2-Je choisis mes actions'!E50*$H74,0) -> 0 | G74: =IF('2-Je choisis mes actions'!G50="Oui","Oui","") ->  | H74: ='2-Je choisis mes actions'!I50 -> 1 | I74: Prestations extérieurs - Autres dépenses de sous traitance (études, honoraires, etc.) | J74: Etude ACT | K74: ='2-Je choisis mes actions'!K50 -> L.EY | L74: 0 | M74: ='3-Synthese et finalisation'!C85 -> Une aide financière peut vous être versée pour mettre en œuvre la démarche ACT (« Assessing low Carbon Transition ») pas à pas. La démarche ACT pas à pas vous aidera à passer à l’action pour réduire vos émissions de gaz à effet de serre. L’outil comporte les étapes suivantes : - Comment vous organiser pour ce travail - Identifier ce qui va changer dans votre activité - Programmer le budget nécessaire dans le temps - Mettre en œuvre les actions pour réduire les émissions de gaz à effet de serre - Suivre le résultat de vos actions et en tirer des leçons pour la poursuite de la démarche Pour plus d'information : https://actinitiative.org/act-implementations/ | N74: =ROUND(IF($F$73=SUM($A$73:$A$75),$K$155*A74,$K$155*$F$73*A74/SUM($A$73:$A$75)),2) -> 
A75: =IF('2-Je choisis mes actions'!I51=0,0,'2-Je choisis mes actions'!J51) -> 0 | B75: ='2-Je choisis mes actions'!B51 -> Evaluer votre stratégie de réduction des émissions de gaz à effet de serre (Evaluation ACT®) | C75: ='2-Je choisis mes actions'!C51 -> 0 | D75: ='2-Je choisis mes actions'!D51 -> Oui/Non | E75: =IF(nb_erreur=0,'2-Je choisis mes actions'!E51*$H75,0) -> 0 | G75: =IF('2-Je choisis mes actions'!G51="Oui","Oui","") ->  | H75: ='2-Je choisis mes actions'!I51 -> 1 | I75: Prestations extérieurs - Autres dépenses de sous traitance (études, honoraires, etc.) | J75: Evaluation ACT | K75: ='2-Je choisis mes actions'!K51 -> L.EY | L75: 0 | M75: ='3-Synthese et finalisation'!C87 -> Une aide financière peut vous être versée pour mettre en œuvre une évaluation ACT (« Assessing low Carbon Transition »). La démarche ACT Evaluation vous permettra de comparer les objectifs de réduction des émissions de gaz à effet de serre que vous avez retenu pour votre activité avec ce qui est considéré comme la voie de votre secteur vers la suppression des émissions de gaz à effet de serre. Cela devrait vous permettre de vous orienter vers un modèle d’affaire décarboné. Pour plus d'information : https://actinitiative.org/act-implementations/ | N75: =ROUND(IF($F$73=SUM($A$73:$A$75),$K$155*A75,$K$155*$F$73*A75/SUM($A$73:$A$75)),2) -> 
A76: =IF('2-Je choisis mes actions'!I55=0,0,'2-Je choisis mes actions'!J55) -> 0 | B76: ='2-Je choisis mes actions'!B55 -> Accompagnement à la baisse des consommations d’énergie des bâtiments imposée par le dispositif Eco Energie Tertiaire : audit énergétique | C76: ='2-Je choisis mes actions'!C55 -> 0 | D76: ='2-Je choisis mes actions'!D55 -> Surface du bâtiment en m² | E76: =IF(nb_erreur=0,'2-Je choisis mes actions'!E55*$H76,0) -> 0 | F76: =IF(nb_erreur=0,'2-Je choisis mes actions'!F55*$H76,0) -> 0 | G76: =IF('2-Je choisis mes actions'!G55="Oui","Oui","") ->  | H76: ='2-Je choisis mes actions'!I55 -> 0 | I76: Prestations extérieurs - Autres dépenses de sous traitance (études, honoraires, etc.) | J76: Audit énergétique | K76: ='2-Je choisis mes actions'!K55 -> L.EY | L76: 0 | M76: ='3-Synthese et finalisation'!C89 -> Une aide financière peut vous être versée pour mettre en œuvre un audit énergétique permettant d’atteindre les objectifs de performance définis par le dispositif Eco Energie Tertiaire (ou « décret tertiaire »), le cas échéant ou avec les mêmes objectifs pour les bâtiments non assujettis. Dans les deux cas, les objectifs du décret doivent s’appliquer pour bénéficier de l’aide. Le dispositif Eco Energie Tertiaire (décret n°2019-771 du 23 juillet 2019) pose un objectif de réduction des consommations énergétiques des bâtiments : -40% en 2030, -50% en 2040 et -60% en 2050 par rapport à 2010. Cet objectif n’est pas applicable pas dans les DOM-COM. L'accompagnement consiste en un audit énergétique en deux temps : - une analyse détaillée des données de votre bâtiment ; - des propositions chiffrées et argumentées d’actions d’économie d’énergie visant des objectifs comparables aux objectifs nationaux. La plupart des investissements proposés sont éligibles au Crédit d’impôt pour la rénovation énergétique des TPE/PME : https://www.economie.gouv.fr/plan-de-relance/profils/entreprises/credit-impot-renovation-energetique-tpepme Il est possible de poursuivre avec une aide à la mise en œuvre des actions préconisées, et la vérification des économies d'énergie après la réception des travaux. La prestation d'audit sera réalisée conformément au cahier des charges de l'ADEME téléchargeable sur la plateforme AGIR: https://www.ademe.fr/audit-energetique-batiments | N76: =ROUND(IF($F$76=SUM($A$76:$A$78),$K$155*A76,$K$155*$F$76*A76/SUM($A$76:$A$78)),2) -> 
A77: =IF('2-Je choisis mes actions'!I56=0,0,'2-Je choisis mes actions'!J56) -> 0 | B77: ='2-Je choisis mes actions'!B56 -> Maîtrise d'œuvre (MOE) pour rénovation globale d’un ou plusieurs bâtiments pour viser un objectif de 50% d’économie d’énergie | C77: ='2-Je choisis mes actions'!C56 -> 0 | D77: ='2-Je choisis mes actions'!D56 -> Oui/Non | E77: =IF(nb_erreur=0,'2-Je choisis mes actions'!E56*$H77,0) -> 0 | G77: =IF('2-Je choisis mes actions'!G56="Oui","Oui","") ->  | H77: ='2-Je choisis mes actions'!I56 -> 0 | I77: Prestations extérieurs - Autres dépenses de sous traitance (études, honoraires, etc.) | J77: MOE rénovation globale | K77: ='2-Je choisis mes actions'!K56 -> L.EY | L77: 0 | M77: ='3-Synthese et finalisation'!C91 -> Si vous voulez engager un programme de travaux préconisé par un audit énergétique qui permettra de réduire vos consommations d’énergie de 50%, vous pouvez bénéficier d’une aide à la maîtrise d’œuvre pour : - réaliser des études de faisabilité si cela s'avère nécessaire, les études d'avant-projet et de projet ; - passer des contrats de travaux ; - diriger et coordonner l'exécution des travaux jusqu'à leur réception. La plupart des investissements réalisés pour améliorer la performance énergétique de vos bâtiments tertiaires sont éligibles au Crédit d’impôt pour la rénovation énergétique des TPE/PME https://www.economie.gouv.fr/plan-de-relance/profils/entreprises/credit-impot-renovation-energetique-tpepme | N77: =ROUND(IF($F$76=SUM($A$76:$A$78),$K$155*A77,$K$155*$F$76*A77/SUM($A$76:$A$78)),2) -> 
A78: =IF('2-Je choisis mes actions'!I57=0,0,'2-Je choisis mes actions'!J57) -> 0 | B78: ='2-Je choisis mes actions'!B57 -> Diagnostic sur la qualité de l'air (intérieur et extérieur) de l’entreprise | C78: ='2-Je choisis mes actions'!C57 -> 0 | D78: ='2-Je choisis mes actions'!D57 -> Oui/Non | E78: =IF(nb_erreur=0,'2-Je choisis mes actions'!E57*$H78,0) -> 0 | G78: =IF('2-Je choisis mes actions'!G57="Oui","Oui","") ->  | H78: ='2-Je choisis mes actions'!I57 -> 0 | I78: Prestations extérieurs - Autres dépenses de sous traitance (études, honoraires, etc.) | J78: Diagnostic Air | K78: ='2-Je choisis mes actions'!K57 -> L.EY | L78: 0 | M78: ='3-Synthese et finalisation'!C93 -> Un expert peut vous accompagner pour réaliser un diagnostic de la qualité de l’air dans votre entreprise et autour et de proposer un plan d’actions pour l’améliorer. La prestation comportera : - un premier état de la situation établi sur la base d’un questionnaire ; - une phase de mesures dans l’air que vous réaliserez grâce à des kits qui vous seront fournis, par exemple, kit de mesure CO2 et COV (composés organiques volatils) pour la qualité de l’air intérieur, kit NO2 (oxyde d’azote) en milieu urbain pour la qualité de l’air extérieur ; - un accompagnement à distance par visioconférence de 1 à 2 h pour vous aider à réaliser les mesures ; - un bilan assorti d’une proposition de plan d’actions. Pour les projets de construction d’un nouveau bâtiment, vous devrez être accompagné dans votre projet en prenant également en compte dans le diagnostic l’usage du bâtiment. Si vous avez un projet de rénovation, le système de ventilation existant sera diagnostiqué. | N78: =ROUND(IF($F$76=SUM($A$76:$A$78),$K$155*A78,$K$155*$F$76*A78/SUM($A$76:$A$78)),2) -> 
A79: =IF('2-Je choisis mes actions'!I58=0,0,'2-Je choisis mes actions'!J58) -> 0 | B79: ='2-Je choisis mes actions'!B58 -> Solaire photovoltaïque en autoconsommation pour les PME de Corse et d’Outre-Mer | C79: ='2-Je choisis mes actions'!C58 -> 0 | D79: ='2-Je choisis mes actions'!D58 -> Puissance installée en kW crête | E79: =IF(nb_erreur=0,'2-Je choisis mes actions'!E58*$H79,0) -> 0 | F79: =IF(nb_erreur=0,'2-Je choisis mes actions'!F58*$H79,0) -> 0 | G79: =IF('2-Je choisis mes actions'!G58="Oui","Oui","") ->  | H79: ='2-Je choisis mes actions'!I58 -> 0 | I79: Aménagements et constructions | J79: PV autoconsommation | K79: ='2-Je choisis mes actions'!K58 -> L.ET | L79: =IF(OR(H79=0,E79=0,nb_erreur>0),0,1) -> 0 | M79: ='3-Synthese et finalisation'!C95 -> Cette opération est destinée aux bâtiments des TPE et PME situés en outre-mer et en Corse. Une aide financière peut vous être versée pour l’investissement dans une installation de production d’électricité avec des panneaux solaires photovoltaïques en autoconsommation au fil du soleil, sans stockage d’électricité et sans revente de surplus au réseau d’électricité. Une étude de faisabilité selon cahier des charges ADEME, visant un taux d’autoconsommation d’au moins 80% doit être fournie en complément du devis détaillé de l’installation. L’ADEME recommande que les entreprises qui réalisent ce type d'installation soient RGE (reconnu garent de l'environnement), QualiPV ou équivalent. L’ensemble des démarches administratives et de contrôle (Consuel, déclaration à EDF ou EDM, …) devront être réalisées par l’installateur. Le certificat de conformité du Consuel devra être fourni à l’issue du chantier. Un contrôle de réalisation pourra être effectué sur ces opérations par la direction régionale de l’ADEME. | N79: =$K$155*F79 -> 
A80: =IF('2-Je choisis mes actions'!I59=0,0,'2-Je choisis mes actions'!J59) -> 0 | B80: ='2-Je choisis mes actions'!B59 -> Solaire photovoltaïque autonome pour les activités économiques non raccordées au réseau électrique des PME de Corse et d’Outre-Mer | C80: ='2-Je choisis mes actions'!C59 -> 0 | D80: ='2-Je choisis mes actions'!D59 -> Puissance installée en kW crête | E80: =IF(nb_erreur=0,'2-Je choisis mes actions'!E59*$H80,0) -> 0 | F80: =IF(nb_erreur=0,'2-Je choisis mes actions'!F59*$H80,0) -> 0 | G80: =IF('2-Je choisis mes actions'!G59="Oui","Oui","") ->  | H80: ='2-Je choisis mes actions'!I59 -> 0 | I80: Aménagements et constructions | J80: PV en site isolé | K80: ='2-Je choisis mes actions'!K59 -> L.ET | L80: =IF(OR(H80=0,E80=0,nb_erreur>0),0,1) -> 0 | M80: ='3-Synthese et finalisation'!C97 -> Cette opération est destinée à alimenter les activités économiques des TPE et PME non raccordés au réseau électrique et éloigné de celui-ci situés sur des territoires d’outre-mer et de Corse où le système FACE ne peut intervenir. Une aide financière peut vous être versée pour l’investissement dans une installation de production d’électricité autonome : panneaux solaire, batterie, onduleur, électronique de régulation, local technique, pose, contrôle et système d’eau potable Une étude de dimensionnement devra avoir été réalisée. L’ADEME recommande que les entreprises qui réalisent ce type d'installation soient RGE (reconnu garant de l'environnement), QualiPV ou équivalent. L’ensemble des démarches administratives et de contrôle (bureau de contrôle) devront être réalisées par l’installateur. Le certificat de conformité du bureau de contrôle devra être fourni à l’issue du chantier. Une visite du site et un contrôle de réalisation pourra être effectué sur ces opérations par la direction régionale de l’ADEME. | N80: =$K$155*F80 -> 
A81: =IF('2-Je choisis mes actions'!I65=0,0,'2-Je choisis mes actions'!J65) -> 0 | B81: ='2-Je choisis mes actions'!B65 -> Améliorer l'efficacité de l'éclairage des locaux avec des luminaire à modules LED pré-équipés de détecteurs | C81: ='2-Je choisis mes actions'!C65 -> 0 | D81: ='2-Je choisis mes actions'!D65 -> Nombre de luminaires | E81: =IF(nb_erreur=0,'2-Je choisis mes actions'!E65*$H81,0) -> 0 | F81: =IF(nb_erreur=0,'2-Je choisis mes actions'!F65*$H81,0) -> 0 | G81: =IF('2-Je choisis mes actions'!G65="Oui","Oui","") ->  | H81: ='2-Je choisis mes actions'!I65 -> 0 | I81: Autres équipements | J81: Modules LED | K81: ='2-Je choisis mes actions'!K65 -> L.EY | L81: 0 | M81: ='3-Synthese et finalisation'!C99 -> Les luminaires LED performants permettent des économies d'énergie et financières immédiates et des économies de maintenance grâce à une durée de vie 5 fois supérieure aux éclairages classiques (généralement tubes T8 sur ballast ferromagnétiques). Ces luminaires, pré-équipés de détecteurs, permettent également de mettre en place de la gestion dans le bâtiment de façon simple, sans tirer des câbles entre eux et d'éventuels capteurs séparés. Une aide financière peut vous être versée pour l’investissement dans des luminaires d’éclairage général à modules LED pré-équipés pour la régulation en fonction de l'éclairage naturel et la détection de présence, tels que définis dans la fiche CEE BAT-EQ-127. Cet investissement peut également bénéficier des Certificats d’économie d’énergie. | N81: =ROUND(IF($F$81=SUM($A$81:$A$85),$K$155*A81,$K$155*$F$81*A81/SUM($A$81:$A$85)),2) -> 
A82: =IF('2-Je choisis mes actions'!I66=0,0,'2-Je choisis mes actions'!J66) -> 0 | B82: ='2-Je choisis mes actions'!B66 -> Augmenter l’éclairage naturel grâce à des lanterneaux d'éclairage zénithal | C82: ='2-Je choisis mes actions'!C66 -> 0 | D82: ='2-Je choisis mes actions'!D66 -> Nombre de lanterneaux | E82: =IF(nb_erreur=0,'2-Je choisis mes actions'!E66*$H82,0) -> 0 | G82: =IF('2-Je choisis mes actions'!G66="Oui","Oui","") ->  | H82: ='2-Je choisis mes actions'!I66 -> 0 | I82: Autres équipements | J82: Lanterneaux zénithal | K82: ='2-Je choisis mes actions'!K66 -> L.EY | L82: 0 | M82: ='3-Synthese et finalisation'!C101 -> Favoriser l'éclairage naturel est un geste de sobriété énergétique qui est aussi bon pour la santé en diminuant les dépressions saisonnières, la fatigue psychologique et le stress. Réglementairement, les exutoires de fumées (DENFC) sont obligatoires en toiture dans le cadre de la réglementation de sécurité incendie. Il s'agit que ceux-ci soient en plus source d'économie d'énergie et de bien-être. Pour un local commercial de 5 000 m2 à Paris, un facteur de Lumière du Jour de 2,5%, soit 11% de surface géométrique lumière apporte en juin, plus de 300h de disponibilité à 300 lux et plus de 180h à 1 000 lux. En février, plus de 130h à 300 lux. Ceci signifie une autonomie en éclairage conséquente. Une aide financière peut vous être versée pour l’investissement dans des lanterneaux d’éclairage zénithal s’ils respectent les préconisations techniques de la fiche CEE BAT-EQ-129. Cet investissement peut également bénéficier des Certificats d’économie d’énergie. | N82: =ROUND(IF($F$81=SUM($A$81:$A$85),$K$155*A82,$K$155*$F$81*A82/SUM($A$81:$A$85)),2) -> 
A83: =IF('2-Je choisis mes actions'!I67=0,0,'2-Je choisis mes actions'!J67) -> 0 | B83: ='2-Je choisis mes actions'!B67 -> Augmenter l’éclairage naturel grâce à des conduits de lumière naturelle | C83: ='2-Je choisis mes actions'!C67 -> 0 | D83: ='2-Je choisis mes actions'!D67 -> Nombre de conduits | E83: =IF(nb_erreur=0,'2-Je choisis mes actions'!E67*$H83,0) -> 0 | G83: =IF('2-Je choisis mes actions'!G67="Oui","Oui","") ->  | H83: ='2-Je choisis mes actions'!I67 -> 0 | I83: Aménagements et constructions | J83: Conduits de lumière | K83: ='2-Je choisis mes actions'!K67 -> L.EY | L83: 0 | M83: ='3-Synthese et finalisation'!C103 -> Les conduits de lumière sont des sources de lumière naturelle. Ils permettent d’amener l’éclairage naturel dans les pièces sombres voire aveugles. Ils captent la lumière souvent en toiture, là où l’éclairage est maximal, pour la conduire dans les pièces dépourvues d’accès important à l’éclairage naturel. La lumière diffusée est donc particulièrement adaptée au rythme jour/nuit et au cycle circadien de l’être humain. Il s’agit d’une mesure de sobriété énergétique et les économies d’énergie peuvent être substantielles. Une aide financière peut vous être versée pour l’investissement dans un conduit de lumière naturel. La fiche CEE BAT-EQ-131 permet de sélectionner le produit performant le plus adapté. Cet investissement peut également bénéficier des Certificats d’économie d’énergie. | N83: =ROUND(IF($F$81=SUM($A$81:$A$85),$K$155*A83,$K$155*$F$81*A83/SUM($A$81:$A$85)),2) -> 
A84: =IF('2-Je choisis mes actions'!I68=0,0,'2-Je choisis mes actions'!J68) -> 0 | B84: ='2-Je choisis mes actions'!B68 -> Améliorer l'efficacité de l'éclairage extérieur avec des luminaires LED | C84: ='2-Je choisis mes actions'!C68 -> 0 | D84: ='2-Je choisis mes actions'!D68 -> Nombre de luminaires | E84: =IF(nb_erreur=0,'2-Je choisis mes actions'!E68*$H84,0) -> 0 | G84: =IF('2-Je choisis mes actions'!G68="Oui","Oui","") ->  | H84: ='2-Je choisis mes actions'!I68 -> 0 | I84: Autres équipements | J84: Luminaires LED extérieurs | K84: ='2-Je choisis mes actions'!K68 -> L.EY | L84: 0 | M84: ='3-Synthese et finalisation'!C105 -> La consommation d’énergie de l’éclairage extérieur peut être divisée par deux en passant de sources énergivores à un éclairage LED. A cela se rajoutent des économies de maintenance grâce à une durée de vie 5 fois supérieure pour les luminaires LED par rapport aux sources énergivores. Une aide financière peut vous être versée pour l’investissement dans un éclairage extérieur par luminaire LED conforme aux exigences de la fiche CEE RES-EC-104. Sa source lumineuse doit pouvoir être remplacée et il doit permettre également de se conformer à l'arrêté du 27 décembre 2018 relatif à la prévention, à la réduction et à la limitation des nuisances lumineuses qui contient aussi des prescriptions sur la quantité maximale de lumière à installer. Cet investissement peut également bénéficier des Certificats d’économie d’énergie. | N84: =ROUND(IF($F$81=SUM($A$81:$A$85),$K$155*A84,$K$155*$F$81*A84/SUM($A$81:$A$85)),2) -> 
A85: =IF('2-Je choisis mes actions'!I69=0,0,'2-Je choisis mes actions'!J69) -> 0 | B85: ='2-Je choisis mes actions'!B69 -> Etude de dimensionnement de l'éclairage | C85: ='2-Je choisis mes actions'!C69 -> 0 | D85: ='2-Je choisis mes actions'!D69 -> Oui/Non | E85: =IF(nb_erreur=0,'2-Je choisis mes actions'!E69*$H85,0) -> 0 | G85: =IF('2-Je choisis mes actions'!G69="Oui","Oui","") ->  | H85: ='2-Je choisis mes actions'!I69 -> 0 | I85: Prestations extérieurs - Autres dépenses de sous traitance (études, honoraires, etc.) | J85: Etude dimensionnement éclairage | K85: ='2-Je choisis mes actions'!K69 -> L.EY | L85: 0 | M85: ='3-Synthese et finalisation'!C107 -> Si avez sélectionné des investissements importants (supérieurs à 25 000 €) pour améliorer l’éclairage de votre entreprise, une aide financière peut vous être versée pour financer une étude de dimensionnement avant de mettre en œuvre ces investissements. Cette étude peut être réalisée en interne ou en externe. | N85: =ROUND(IF($F$81=SUM($A$81:$A$85),$K$155*A85,$K$155*$F$81*A85/SUM($A$81:$A$85)),2) -> 
A86: =IF('2-Je choisis mes actions'!I73=0,0,'2-Je choisis mes actions'!J73) -> 0 | B86: ='2-Je choisis mes actions'!B73 -> Isolation des meubles de vente réfrigérés et/ou des chambres froides | C86: ='2-Je choisis mes actions'!C73 -> 0 | D86: ='2-Je choisis mes actions'!D73 -> Nombre de meubles réfrigérés et de chambres isolées | E86: =IF(nb_erreur=0,'2-Je choisis mes actions'!E73*$H86,0) -> 0 | F86: =IF(nb_erreur=0,'2-Je choisis mes actions'!F73*$H86,0) -> 0 | G86: =IF('2-Je choisis mes actions'!G73="Oui","Oui","") ->  | H86: ='2-Je choisis mes actions'!I73 -> 0 | I86: Autres équipements | J86: Isolation frigo | K86: ='2-Je choisis mes actions'!K73 -> L.EY | L86: 0 | M86: ='3-Synthese et finalisation'!C109 -> Une aide financière peut vous être versée pour améliorer l'étanchéité à l'air et les dispositifs de fermetures des équipements de froid : - des meubles de vente réfrigérés à température positive ou négative : installation de rideaux de nuit, portes ; - des chambres froides : réfection des joints de porte (de type caoutchouc mousse toilé, caoutchouc naturel, PVC ou silicone), installation d'une isolation pour chambre froide avec pare-vapeur (épaisseur 60 mm minimum pour les chambre à températures positives et 100 mm minimum pour les chambres froides négatives). Ces travaux doivent être mis en œuvre par des frigoristes qualifiés. Certains de ces investissements sont également éligible aux Certificats d'économie d'énergie. | N86: =ROUND(IF($F$86=SUM($A$86:$A$90),$K$155*A86,$K$155*$F$86*A86/SUM($A$86:$A$90)),2) -> 
A87: =IF('2-Je choisis mes actions'!I74=0,0,'2-Je choisis mes actions'!J74) -> 0 | B87: ='2-Je choisis mes actions'!B74 -> Remplacement de fluides dans les équipements frigorifiques commerciaux pour utiliser des fluides frigorigènes ayant moins d’impact sur le changement climatique | C87: ='2-Je choisis mes actions'!C74 -> 0 | D87: ='2-Je choisis mes actions'!D74 -> Nombre d'équipements frigorifiques retrofités | E87: =IF(nb_erreur=0,'2-Je choisis mes actions'!E74*$H87,0) -> 0 | G87: =IF('2-Je choisis mes actions'!G74="Oui","Oui","") ->  | H87: ='2-Je choisis mes actions'!I74 -> 0 | I87: Autres équipements | J87: Retrofit frigo | K87: ='2-Je choisis mes actions'!K74 -> L.EY | L87: 0 | M87: ='3-Synthese et finalisation'!C111 -> Une aide financière peut vous être versée pour remplacer un fluide frigorigène polluant (PRG > 1500, en particulier R404A) par un fluide moins impactant sur le réchauffement climatique (rétrofit). Les nouveaux fluides utilisés pour le rétrofit devront être mis en œuvre par un frigoriste qualifié (attestation de capacité et habilitation fluide), et avoir un PRG (pouvoir de réchauffement climatique) inférieur à 1500 kg équivalent CO2 sur 100 ans. Le remplacement du fluide devra s’accompagner de l’installation d’un détendeur adapté au nouveau fluide sur chacun des terminaux et du remplacement du filtre déshydrateur. Les équipements frigorifiques commerciaux concernés sont par exemple les présentoir frigorifique, chambre froide, armoire à froid négatif avec surgélateur intégré, etc. Dans le cas d’une installation centralisée (plusieurs équipements raccordés sur un même groupe frigorifique), le montant de l’aide sera calculé en fonction du nombre de détendeurs (ou trains thermostatiques) à remplacer dans le cadre du rétrofit. | N87: =ROUND(IF($F$86=SUM($A$86:$A$90),$K$155*A87,$K$155*$F$86*A87/SUM($A$86:$A$90)),2) -> 
A88: =IF('2-Je choisis mes actions'!I75=0,0,'2-Je choisis mes actions'!J75) -> 0 | B88: ='2-Je choisis mes actions'!B75 -> Remplacement de meubles frigorifiques anciens avec groupe froid intégré par des équipements équivalents neufs avec des fluides frigorigènes moins impactant sur le changement climatique | C88: ='2-Je choisis mes actions'!C75 -> 0 | D88: ='2-Je choisis mes actions'!D75 -> Nombre de meubles remplacés | E88: =IF(nb_erreur=0,'2-Je choisis mes actions'!E75*$H88,0) -> 0 | G88: =IF('2-Je choisis mes actions'!G75="Oui","Oui","") ->  | H88: ='2-Je choisis mes actions'!I75 -> 0 | I88: Autres équipements | J88: Remplacement petit frigo | K88: ='2-Je choisis mes actions'!K75 -> L.EY | L88: 0 | M88: ='3-Synthese et finalisation'!C113 -> Une aide financière peut vous être versée pour remplacer des meubles frigorifiques à groupe logé (groupe froid intégré dans l’équipement) antérieurs à 2015 ou fonctionnant avec un fluide frigorigène à PRG > 1500 (en particulier R404A) par des meubles frigorifiques neufs à groupe logés fonctionnant avec un fluide frigorigène ayant un PRG < 1500. Les équipements frigorifiques commerciaux concernés sont par exemple les armoires frigorifiques positives, les tours réfrigérées, etc. Les équipements ne pourront pas être remplacés par du matériel domestique de type réfrigérateurs ou congélateurs bahut. | N88: =ROUND(IF($F$86=SUM($A$86:$A$90),$K$155*A88,$K$155*$F$86*A88/SUM($A$86:$A$90)),2) -> 
A89: =IF('2-Je choisis mes actions'!I76=0,0,'2-Je choisis mes actions'!J76) -> 0 | B89: ='2-Je choisis mes actions'!B76 -> Remplacement d’équipements frigorifiques commerciaux anciens par des équipements neufs à groupe froid déporté avec des fluides frigorigènes moins impactant sur le changement climatique | C89: ='2-Je choisis mes actions'!C76 -> 0 | D89: ='2-Je choisis mes actions'!D76 -> Nombre d'équipements remplacés | E89: =IF(nb_erreur=0,'2-Je choisis mes actions'!E76*$H89,0) -> 0 | G89: =IF('2-Je choisis mes actions'!G76="Oui","Oui","") ->  | H89: ='2-Je choisis mes actions'!I76 -> 0 | I89: Autres équipements | J89: Remplacement présentoir frigo | K89: ='2-Je choisis mes actions'!K76 -> L.EY | L89: 0 | M89: ='3-Synthese et finalisation'!C115 -> Une aide financière peut vous être versée pour remplacer des équipements frigorifiques anciens (antérieurs à 2015) ou fonctionnant avec un fluide frigorigène à PRG > 1500 (en particulier R404A), par des équipements frigorifiques neufs à groupe déporté (groupe froid situé à l’extérieur de l’équipement) fonctionnant avec un fluide frigorigène ayant un PRG < 1500. Le remplacement peut concerner l’ensemble du matériel (groupe frigorifique + équipement terminal) ou uniquement le groupe frigorifique si l’équipement terminal est en bon état de fonctionnement. Les équipements frigorifiques commerciaux concernés sont par exemple vitrine/présentoir frigorifique, chambre froide, surgélateur, etc. Si le remplacement concerne plusieurs équipements reliés à un même groupe frigorifique, le montant de l’aide sera assujetti au nombre d’équipements remplacés. Les nouveaux équipements devront être installés par un frigoriste qualifié (attestation de capacité et habilitation fluide). | N89: =ROUND(IF($F$86=SUM($A$86:$A$90),$K$155*A89,$K$155*$F$86*A89/SUM($A$86:$A$90)),2) -> 
A90: =IF('2-Je choisis mes actions'!I77=0,0,'2-Je choisis mes actions'!J77) -> 0 | B90: ='2-Je choisis mes actions'!B77 -> Installation de froid commercial centralisée au CO2 avec récupération de chaleur | C90: ='2-Je choisis mes actions'!C77 -> 0 | D90: ='2-Je choisis mes actions'!D77 -> Oui/Non | E90: =IF(nb_erreur=0,'2-Je choisis mes actions'!E77*$H90,0) -> 0 | G90: =IF('2-Je choisis mes actions'!G77="Oui","Oui","") ->  | H90: ='2-Je choisis mes actions'!I77 -> 0 | I90: Autres équipements | J90: Froid centralisé | K90: ='2-Je choisis mes actions'!K77 -> L.EY | L90: 0 | M90: ='3-Synthese et finalisation'!C117 -> Une aide financière peut vous être versée pour l'installation de centrale de froid au CO2 transcritique avec récupération de chaleur utilisée pour la production d'eau chaude sanitaire, de chauffage ou dans un process de fabrication. L'installation doit être mise en œuvre par un frigoriste agréé et être précédée d'une étude de dimensionnement. Cet investissement est également éligible aux Certificats d'économie d'énergie. | N90: =ROUND(IF($F$86=SUM($A$86:$A$90),$K$155*A90,$K$155*$F$86*A90/SUM($A$86:$A$90)),2) -> 
A91: =IF('2-Je choisis mes actions'!I81=0,0,'2-Je choisis mes actions'!J81) -> 0 | B91: ='2-Je choisis mes actions'!B81 -> Isolation de combles perdus | C91: ='2-Je choisis mes actions'!C81 -> 0 | D91: ='2-Je choisis mes actions'!D81 -> Surface isolée en m² | E91: =IF(nb_erreur=0,'2-Je choisis mes actions'!E81*$H91,0) -> 0 | F91: =IF(nb_erreur=0,'2-Je choisis mes actions'!F81*$H91,0) -> 0 | G91: =IF('2-Je choisis mes actions'!G81="Oui","Oui","") ->  | H91: ='2-Je choisis mes actions'!I81 -> 0 | I91: Aménagements et constructions | J91: Isolation combles | K91: ='2-Je choisis mes actions'!K81 -> L.EY | L91: 0 | M91: ='3-Synthese et finalisation'!C119 -> Cette opération est destinée aux seuls bâtiments industriels. Pour les bâtiments tertiaires, vous pouvez bénéficier Crédit d’impôt pour la rénovation énergétique des TPE/PME https://www.economie.gouv.fr/plan-de-relance/profils/entreprises/credit-impot-renovation-energetique-tpepme Une aide financière peut vous être versée pour l'isolation thermique des combles perdus. Cette isolation devra être réalisée avec des procédés d'isolation constitués de l'association d'un matériau isolant et de dispositifs de protection (dont membranes continues si nécessaire) contre des dégradations liées à son exposition aux environnements extérieurs et intérieurs, en conformité avec les règles de l'art. La résistance thermique de l'isolation installée répond aux exigences fixées par le fiche CEE BAT-EN-101 : elle est supérieure ou égale à 6 m². K/W (sauf dans les DOM-COM). La résistance thermique est évaluée selon la norme NF EN 12664, la norme NF EN 12667 ou la norme NF EN 12939 pour les isolants non-réfléchissants ou la norme NF EN 16012 pour les isolants réfléchissants. L’ADEME recommande que les entreprises qui réalisent ce type d'installation soient RGE (reconnu garant de l'environnement). Cet investissement peut également bénéficier des Certificats d’économie d’énergie. | N91: =ROUND(IF($F$91=SUM($A$91:$A$97),$K$155*A91,$K$155*$F$91*A91/SUM($A$91:$A$97)),2) -> 
A92: =IF('2-Je choisis mes actions'!I82=0,0,'2-Je choisis mes actions'!J82) -> 0 | B92: ='2-Je choisis mes actions'!B82 -> Isolation des rampants de toiture et plafonds de combles | C92: ='2-Je choisis mes actions'!C82 -> 0 | D92: ='2-Je choisis mes actions'!D82 -> Surface isolée en m² | E92: =IF(nb_erreur=0,'2-Je choisis mes actions'!E82*$H92,0) -> 0 | G92: =IF('2-Je choisis mes actions'!G82="Oui","Oui","") ->  | H92: ='2-Je choisis mes actions'!I82 -> 0 | I92: Aménagements et constructions | J92: Isolation rampants | K92: ='2-Je choisis mes actions'!K82 -> L.EY | L92: 0 | M92: ='3-Synthese et finalisation'!C121 -> Cette opération est destinée aux seuls bâtiments industriels. Pour les bâtiments tertiaires, vous pouvez bénéficier Crédit d’impôt pour la rénovation énergétique des TPE/PME https://www.economie.gouv.fr/plan-de-relance/profils/entreprises/credit-impot-renovation-energetique-tpepme Une aide financière peut vous être versée pour l'isolation thermique des rampants de toiture et plafonds de combles. Cette isolation devra être réalisée avec des procédés d'isolation constitués de l'association d'un matériau isolant et de dispositifs de fixation et de protection (dont membranes continues si nécessaire) contre des dégradations liées à son exposition aux environnements extérieurs et intérieurs, en conformité avec les règles de l'art. La résistance thermique de l'isolation installée répond aux exigences fixées par le fiche CEE BAT-EN-101 : elle est supérieure ou égale à 6 m². K/W (sauf dans les DOM-COM). La résistance thermique est évaluée selon la norme NF EN 12664, la norme NF EN 12667 ou la norme NF EN 12939 pour les isolants non-réfléchissants ou la norme NF EN 16012 pour les isolants réfléchissants. L’ADEME recommande que les entreprises qui réalisent ce type d'installation soient RGE (reconnu garent de l'environnement). Cet investissement peut également bénéficier des Certificats d’économie d’énergie.
A93: =IF('2-Je choisis mes actions'!I83=0,0,'2-Je choisis mes actions'!J83) -> 0 | B93: ='2-Je choisis mes actions'!B83 -> Isolation des murs par l'intérieur | C93: ='2-Je choisis mes actions'!C83 -> 0 | D93: ='2-Je choisis mes actions'!D83 -> Surface isolée en m² | E93: =IF(nb_erreur=0,'2-Je choisis mes actions'!E83*$H93,0) -> 0 | G93: =IF('2-Je choisis mes actions'!G83="Oui","Oui","") ->  | H93: ='2-Je choisis mes actions'!I83 -> 0 | I93: Aménagements et constructions | J93: Isolation intérieure murs | K93: ='2-Je choisis mes actions'!K83 -> L.EY | L93: 0 | M93: ='3-Synthese et finalisation'!C123 -> Cette opération est destinée aux seuls bâtiments industriels. Pour les bâtiments tertiaires, vous pouvez bénéficier Crédit d’impôt pour la rénovation énergétique des TPE/PME https://www.economie.gouv.fr/plan-de-relance/profils/entreprises/credit-impot-renovation-energetique-tpepme Une aide financière peut vous être versée pour l'isolation thermique par l'intérieur des murs en façade ou en pignon. Cette isolation devra être réalisée avec des procédés d'isolation constitués de l'association d'un matériau isolant et de dispositifs de fixation et de protection (dont membranes continues si nécessaire) contre des dégradations liées à son exposition aux environnements extérieurs et intérieurs, en conformité avec les règles de l'art. La résistance thermique de l'isolation installée répond aux exigences fixées par le fiche CEE BAT-EN-102 : elle est supérieure ou égale à 3,7 m². K/W (sauf dans les DOM COM). La résistance thermique est évaluée selon la norme NF EN 12664, la norme NF EN 12667 ou la norme NF EN 12939 pour les isolants non-réfléchissants ou la norme NF EN 16012 pour les isolants réfléchissants. L’ADEME recommande que les entreprises qui réalisent ce type d'installation soient RGE (reconnu garent de l'environnement). Cet investissement peut également bénéficier des Certificats d’économie d’énergie.
